Workbook

Sheet Performance Table
B2: STEP 1: Build Your Own Asset Allocation Model in Pink Cells | H2: =IF(H3<>1,"ERROR","") ->  | I2: 7Twelve Portfolio | J2: STEP 2: | K2: Annual % Returns of 7Twelveand YOUR COMPARISON PORTFOLIO | T2: STEP 3: Enter Retirement Portfolio Data in pink cells
B3: Enter Your Allocations -> | C3: 0.2 | D3: 0.15 | E3: 0.15 | F3: 0.3 | G3: 0.2 | H3: =SUM(C3:G3) -> 1 | I3: www.7TwelvePortfolio.com | J3: Enter a "1" below to include year, "0" to exclude year | L3: 7Twelve performance with annual rebalancing
B4: Asset Class Annual Returns | C4: Large US Stock | D4: Small US Stock | E4: Non-US Stock | F4: Bonds | G4: Cash | I4: Data Period (Years selected must be contiguous) No gaps in period being analyzed | K4: Index-based 7Twelve Portfolio | L4: Active 7Twelve Portfolio | M4: Passive 7Twelve Portfolio | N4: Passive 7Twelve 20% Extra Cash | O4: Passive 7Twelve 40% Extra Cash | P4: Passive 7Twelve 60% Extra Cash | R4: Your Custom Portfolio | T4: Starting Balance in Retirement Account | U4: 250000
B5: 1999 | C5: 21.04163821 | D5: 21.25602991 | E5: 26.96437139 | F5: -0.8215204135 | G5: 4.638248357 | I5: ='Raw data'!A4 -> 1999 | J5: 0 | K5: =+IF($J5=1,'Raw data'!C4,"") ->  | L5: =+IF($J5=1,'Raw data'!D4,"") ->  | M5: =+IF($J5=1,'Raw data'!E4,"") ->  | N5: =+IF($J5=1,'Raw data'!F4,"") ->  | O5: =+IF($J5=1,'Raw data'!G4,"") ->  | P5: =+IF($J5=1,'Raw data'!H4,"") ->  | R5: =+IF($J5=1,'Raw data'!I4,"") ->  | T5: Initial Withdrawal Rate (%) | U5: 0.05
B6: =B5+1 -> 2000 | C6: -9.104478134 | D6: -3.020998156 | E6: -14.16801086 | F6: 11.62599828 | G6: 5.81651156 | I6: ='Raw data'!A5 -> 2000 | J6: 0 | K6: =+IF($J6=1,'Raw data'!C5,"") ->  | L6: =+IF($J6=1,'Raw data'!D5,"") ->  | M6: =+IF($J6=1,'Raw data'!E5,"") ->  | N6: =+IF($J6=1,'Raw data'!F5,"") ->  | O6: =+IF($J6=1,'Raw data'!G5,"") ->  | P6: =+IF($J6=1,'Raw data'!H5,"") ->  | R6: =+IF($J6=1,'Raw data'!I5,"") ->  | T6: Annual Cost of Living Adjustment (%) | U6: 0.03
B7: =B6+1 -> 2001 | C7: -11.88582097 | D7: 2.486288025 | E7: -21.44276543 | F7: 8.443452013 | G7: 3.382786814 | I7: ='Raw data'!A6 -> 2001 | J7: 1 | K7: =+IF($J7=1,'Raw data'!C6,"") -> -2.090150812 | L7: =+IF($J7=1,'Raw data'!D6,"") -> 2.977690421 | M7: =+IF($J7=1,'Raw data'!E6,"") -> -1.941274182 | N7: =+IF($J7=1,'Raw data'!F6,"") -> -0.7200717913 | O7: =+IF($J7=1,'Raw data'!G6,"") -> 0.5011305995 | P7: =+IF($J7=1,'Raw data'!H6,"") -> 1.72233299 | R7: =+IF($J7=1,'Raw data'!I6,"") -> -2.011042838
B8: 2002 | C8: -22.10044547 | D8: -20.48374505 | E8: -15.94008022 | F8: 10.25497047 | G8: 1.602233361 | I8: ='Raw data'!A7 -> 2002 | J8: 1 | K8: =+IF($J8=1,'Raw data'!C7,"") -> -0.5621481727 | L8: =+IF($J8=1,'Raw data'!D7,"") -> 2.179802055 | M8: =+IF($J8=1,'Raw data'!E7,"") -> -0.6362026854 | N8: =+IF($J8=1,'Raw data'!F7,"") -> -0.1789151491 | O8: =+IF($J8=1,'Raw data'!G7,"") -> 0.2783723872 | P8: =+IF($J8=1,'Raw data'!H7,"") -> 0.7356599234 | R8: =+IF($J8=1,'Raw data'!I7,"") -> -6.486725072 | T8: Year of Withdrawal | U8: Withdrawal Amount
B9: 2003 | C9: 28.68453159 | D9: 47.25415439 | E9: 38.58590299 | F9: 4.104556072 | G9: 1.010949495 | I9: ='Raw data'!A8 -> 2003 | J9: 1 | K9: =+IF($J9=1,'Raw data'!C8,"") -> 27.09708925 | L9: =+IF($J9=1,'Raw data'!D8,"") -> 28.81567103 | M9: =+IF($J9=1,'Raw data'!E8,"") -> 26.95270497 | N9: =+IF($J9=1,'Raw data'!F8,"") -> 21.74129344 | O9: =+IF($J9=1,'Raw data'!G8,"") -> 16.52988191 | P9: =+IF($J9=1,'Raw data'!H8,"") -> 11.31847039 | R9: =+IF($J9=1,'Raw data'!I8,"") -> 20.04647165 | T9: ='Performance Graphs'!N29 -> -- | U9: ='Performance Graphs'!Q29 -> --
B10: 2004 | C10: 10.88219163 | D10: 18.32959203 | E10: 20.24721238 | F10: 4.338792033 | G10: 1.370758218 | I10: ='Raw data'!A9 -> 2004 | J10: 1 | K10: =+IF($J10=1,'Raw data'!C9,"") -> 17.95698485 | L10: =+IF($J10=1,'Raw data'!D9,"") -> 19.79351968 | M10: =+IF($J10=1,'Raw data'!E9,"") -> 17.80446636 | N10: =+IF($J10=1,'Raw data'!F9,"") -> 14.46515727 | O10: =+IF($J10=1,'Raw data'!G9,"") -> 11.12584819 | P10: =+IF($J10=1,'Raw data'!H9,"") -> 7.786539103 | R10: =+IF($J10=1,'Raw data'!I9,"") -> 9.538748243 | T10: ='Performance Graphs'!N30 -> -- | U10: ='Performance Graphs'!Q30 -> --
B11: 2005 | C11: 4.911870657 | D11: 4.553781907 | E11: 13.5354153 | F11: 2.428348595 | G11: 3.145251164 | I11: ='Raw data'!A10 -> 2005 | J11: 1 | K11: =+IF($J11=1,'Raw data'!C10,"") -> 12.48562195 | L11: =+IF($J11=1,'Raw data'!D10,"") -> 12.9069003 | M11: =+IF($J11=1,'Raw data'!E10,"") -> 12.34355801 | N11: =+IF($J11=1,'Raw data'!F10,"") -> 10.47659781 | O11: =+IF($J11=1,'Raw data'!G10,"") -> 8.609637601 | P11: =+IF($J11=1,'Raw data'!H10,"") -> 6.742677397 | R11: =+IF($J11=1,'Raw data'!I10,"") -> 5.053308524 | T11: ='Performance Graphs'!N31 -> 2001 | U11: ='Performance Graphs'!Q31 -> 12500
B12: 2006 | C12: 15.79436065 | D12: 18.36735884 | E12: 26.3406299 | F12: 4.333795417 | G12: 4.726586088 | I12: ='Raw data'!A11 -> 2006 | J12: 1 | K12: =+IF($J12=1,'Raw data'!C11,"") -> 15.26140351 | L12: =+IF($J12=1,'Raw data'!D11,"") -> 15.97673833 | M12: =+IF($J12=1,'Raw data'!E11,"") -> 14.96486633 | N12: =+IF($J12=1,'Raw data'!F11,"") -> 12.94847572 | O12: =+IF($J12=1,'Raw data'!G11,"") -> 10.93208511 | P12: =+IF($J12=1,'Raw data'!H11,"") -> 8.915694497 | R12: =+IF($J12=1,'Raw data'!I11,"") -> 12.11052628 | T12: ='Performance Graphs'!N32 -> 2002 | U12: ='Performance Graphs'!Q32 -> 12875
B13: 2007 | C13: 5.493848441 | D13: -1.565972836 | E13: 11.16965806 | F13: 6.966649864 | G13: 4.351164631 | I13: ='Raw data'!A12 -> 2007 | J13: 1 | K13: =+IF($J13=1,'Raw data'!C12,"") -> 12.31907533 | L13: =+IF($J13=1,'Raw data'!D12,"") -> 13.77853217 | M13: =+IF($J13=1,'Raw data'!E12,"") -> 11.58495875 | N13: =+IF($J13=1,'Raw data'!F12,"") -> 10.29645717 | O13: =+IF($J13=1,'Raw data'!G12,"") -> 9.007955602 | P13: =+IF($J13=1,'Raw data'!H12,"") -> 7.71945403 | R13: =+IF($J13=1,'Raw data'!I12,"") -> 5.499550358 | T13: ='Performance Graphs'!N33 -> 2003 | U13: ='Performance Graphs'!Q33 -> 13261.25
B14: 2008 | C14: -36.99788926 | D14: -33.78716897 | E14: -43.37852378 | F14: 5.240422218 | G14: 1.362201804 | I14: ='Raw data'!A13 -> 2008 | J14: 1 | K14: =+IF($J14=1,'Raw data'!C13,"") -> -25.48878673 | L14: =+IF($J14=1,'Raw data'!D13,"") -> -28.14289434 | M14: =+IF($J14=1,'Raw data'!E13,"") -> -25.16404638 | N14: =+IF($J14=1,'Raw data'!F13,"") -> -19.57661121 | O14: =+IF($J14=1,'Raw data'!G13,"") -> -13.98917603 | P14: =+IF($J14=1,'Raw data'!H13,"") -> -8.401740857 | R14: =+IF($J14=1,'Raw data'!I13,"") -> -17.12986474 | T14: ='Performance Graphs'!N34 -> 2004 | U14: ='Performance Graphs'!Q34 -> 13659.0875
B15: 2009 | C15: 26.46455158 | D15: 27.171856 | E15: 31.77603515 | F15: 5.930569828 | G15: 0.1501011888 | I15: ='Raw data'!A14 -> 2009 | J15: 1 | K15: =+IF($J15=1,'Raw data'!C14,"") -> 25.64373834 | L15: =+IF($J15=1,'Raw data'!D14,"") -> 32.3553042 | M15: =+IF($J15=1,'Raw data'!E14,"") -> 25.64405985 | N15: =+IF($J15=1,'Raw data'!F14,"") -> 20.62150302 | O15: =+IF($J15=1,'Raw data'!G14,"") -> 15.59894619 | P15: =+IF($J15=1,'Raw data'!H14,"") -> 10.57638935 | R15: =+IF($J15=1,'Raw data'!I14,"") -> 15.94428517 | T15: ='Performance Graphs'!N35 -> 2005 | U15: ='Performance Graphs'!Q35 -> 14068.86012
B16: 2010 | C16: 15.06332192 | D16: 26.85482303 | E16: 7.750053219 | F16: 6.541821182 | G16: 0.1366852293 | I16: ='Raw data'!A15 -> 2010 | J16: 1 | K16: =+IF($J16=1,'Raw data'!C15,"") -> 14.4124727 | L16: =+IF($J16=1,'Raw data'!D15,"") -> 14.51764056 | M16: =+IF($J16=1,'Raw data'!E15,"") -> 14.4094272 | N16: =+IF($J16=1,'Raw data'!F15,"") -> 11.53974505 | O16: =+IF($J16=1,'Raw data'!G15,"") -> 8.670062901 | P16: =+IF($J16=1,'Raw data'!H15,"") -> 5.800380753 | R16: =+IF($J16=1,'Raw data'!I15,"") -> 10.19327922 | T16: ='Performance Graphs'!N36 -> 2006 | U16: ='Performance Graphs'!Q36 -> 14490.92593
B17: 2011 | C17: 2.111685121 | D17: -4.175586391 | E17: -12.14124017 | F17: 7.842089776 | G17: 0.05231164215 | I17: ='Raw data'!A16 -> 2011 | J17: 1 | K17: =+IF($J17=1,'Raw data'!C16,"") -> -0.7688229827 | L17: =+IF($J17=1,'Raw data'!D16,"") -> -6.311845124 | M17: =+IF($J17=1,'Raw data'!E16,"") -> -0.9974713498 | N17: =+IF($J17=1,'Raw data'!F16,"") -> -0.7890352837 | O17: =+IF($J17=1,'Raw data'!G16,"") -> -0.5805992177 | P17: =+IF($J17=1,'Raw data'!H16,"") -> -0.3721631516 | R17: =+IF($J17=1,'Raw data'!I16,"") -> 0.3379023006 | T17: ='Performance Graphs'!N37 -> 2007 | U17: ='Performance Graphs'!Q37 -> 14925.65371
B18: 2012 | C18: 16.00346913 | D18: 16.34964067 | E18: 17.31703965 | F18: 4.214826221 | G18: 0.08583358622 | I18: ='Raw data'!A17 -> 2012 | J18: 1 | K18: =+IF($J18=1,'Raw data'!C17,"") -> 10.77099127 | L18: =+IF($J18=1,'Raw data'!D17,"") -> 12.41957054 | M18: =+IF($J18=1,'Raw data'!E17,"") -> 10.6390398 | N18: =+IF($J18=1,'Raw data'!F17,"") -> 8.518893183 | O18: =+IF($J18=1,'Raw data'!G17,"") -> 6.398746565 | P18: =+IF($J18=1,'Raw data'!H17,"") -> 4.278599947 | R18: =+IF($J18=1,'Raw data'!I17,"") -> 9.532310459 | T18: ='Performance Graphs'!N38 -> 2008 | U18: ='Performance Graphs'!Q38 -> 15373.42332
B19: 2013 | C19: 32.38815823 | D19: 38.82239604 | E19: 22.77813018 | F19: -2.023686499 | G19: 0.05821532911 | I19: ='Raw data'!A18 -> 2013 | J19: 1 | K19: =+IF($J19=1,'Raw data'!C18,"") -> 10.46318996 | L19: =+IF($J19=1,'Raw data'!D18,"") -> 11.32975057 | M19: =+IF($J19=1,'Raw data'!E18,"") -> 9.649201602 | N19: =+IF($J19=1,'Raw data'!F18,"") -> 7.723221557 | O19: =+IF($J19=1,'Raw data'!G18,"") -> 5.797241511 | P19: =+IF($J19=1,'Raw data'!H18,"") -> 3.871261466 | R19: =+IF($J19=1,'Raw data'!I18,"") -> 15.12224769 | T19: ='Performance Graphs'!N39 -> 2009 | U19: ='Performance Graphs'!Q39 -> 15834.62602
B20: 2014 | C20: 13.6886008 | D20: 4.894397141 | E20: -4.901774686 | F20: 5.965700754 | G20: 0.03260482933 | I20: ='Raw data'!A19 -> 2014 | J20: 1 | K20: =+IF($J20=1,'Raw data'!C19,"") -> 1.494605319 | L20: =+IF($J20=1,'Raw data'!D19,"") -> 0.05320879818 | M20: =+IF($J20=1,'Raw data'!E19,"") -> 2.495570451 | N20: =+IF($J20=1,'Raw data'!F19,"") -> 1.998376445 | O20: =+IF($J20=1,'Raw data'!G19,"") -> 1.501182439 | P20: =+IF($J20=1,'Raw data'!H19,"") -> 1.003988434 | R20: =+IF($J20=1,'Raw data'!I19,"") -> 4.532844719 | T20: ='Performance Graphs'!N40 -> 2010 | U20: ='Performance Graphs'!Q40 -> 16309.6648
B21: 2015 | C21: 1.38370949 | D21: -4.414161995 | E21: -0.8143603267 | F21: 0.5499176869 | G21: 0.0527111959 | I21: ='Raw data'!A20 -> 2015 | J21: 1 | K21: =+IF($J21=1,'Raw data'!C20,"") -> -6.05782527 | L21: =+IF($J21=1,'Raw data'!D20,"") -> -6.955817256 | M21: =+IF($J21=1,'Raw data'!E20,"") -> -5.07237069 | N21: =+IF($J21=1,'Raw data'!F20,"") -> -4.048114599 | O21: =+IF($J21=1,'Raw data'!G20,"") -> -3.023858508 | P21: =+IF($J21=1,'Raw data'!H20,"") -> -1.999602417 | R21: =+IF($J21=1,'Raw data'!I20,"") -> -0.3320189049 | T21: ='Performance Graphs'!N41 -> 2011 | U21: ='Performance Graphs'!Q41 -> 16798.95474
B22: 2016 | C22: 11.95999189 | D22: 21.30804429 | E22: 1.000021068 | F22: 2.647338787 | G22: 0.3175587732 | I22: ='Raw data'!A21 -> 2016 | J22: 1 | K22: =+IF($J22=1,'Raw data'!C21,"") -> 11.50675981 | L22: =+IF($J22=1,'Raw data'!D21,"") -> 9.186795568 | M22: =+IF($J22=1,'Raw data'!E21,"") -> 10.14274419 | N22: =+IF($J22=1,'Raw data'!F21,"") -> 8.180753047 | O22: =+IF($J22=1,'Raw data'!G21,"") -> 6.218761901 | P22: =+IF($J22=1,'Raw data'!H21,"") -> 4.256770755 | R22: =+IF($J22=1,'Raw data'!I21,"") -> 6.595921572 | T22: ='Performance Graphs'!N42 -> 2012 | U22: ='Performance Graphs'!Q42 -> 17302.92338
B23: 2017 | C23: 21.83168863 | D23: 14.64716894 | E23: 25.03436275 | F23: 3.541856718 | G23: 0.9304204323 | I23: ='Raw data'!A22 -> 2017 | J23: 1 | K23: =+IF($J23=1,'Raw data'!C22,"") -> 11.99178528 | L23: =+IF($J23=1,'Raw data'!D22,"") -> 13.66546002 | M23: =+IF($J23=1,'Raw data'!E22,"") -> 11.96856712 | N23: =+IF($J23=1,'Raw data'!F22,"") -> 9.736968566 | O23: =+IF($J23=1,'Raw data'!G22,"") -> 7.505370014 | P23: =+IF($J23=1,'Raw data'!H22,"") -> 5.273771463 | R23: =+IF($J23=1,'Raw data'!I22,"") -> 11.56720858 | T23: ='Performance Graphs'!N43 -> 2013 | U23: ='Performance Graphs'!Q43 -> 17822.01109
B24: 2018 | C24: -4.384326472 | D24: -11.01382294 | E24: -13.79026105 | F24: 0.0113255248 | G24: 1.938886339 | I24: ='Raw data'!A23 -> 2018 | J24: 1 | K24: =+IF($J24=1,'Raw data'!C23,"") -> -7.535035426 | L24: =+IF($J24=1,'Raw data'!D23,"") -> -7.635070329 | M24: =+IF($J24=1,'Raw data'!E23,"") -> -5.885668241 | N24: =+IF($J24=1,'Raw data'!F23,"") -> -4.352551908 | O24: =+IF($J24=1,'Raw data'!G23,"") -> -2.819435575 | P24: =+IF($J24=1,'Raw data'!H23,"") -> -1.286319242 | R24: =+IF($J24=1,'Raw data'!I23,"") -> -4.206302967 | T24: ='Performance Graphs'!N44 -> 2014 | U24: ='Performance Graphs'!Q44 -> 18356.67142
B25: 2019 | C25: 31.48879971 | D25: 25.52081104 | E25: 22.01448688 | F25: 8.716705493 | G25: 2.060361831 | I25: ='Raw data'!A24 -> 2019 | J25: 1 | K25: =+IF($J25=1,'Raw data'!C24,"") -> 16.57356468 | L25: =+IF($J25=1,'Raw data'!D24,"") -> 16.16423548 | M25: =+IF($J25=1,'Raw data'!E24,"") -> 15.88554537 | N25: =+IF($J25=1,'Raw data'!F24,"") -> 13.13612544 | O25: =+IF($J25=1,'Raw data'!G24,"") -> 10.38670552 | P25: =+IF($J25=1,'Raw data'!H24,"") -> 7.63728559 | R25: =+IF($J25=1,'Raw data'!I24,"") -> 16.45513865 | T25: ='Performance Graphs'!N45 -> 2015 | U25: ='Performance Graphs'!Q45 -> 18907.37156
B26: 2020 | C26: 18.4 | D26: 19.96 | E26: 7.82 | F26: 7.506687202 | G26: 0.363593968 | I26: ='Raw data'!A25 -> 2020 | J26: 1 | K26: =+IF($J26=1,'Raw data'!C25,"") -> 5.268534807 | L26: =+IF($J26=1,'Raw data'!D25,"") -> 13.81759624 | M26: =+IF($J26=1,'Raw data'!E25,"") -> 5.779325839 | N26: =+IF($J26=1,'Raw data'!F25,"") -> 4.78984569 | O26: =+IF($J26=1,'Raw data'!G25,"") -> 3.80036554 | P26: =+IF($J26=1,'Raw data'!H25,"") -> 2.810885391 | R26: =+IF($J26=1,'Raw data'!I25,"") -> 10.17172495 | T26: ='Performance Graphs'!N46 -> 2016 | U26: ='Performance Graphs'!Q46 -> 19474.59271
B27: 2021 | C27: 28.71 | D27: 14.82 | E27: 11.26 | F27: -1.54217592 | G27: 0.04430888777 | I27: ='Raw data'!A26 -> 2021 | J27: 1 | K27: =+IF($J27=1,'Raw data'!C26,"") -> 16.84701151 | L27: =+IF($J27=1,'Raw data'!D26,"") -> 5.278071669 | M27: =+IF($J27=1,'Raw data'!E26,"") -> 6.475705518 | N27: =+IF($J27=1,'Raw data'!F26,"") -> 5.15825457 | O27: =+IF($J27=1,'Raw data'!G26,"") -> 3.840803621 | P27: =+IF($J27=1,'Raw data'!H26,"") -> 2.523352673 | R27: =+IF($J27=1,'Raw data'!I26,"") -> 9.200209001 | T27: ='Performance Graphs'!N47 -> 2017 | U27: ='Performance Graphs'!Q47 -> 20058.83049
B28: 2022 | C28: -18.11 | D28: -20.44 | E28: -14.45 | F28: -13.00999533 | G28: 2.011244083 | I28: ='Raw data'!A27 -> 2022 | J28: 1 | K28: =+IF($J28=1,'Raw data'!C27,"") -> -7.708127173 | L28: =+IF($J28=1,'Raw data'!D27,"") -> -18.60322954 | M28: =+IF($J28=1,'Raw data'!E27,"") -> -14.02372723 | N28: =+IF($J28=1,'Raw data'!F27,"") -> -11.03042336 | O28: =+IF($J28=1,'Raw data'!G27,"") -> -8.037119491 | P28: =+IF($J28=1,'Raw data'!H27,"") -> -5.043815623 | R28: =+IF($J28=1,'Raw data'!I27,"") -> -12.35624978 | T28: ='Performance Graphs'!N48 -> 2018 | U28: ='Performance Graphs'!Q48 -> 20660.5954
B29: 2023 | C29: 26.29 | D29: 16.93 | E29: 18.24 | F29: 5.528299864 | G29: 5.068121034 | I29: ='Raw data'!A28 -> 2023 | J29: 1 | K29: =+IF($J29=1,'Raw data'!C28,"") -> 9.256464301 | L29: =+IF($J29=1,'Raw data'!D28,"") -> 11.85501487 | M29: =+IF($J29=1,'Raw data'!E28,"") -> 8.104822298 | N29: =+IF($J29=1,'Raw data'!F28,"") -> 7.490944693 | O29: =+IF($J29=1,'Raw data'!G28,"") -> 6.877067087 | P29: =+IF($J29=1,'Raw data'!H28,"") -> 6.263189482 | R29: =+IF($J29=1,'Raw data'!I28,"") -> 13.20561417 | T29: ='Performance Graphs'!N49 -> 2019 | U29: ='Performance Graphs'!Q49 -> 21280.41327
J30: ACCUMULATION PORTFOLIO ANALYSIS | P30: =Calculations!M32 -> 2001 | Q30: to | R30: =Calculations!M33 -> 2023 | T30: ='Performance Graphs'!N50 -> 2020 | U30: ='Performance Graphs'!Q50 -> 21918.82566
B31: Enter your "overlay" costs (bps) --> | E31: 0 | F31: <- Enter as a positive # | I31: Number of Years of Analysis | K31: =+Calculations!$C31 -> 23 | L31: =+Calculations!$C31 -> 23 | M31: =+Calculations!$C31 -> 23 | N31: =+Calculations!$C31 -> 23 | O31: =+Calculations!$C31 -> 23 | P31: =+Calculations!$C31 -> 23 | R31: =+Calculations!$C31 -> 23 | T31: ='Performance Graphs'!N51 -> 2021 | U31: ='Performance Graphs'!Q51 -> 22576.39043
B32: (Enter zero if you are an individual investor) | F32: Example: an advisor fee | I32: Average Annual Return (%) | K32: =Calculations!D32 -> 0.06654213995 | L32: =Calculations!E32 -> 0.06414212615 | M32: =Calculations!F32 -> 0.05874707266 | N32: =Calculations!G32 -> 0.05130056985 | O32: =Calculations!H32 -> 0.04324037116 | P32: =Calculations!I32 -> 0.03458903676 | R32: =Calculations!J32 -> 0.05340641515 | T32: ='Performance Graphs'!N52 -> 2022 | U32: ='Performance Graphs'!Q52 -> 23253.68215
I33: Standard Deviation of Annual Returns (%) | K33: =Calculations!D33 -> 0.1206514966 | L33: =Calculations!E33 -> 0.1400656388 | M33: =Calculations!F33 -> 0.1201078504 | N33: =Calculations!G33 -> 0.0960019584 | O33: =Calculations!H33 -> 0.07211087606 | P33: =Calculations!I33 -> 0.04875144112 | R33: =Calculations!J33 -> 0.09414540227 | T33: ='Performance Graphs'!N53 -> 2023 | U33: ='Performance Graphs'!Q53 -> 23951.29261
B34: Past performance is not a guarantee of future performance. | I34: Correlation to S&P 500 | K34: =+CORREL(K5:K29,$C5:$C29) -> 0.8321050499 | L34: =+CORREL(L5:L29,$C5:$C29) -> 0.7792472201 | M34: =+CORREL(M5:M29,$C5:$C29) -> 0.8110369311 | N34: =+CORREL(N5:N29,$C5:$C29) -> 0.8041053749 | O34: 0.7901648438 | P34: 0.7540960153 | R34: =+CORREL(R5:R29,$C5:$C29) -> 0.9571700084 | U34: -------------
B35: Indexes used to provide the annual returns shown above: | I35: Growth of $10,000 ($) | K35: =Calculations!D35 -> 44004.23218 | L35: =Calculations!E35 -> 41782.23105 | M35: =Calculations!F35 -> 37172.44425 | N35: =Calculations!G35 -> 31602.30032 | O35: =Calculations!H35 -> 26475.29784 | P35: =Calculations!I35 -> 21860.54858 | R35: =Calculations!J35 -> 33090.78375 | T35: TOTAL $ WITHDRAWAL | U35: =SUM(U9:U33) -> 405661.0463
B36: Large US Stock: S&P 500 Index | I36: Worst 3-Year Cumulative Return (%) | K36: =Calculations!D37 -> -0.03537378976 | L36: =Calculations!E37 -> -0.0517978458 | M36: =Calculations!F37 -> -0.03997820437 | N36: =Calculations!G37 -> -0.01959821375 | O36: =Calculations!H37 -> -0.008758469948 | P36: =Calculations!I37 -> 0.0008872435524 | R36: =Calculations!J37 -> -0.01984435008
B37: Small US Stock: Russell 2000 Index
B38: Non-US Stock: MSCI EAFE Index | J38: DISTRIBUTION PORTFOLIO ANALYSIS | P38: =+P30 -> 2001 | Q38: =+Q30 -> to | R38: =+R30 -> 2023
B39: Bonds: Bloomberg US Aggregate Bond Index | I39: Ending Account Value ($) ---------------> | K39: =Calculations!AI33 -> 323779.4461 | L39: =Calculations!AJ33 -> 367610.2541 | M39: =Calculations!AK33 -> 261731.3183 | N39: =Calculations!AL33 -> 168043.1299 | O39: =Calculations!AM33 -> 83662.48623 | P39: =Calculations!AN33 -> 9777.934379 | R39: =Calculations!AO33 -> 83804.31544
B40: Cash: 90-day Treasury Bill
I44: To view performance graphs click on Yellow tab below
B67: Password to unlock spreadsheet is "712"

Sheet Performance Graphs
C2: Accumulation Portfolio Analysis | Q2: Distribution Portfolio Analysis | R2: Distribution Portfolio Analysis
C3: Time Period | F3: ='Performance Table'!$P$30 -> 2001 | G3: to | H3: ='Performance Table'!$R$30 -> 2023 | S3: Time Period | T3: ='Performance Table'!$P$30 -> 2001 | U3: to | V3: ='Performance Table'!$R$30 -> 2023
S27: =Calculations!AI3 -> Index-based 7Twelve Portfolio | T27: =Calculations!AJ3 -> Active 7Twelve Portfolio | U27: =Calculations!AK3 -> Passive 7Twelve Portfolio | V27: =Calculations!AL3 -> Passive 7Twelve 20% Extra Cash | W27: =Calculations!AM3 -> Passive 7Twelve 40% Extra Cash | X27: =Calculations!AN3 -> Passive 7Twelve 60% Extra Cash | Y27: =Calculations!AO3 -> Your Custom Portfolio
N28: Starting Account Balance | Q28: =Calculations!AG3 -> 250000 | S28: Year-to-Year Account Balance | T28: Year-to-Year Account Balance
N29: =Calculations!M5 -> -- | O29: =+IF(Calculations!C5=0,"","Withdrawal") ->  | Q29: =Calculations!AH5 -> -- | S29: =Calculations!AI5 -> -- | T29: =Calculations!AJ5 -> -- | U29: =Calculations!AK5 -> -- | V29: =Calculations!AL5 -> -- | W29: =Calculations!AM5 -> -- | X29: =Calculations!AN5 -> -- | Y29: =Calculations!AO5 -> --
N30: =Calculations!M6 -> -- | O30: =+IF(Calculations!C6=0,"","Withdrawal") ->  | Q30: =Calculations!AH6 -> -- | S30: =Calculations!AI6 -> -- | T30: =Calculations!AJ6 -> -- | U30: =Calculations!AK6 -> -- | V30: =Calculations!AL6 -> -- | W30: =Calculations!AM6 -> -- | X30: =Calculations!AN6 -> -- | Y30: =Calculations!AO6 -> --
N31: =Calculations!M7 -> 2001 | O31: =+IF(Calculations!C7=0,"","Withdrawal") -> Withdrawal | Q31: =Calculations!AH7 -> 12500 | S31: =Calculations!AI7 -> 232274.623 | T31: =Calculations!AJ7 -> 244944.2261 | U31: =Calculations!AK7 -> 232646.8145 | V31: =Calculations!AL7 -> 235699.8205 | W31: =Calculations!AM7 -> 238752.8265 | X31: =Calculations!AN7 -> 241805.8325 | Y31: =Calculations!AO7 -> 232472.3929
N32: =Calculations!M8 -> 2002 | O32: =+IF(Calculations!C8=0,"","Withdrawal") -> Withdrawal | Q32: =Calculations!AH8 -> 12875 | S32: =Calculations!AI8 -> 218093.8954 | T32: =Calculations!AJ8 -> 237408.5253 | U32: =Calculations!AK8 -> 218291.7093 | V32: =Calculations!AL8 -> 222403.1178 | W32: =Calculations!AM8 -> 226542.4484 | X32: =Calculations!AN8 -> 230709.7011 | Y32: =Calculations!AO8 -> 204517.5479
N33: =Calculations!M9 -> 2003 | O33: =+IF(Calculations!C9=0,"","Withdrawal") -> Withdrawal | Q33: =Calculations!AH9 -> 13261.25 | S33: =Calculations!AI9 -> 263929.7429 | T33: =Calculations!AJ9 -> 292558.135 | U33: =Calculations!AK9 -> 263865.9796 | V33: =Calculations!AL9 -> 257495.1823 | W33: =Calculations!AM9 -> 250728.3977 | X33: =Calculations!AN9 -> 243561.2603 | Y33: =Calculations!AO9 -> 232254.8502
G34: The 7Twelve Portfolio Model | N34: =Calculations!M10 -> 2004 | O34: =+IF(Calculations!C10=0,"","Withdrawal") -> Withdrawal | Q34: =Calculations!AH10 -> 13659.0875 | S34: =Calculations!AI10 -> 297664.4794 | T34: =Calculations!AJ10 -> 336806.5995 | U34: =Calculations!AK10 -> 297186.8217 | V34: =Calculations!AL10 -> 281083.1779 | W34: =Calculations!AM10 -> 264964.971 | X34: =Calculations!AN10 -> 248867.1655 | Y34: =Calculations!AO10 -> 240749.9681
N35: =Calculations!M11 -> 2005 | O35: =+IF(Calculations!C11=0,"","Withdrawal") -> Withdrawal | Q35: =Calculations!AH11 -> 14068.86012 | S35: =Calculations!AI11 -> 320760.8808 | T35: =Calculations!AJ11 -> 366209.0314 | U35: =Calculations!AK11 -> 319801.3893 | V35: =Calculations!AL11 -> 296462.2718 | W35: =Calculations!AM11 -> 273708.6347 | X35: =Calculations!AN11 -> 251578.6155 | Y35: =Calculations!AO11 -> 238846.9466
N36: =Calculations!M12 -> 2006 | O36: =+IF(Calculations!C12=0,"","Withdrawal") -> Withdrawal | Q36: =Calculations!AH12 -> 14490.92593 | S36: =Calculations!AI12 -> 355222.5672 | T36: =Calculations!AJ12 -> 410226.3642 | U36: =Calculations!AK12 -> 353168.3138 | V36: =Calculations!AL12 -> 320358.6912 | W36: =Calculations!AM12 -> 289139.7697 | X36: =Calculations!AN12 -> 259517.6704 | Y36: =Calculations!AO12 -> 253281.643
N37: =Calculations!M13 -> 2007 | O37: =+IF(Calculations!C13=0,"","Withdrawal") -> Withdrawal | Q37: =Calculations!AH13 -> 14925.65371 | S37: =Calculations!AI13 -> 384057.0492 | T37: =Calculations!AJ13 -> 451823.882 | U37: =Calculations!AK13 -> 379157.0636 | V37: =Calculations!AL13 -> 338418.6329 | W37: =Calculations!AM13 -> 300259.698 | X37: =Calculations!AN13 -> 264625.3639 | Y37: =Calculations!AO13 -> 252285.3408
N38: =Calculations!M14 -> 2008 | O38: =+IF(Calculations!C14=0,"","Withdrawal") -> Withdrawal | Q38: =Calculations!AH14 -> 15373.42332 | S38: =Calculations!AI14 -> 270792.1437 | T38: =Calculations!AJ14 -> 309294.1409 | U38: =Calculations!AK14 -> 268372.3809 | V38: =Calculations!AL14 -> 256794.3096 | W38: =Calculations!AM14 -> 242882.417 | X38: =Calculations!AN14 -> 227018.8033 | Y38: =Calculations!AO14 -> 193695.7798
N39: =Calculations!M15 -> 2009 | O39: =+IF(Calculations!C15=0,"","Withdrawal") -> Withdrawal | Q39: =Calculations!AH15 -> 15834.62602 | S39: =Calculations!AI15 -> 324398.7464 | T39: =Calculations!AJ15 -> 393532.5751 | U39: =Calculations!AK15 -> 321359.3289 | V39: =Calculations!AL15 -> 293914.5299 | W39: =Calculations!AM15 -> 264934.8885 | X39: =Calculations!AN15 -> 235194.5698 | Y39: =Calculations!AO15 -> 208744.5613
N40: =Calculations!M16 -> 2010 | O40: =+IF(Calculations!C16=0,"","Withdrawal") -> Withdrawal | Q40: =Calculations!AH16 -> 16309.6648 | S40: =Calculations!AI16 -> 354842.9624 | T40: =Calculations!AJ16 -> 434354.555 | U40: =Calculations!AK16 -> 351355.7026 | V40: =Calculations!AL16 -> 311521.8525 | W40: =Calculations!AM16 -> 271595.2452 | X40: =Calculations!AN16 -> 232527.0856 | Y40: =Calculations!AO16 -> 213712.8125
N41: =Calculations!M17 -> 2011 | O41: =+IF(Calculations!C17=0,"","Withdrawal") -> Withdrawal | Q41: =Calculations!AH17 -> 16798.95474 | S41: =Calculations!AI17 -> 335315.8934 | T41: =Calculations!AJ17 -> 390139.8135 | U41: =Calculations!AK17 -> 331052.0754 | V41: =Calculations!AL17 -> 292264.8804 | W41: =Calculations!AM17 -> 253219.4106 | X41: =Calculations!AN17 -> 214862.7507 | Y41: =Calculations!AO17 -> 197635.9983
N42: =Calculations!M18 -> 2012 | O42: =+IF(Calculations!C18=0,"","Withdrawal") -> Withdrawal | Q42: =Calculations!AH18 -> 17302.92338 | S42: =Calculations!AI18 -> 354129.8156 | T42: =Calculations!AJ18 -> 421290.5794 | U42: =Calculations!AK18 -> 348969.9141 | V42: =Calculations!AL18 -> 299859.69 | W42: =Calculations!AM18 -> 252119.3555 | X42: =Calculations!AN18 -> 206752.9449 | Y42: =Calculations!AO18 -> 199172.3518
A43: To return to "Performance Table" click on blue tab below | N43: =Calculations!M19 -> 2013 | O43: =+IF(Calculations!C19=0,"","Withdrawal") -> Withdrawal | Q43: =Calculations!AH19 -> 17822.01109 | S43: =Calculations!AI19 -> 373361.0798 | T43: =Calculations!AJ19 -> 451199.7402 | U43: =Calculations!AK19 -> 364820.7136 | V43: =Calculations!AL19 -> 305196.5071 | W43: =Calculations!AM19 -> 248913.3124 | X43: =Calculations!AN19 -> 196934.8809 | Y43: =Calculations!AO19 -> 211469.6771
N44: =Calculations!M20 -> 2014 | O44: =+IF(Calculations!C20=0,"","Withdrawal") -> Withdrawal | Q44: =Calculations!AH20 -> 18356.67142 | S44: =Calculations!AI20 -> 360584.683 | T44: =Calculations!AJ20 -> 433083.1467 | U44: =Calculations!AK20 -> 355568.4001 | V44: =Calculations!AL20 -> 292938.8108 | W44: =Calculations!AM20 -> 234293.2839 | X44: =Calculations!AN20 -> 180555.4129 | Y44: =Calculations!AO20 -> 202698.5978
N45: =Calculations!M21 -> 2015 | O45: =+IF(Calculations!C21=0,"","Withdrawal") -> Withdrawal | Q45: =Calculations!AH21 -> 18907.37156 | S45: =Calculations!AI21 -> 319833.7214 | T45: =Calculations!AJ21 -> 384051.3029 | U45: =Calculations!AK21 -> 318625.2812 | V45: =Calculations!AL21 -> 262172.9405 | W45: =Calculations!AM21 -> 208301.2149 | X45: =Calculations!AN21 -> 158037.6509 | Y45: =Calculations!AO21 -> 183118.2286
N46: =Calculations!M22 -> 2016 | O46: =+IF(Calculations!C22=0,"","Withdrawal") -> Withdrawal | Q46: =Calculations!AH22 -> 19474.59271 | S46: =Calculations!AI22 -> 337161.6268 | T46: =Calculations!AJ22 -> 399858.7183 | U46: =Calculations!AK22 -> 331468.0357 | V46: =Calculations!AL22 -> 264146.0686 | W46: =Calculations!AM22 -> 201780.3788 | X46: =Calculations!AN22 -> 145290.3587 | Y46: =Calculations!AO22 -> 175721.9706
N47: =Calculations!M23 -> 2017 | O47: =+IF(Calculations!C23=0,"","Withdrawal") -> Withdrawal | Q47: =Calculations!AH23 -> 20058.83049 | S47: =Calculations!AI23 -> 357534.4946 | T47: =Calculations!AJ23 -> 434442.421 | U47: =Calculations!AK23 -> 351081.1795 | V47: =Calculations!AL23 -> 269807.0578 | W47: =Calculations!AM23 -> 196865.9124 | X47: =Calculations!AN23 -> 132893.8097 | Y47: =Calculations!AO23 -> 175989.267
N48: =Calculations!M24 -> 2018 | O48: =+IF(Calculations!C24=0,"","Withdrawal") -> Withdrawal | Q48: =Calculations!AH24 -> 20660.5954 | S48: =Calculations!AI24 -> 309933.5484 | T48: =Calculations!AJ24 -> 380611.8412 | U48: =Calculations!AK24 -> 309757.1106 | V48: =Calculations!AL24 -> 237402.9701 | W48: =Calculations!AM24 -> 170654.8094 | X48: =Calculations!AN24 -> 110523.7757 | Y48: =Calculations!AO24 -> 147926.0298
N49: =Calculations!M25 -> 2019 | O49: =+IF(Calculations!C25=0,"","Withdrawal") -> Withdrawal | Q49: =Calculations!AH25 -> 21280.41327 | S49: =Calculations!AI25 -> 340020.1722 | T49: =Calculations!AJ25 -> 420854.4223 | U49: =Calculations!AK25 -> 337683.3037 | V49: =Calculations!AL25 -> 247308.1088 | W49: =Calculations!AM25 -> 167099.8086 | X49: =Calculations!AN25 -> 97684.37879 | Y49: =Calculations!AO25 -> 150987.0498
N50: =Calculations!M26 -> 2020 | O50: =+IF(Calculations!C26=0,"","Withdrawal") -> Withdrawal | Q50: =Calculations!AH26 -> 21918.82566 | S50: =Calculations!AI26 -> 336015.4277 | T50: =Calculations!AJ26 -> 457087.5615 | U50: =Calculations!AK26 -> 335280.2965 | V50: =Calculations!AL26 -> 237234.9599 | W50: =Calculations!AM26 -> 151531.3865 | X50: =Calculations!AN26 -> 78511.34906 | Y50: =Calculations!AO26 -> 144426.2116
N51: =Calculations!M27 -> 2021 | O51: =+IF(Calculations!C27=0,"","Withdrawal") -> Withdrawal | Q51: =Calculations!AH27 -> 22576.39043 | S51: =Calculations!AI27 -> 370047.595 | T51: =Calculations!AJ27 -> 458636.5801 | U51: =Calculations!AK27 -> 334415.6707 | V51: =Calculations!AL27 -> 226895.7527 | W51: =Calculations!AM27 -> 134775.0191 | X51: =Calculations!AN27 -> 57916.07686 | Y51: =Calculations!AO27 -> 135137.3345
N52: =Calculations!M28 -> 2022 | O52: =+IF(Calculations!C28=0,"","Withdrawal") -> Withdrawal | Q52: =Calculations!AH28 -> 23253.68215 | S52: =Calculations!AI28 -> 318270.1737 | T52: =Calculations!AJ28 -> 350061.6822 | U52: =Calculations!AK28 -> 264264.4471 | V52: =Calculations!AL28 -> 178614.5084 | W52: =Calculations!AM28 -> 100689.3076 | X52: =Calculations!AN28 -> 31741.21458 | Y52: =Calculations!AO28 -> 95185.74573
N53: =Calculations!M29 -> 2023 | O53: =+IF(Calculations!C29=0,"","Withdrawal") -> Withdrawal | Q53: =Calculations!AH29 -> 23951.29261 | S53: =Calculations!AI29 -> 323779.4461 | T53: =Calculations!AJ29 -> 367610.2541 | U53: =Calculations!AK29 -> 261731.3183 | V53: =Calculations!AL29 -> 168043.1299 | W53: =Calculations!AM29 -> 83662.48623 | X53: =Calculations!AN29 -> 9777.934379 | Y53: =Calculations!AO29 -> 83804.31544
N54: Ending account balances shown in graph above

Sheet Index-based 7Twelve components
B2: 7Twelve Portfolio Model (65% equities and diversifiers / 35% fixed income)
B4: Asset Class | C4: Each index is equally weighted at 8.33% in the 7Twelve model
B5: US Large cap | C5: S&P 500 Index (TR)
B6: US Mid Cap | C6: S&P Midcap 400 Index (TR)
B7: US Small Cap | C7: S&P Small Cap 600 Index (TR)
B8: Non-US Developed | C8: MSCI EAFE Index NR USD
B9: Emerging | C9: MSCI EM Index GR USD
B10: Real Estate | C10: S&P Global REIT Index TR USD
B11: Natural Resources | C11: S&P North American Natural Resources Index TR
B12: Commodities | C12: Deutsche Bank Liquid Commodity Optimum Yield Diversified Commodity Index Total Return
B13: US Bonds | C13: Bloomberg US Aggregate Bond Index TR USD
B14: TIPS | C14: Bloomberg U.S. Treasury US TIPS Index TR USD
B15: Non-US Bonds | C15: Bloomberg Global Treasury Index TR
B16: Cash | C16: US Treasury Bill 90 Day TR

Sheet Calculations (hidden)
AF1: Initial | AG1: ='Performance Table'!U5 -> 0.05
F2: Annual Returns | O2: Rolling 3-Year Returns | Y2: Growth of $10,000 | AF2: COLA | AG2: ='Performance Table'!U6 -> 0.03 | AJ2: Distribution Portfolio
A3: Year | B3: Year Selector | C3: Year Counter | D3: ='Performance Table'!K4 -> Index-based 7Twelve Portfolio | E3: ='Performance Table'!L4 -> Active 7Twelve Portfolio | F3: ='Performance Table'!M4 -> Passive 7Twelve Portfolio | G3: ='Performance Table'!N4 -> Passive 7Twelve 20% Extra Cash | H3: ='Performance Table'!O4 -> Passive 7Twelve 40% Extra Cash | I3: ='Performance Table'!P4 -> Passive 7Twelve 60% Extra Cash | J3: ='Performance Table'!R4 -> Your Custom Portfolio | M3: Year | N3: =+D3 -> Index-based 7Twelve Portfolio | O3: Active 7Twelve Portfolio | P3: Passive 7Twelve Portfolio | Q3: Passive 7Twelve 20% Extra Cash | R3: Passive 7Twelve 40% Extra Cash | S3: Passive 7Twelve 60% Extra Cash | T3: Your Custom Portfolio | X3: =+N3 -> Index-based 7Twelve Portfolio | Y3: Active 7Twelve Portfolio | Z3: Passive 7Twelve Portfolio | AA3: Passive 7Twelve 20% Extra Cash | AB3: Passive 7Twelve 40% Extra Cash | AC3: Passive 7Twelve 60% Extra Cash | AD3: Your Custom Portfolio | AF3: Starting Balance | AG3: ='Performance Table'!U4 -> 250000 | AH3: Annual Withdrawal | AI3: =+X3 -> Index-based 7Twelve Portfolio | AJ3: Active 7Twelve Portfolio | AK3: Passive 7Twelve Portfolio | AL3: Passive 7Twelve 20% Extra Cash | AM3: Passive 7Twelve 40% Extra Cash | AN3: Passive 7Twelve 60% Extra Cash | AO3: Your Custom Portfolio
A5: ='Performance Table'!I5 -> 1999 | B5: ='Performance Table'!J5 -> 0 | C5: =IF('Performance Table'!J5<0,0,IF('Performance Table'!J5=0,0,IF('Performance Table'!J5=1,1,IF('Performance Table'!J5>1,0)))) -> 0 | D5: =+IF('Performance Table'!$J5=1,'Performance Table'!K5/100+1,"") ->  | E5: =+IF('Performance Table'!$J5=1,'Performance Table'!L5/100+1,"") ->  | F5: =+IF('Performance Table'!$J5=1,'Performance Table'!M5/100+1,"") ->  | G5: =+IF('Performance Table'!$J5=1,'Performance Table'!N5/100+1,"") ->  | H5: =+IF('Performance Table'!$J5=1,'Performance Table'!O5/100+1,"") ->  | I5: =+IF('Performance Table'!$J5=1,'Performance Table'!P5/100+1,"") ->  | J5: =+IF('Performance Table'!$J5=1,'Performance Table'!R5/100+1,"") ->  | M5: =+IF(B5=1,A5,IF(B5<>1,"--","--")) -> -- | N5: =+IF(SUM($C5:$C5)=3,PRODUCT(Calculations!D5:D5)-1,"") ->  | O5: =+IF(SUM($C5:$C5)=3,PRODUCT(Calculations!E5:E5)-1,"") ->  | P5: =+IF(SUM($C5:$C5)=3,PRODUCT(Calculations!F5:F5)-1,"") ->  | Q5: =+IF(SUM($C5:$C5)=3,PRODUCT(Calculations!G5:G5)-1,"") ->  | R5: =+IF(SUM($C5:$C5)=3,PRODUCT(Calculations!H5:H5)-1,"") ->  | S5: =+IF(SUM($C5:$C5)=3,PRODUCT(Calculations!I5:I5)-1,"") ->  | T5: =+IF(SUM($C5:$C5)=3,PRODUCT(Calculations!J5:J5)-1,"") ->  | X5: =+IF('Performance Table'!$J5=1,10000*Calculations!D5,"--") -> -- | Y5: =+IF('Performance Table'!$J5=1,10000*Calculations!E5,"--") -> -- | Z5: =+IF('Performance Table'!$J5=1,10000*Calculations!F5,"--") -> -- | AA5: =+IF('Performance Table'!$J5=1,10000*Calculations!G5,"--") -> -- | AB5: =+IF('Performance Table'!$J5=1,10000*Calculations!H5,"--") -> -- | AC5: =+IF('Performance Table'!$J5=1,10000*Calculations!I5,"--") -> -- | AD5: =+IF('Performance Table'!$J5=1,10000*Calculations!J5,"--") -> -- | AH5: =+IF('Performance Table'!$J5=1,AG3*AG1,"--") -> -- | AI5: =+IF('Performance Table'!$J5=1,($AG3*D5)-$AH5,"--") -> -- | AJ5: =+IF('Performance Table'!$J5=1,($AG3*E5)-$AH5,"--") -> -- | AK5: =+IF('Performance Table'!$J5=1,($AG3*F5)-$AH5,"--") -> -- | AL5: =+IF('Performance Table'!$J5=1,($AG3*G5)-$AH5,"--") -> -- | AM5: =+IF('Performance Table'!$J5=1,($AG3*H5)-$AH5,"--") -> -- | AN5: =+IF('Performance Table'!$J5=1,($AG3*I5)-$AH5,"--") -> -- | AO5: =+IF('Performance Table'!$J5=1,($AG3*J5)-$AH5,"--") -> --
A6: ='Performance Table'!I6 -> 2000 | B6: ='Performance Table'!J6 -> 0 | C6: =IF('Performance Table'!J6<0,0,IF('Performance Table'!J6=0,0,IF('Performance Table'!J6=1,1,IF('Performance Table'!J6>1,0)))) -> 0 | D6: =+IF('Performance Table'!$J6=1,'Performance Table'!K6/100+1,"") ->  | E6: =+IF('Performance Table'!$J6=1,'Performance Table'!L6/100+1,"") ->  | F6: =+IF('Performance Table'!$J6=1,'Performance Table'!M6/100+1,"") ->  | G6: =+IF('Performance Table'!$J6=1,'Performance Table'!N6/100+1,"") ->  | H6: =+IF('Performance Table'!$J6=1,'Performance Table'!O6/100+1,"") ->  | I6: =+IF('Performance Table'!$J6=1,'Performance Table'!P6/100+1,"") ->  | J6: =+IF('Performance Table'!$J6=1,'Performance Table'!R6/100+1,"") ->  | M6: =+IF(B6=1,A6,IF(B6<>1,"--","--")) -> -- | X6: =+IF('Performance Table'!$J5+'Performance Table'!$J6=2,X5*Calculations!D6,IF('Performance Table'!$J6=1,10000*D6,"--")) -> -- | Y6: =+IF('Performance Table'!$J5+'Performance Table'!$J6=2,Y5*Calculations!E6,IF('Performance Table'!$J6=1,10000*E6,"--")) -> -- | Z6: =+IF('Performance Table'!$J5+'Performance Table'!$J6=2,Z5*Calculations!F6,IF('Performance Table'!$J6=1,10000*F6,"--")) -> -- | AA6: =+IF('Performance Table'!$J5+'Performance Table'!$J6=2,AA5*Calculations!G6,IF('Performance Table'!$J6=1,10000*G6,"--")) -> -- | AB6: =+IF('Performance Table'!$J5+'Performance Table'!$J6=2,AB5*Calculations!H6,IF('Performance Table'!$J6=1,10000*H6,"--")) -> -- | AC6: =+IF('Performance Table'!$J5+'Performance Table'!$J6=2,AC5*Calculations!I6,IF('Performance Table'!$J6=1,10000*I6,"--")) -> -- | AD6: =+IF('Performance Table'!$J5+'Performance Table'!$J6=2,AD5*Calculations!J6,IF('Performance Table'!$J6=1,10000*J6,"--")) -> -- | AH6: =+IF('Performance Table'!$J5+'Performance Table'!$J6=2,AH5*(1+AG$2),IF('Performance Table'!$J6=1,AG$3*AG$1,"--")) -> -- | AI6: =+IF('Performance Table'!$J5+'Performance Table'!$J6=2,(AI5*D6)-$AH6,IF('Performance Table'!$J6=1,($AG$3*D6)-$AH6,"--")) -> -- | AJ6: =+IF('Performance Table'!$J5+'Performance Table'!$J6=2,(AJ5*E6)-$AH6,IF('Performance Table'!$J6=1,($AG$3*E6)-$AH6,"--")) -> -- | AK6: =+IF('Performance Table'!$J5+'Performance Table'!$J6=2,(AK5*F6)-$AH6,IF('Performance Table'!$J6=1,($AG$3*F6)-$AH6,"--")) -> -- | AL6: =+IF('Performance Table'!$J5+'Performance Table'!$J6=2,(AL5*G6)-$AH6,IF('Performance Table'!$J6=1,($AG$3*G6)-$AH6,"--")) -> -- | AM6: =+IF('Performance Table'!$J5+'Performance Table'!$J6=2,(AM5*H6)-$AH6,IF('Performance Table'!$J6=1,($AG$3*H6)-$AH6,"--")) -> -- | AN6: =+IF('Performance Table'!$J5+'Performance Table'!$J6=2,(AN5*I6)-$AH6,IF('Performance Table'!$J6=1,($AG$3*I6)-$AH6,"--")) -> -- | AO6: =+IF('Performance Table'!$J5+'Performance Table'!$J6=2,(AO5*J6)-$AH6,IF('Performance Table'!$J6=1,($AG$3*J6)-$AH6,"--")) -> --
A7: ='Performance Table'!I7 -> 2001 | B7: ='Performance Table'!J7 -> 1 | C7: =IF('Performance Table'!J7<0,0,IF('Performance Table'!J7=0,0,IF('Performance Table'!J7=1,1,IF('Performance Table'!J7>1,0)))) -> 1 | D7: =+IF('Performance Table'!$J7=1,'Performance Table'!K7/100+1,"") -> 0.9790984919 | E7: =+IF('Performance Table'!$J7=1,'Performance Table'!L7/100+1,"") -> 1.029776904 | F7: =+IF('Performance Table'!$J7=1,'Performance Table'!M7/100+1,"") -> 0.9805872582 | G7: =+IF('Performance Table'!$J7=1,'Performance Table'!N7/100+1,"") -> 0.9927992821 | H7: =+IF('Performance Table'!$J7=1,'Performance Table'!O7/100+1,"") -> 1.005011306 | I7: =+IF('Performance Table'!$J7=1,'Performance Table'!P7/100+1,"") -> 1.01722333 | J7: =+IF('Performance Table'!$J7=1,'Performance Table'!R7/100+1,"") -> 0.9798895716 | M7: 2001 | N7: =+IF(SUM($C5:$C7)=3,PRODUCT(Calculations!D5:D7)-1,"") ->  | O7: =+IF(SUM($C5:$C7)=3,PRODUCT(Calculations!E5:E7)-1,"") ->  | P7: =+IF(SUM($C5:$C7)=3,PRODUCT(Calculations!F5:F7)-1,"") ->  | Q7: =+IF(SUM($C5:$C7)=3,PRODUCT(Calculations!G5:G7)-1,"") ->  | R7: =+IF(SUM($C5:$C7)=3,PRODUCT(Calculations!H5:H7)-1,"") ->  | S7: =+IF(SUM($C5:$C7)=3,PRODUCT(Calculations!I5:I7)-1,"") ->  | T7: =+IF(SUM($C5:$C7)=3,PRODUCT(Calculations!J5:J7)-1,"") ->  | X7: =+IF('Performance Table'!$J6+'Performance Table'!$J7=2,X6*Calculations!D7,IF('Performance Table'!$J7=1,10000*D7,"--")) -> 9790.984919 | Y7: =+IF('Performance Table'!$J6+'Performance Table'!$J7=2,Y6*Calculations!E7,IF('Performance Table'!$J7=1,10000*E7,"--")) -> 10297.76904 | Z7: =+IF('Performance Table'!$J6+'Performance Table'!$J7=2,Z6*Calculations!F7,IF('Performance Table'!$J7=1,10000*F7,"--")) -> 9805.872582 | AA7: =+IF('Performance Table'!$J6+'Performance Table'!$J7=2,AA6*Calculations!G7,IF('Performance Table'!$J7=1,10000*G7,"--")) -> 9927.992821 | AB7: =+IF('Performance Table'!$J6+'Performance Table'!$J7=2,AB6*Calculations!H7,IF('Performance Table'!$J7=1,10000*H7,"--")) -> 10050.11306 | AC7: =+IF('Performance Table'!$J6+'Performance Table'!$J7=2,AC6*Calculations!I7,IF('Performance Table'!$J7=1,10000*I7,"--")) -> 10172.2333 | AD7: =+IF('Performance Table'!$J6+'Performance Table'!$J7=2,AD6*Calculations!J7,IF('Performance Table'!$J7=1,10000*J7,"--")) -> 9798.895716 | AH7: =+IF('Performance Table'!$J6+'Performance Table'!$J7=2,AH6*(1+AG$2),IF('Performance Table'!$J7=1,AG$3*AG$1,"--")) -> 12500 | AI7: =+IF('Performance Table'!$J6+'Performance Table'!$J7=2,(AI6*D7)-$AH7,IF('Performance Table'!$J7=1,($AG$3*D7)-$AH7,"--")) -> 232274.623 | AJ7: =+IF('Performance Table'!$J6+'Performance Table'!$J7=2,(AJ6*E7)-$AH7,IF('Performance Table'!$J7=1,($AG$3*E7)-$AH7,"--")) -> 244944.2261 | AK7: =+IF('Performance Table'!$J6+'Performance Table'!$J7=2,(AK6*F7)-$AH7,IF('Performance Table'!$J7=1,($AG$3*F7)-$AH7,"--")) -> 232646.8145 | AL7: =+IF('Performance Table'!$J6+'Performance Table'!$J7=2,(AL6*G7)-$AH7,IF('Performance Table'!$J7=1,($AG$3*G7)-$AH7,"--")) -> 235699.8205 | AM7: =+IF('Performance Table'!$J6+'Performance Table'!$J7=2,(AM6*H7)-$AH7,IF('Performance Table'!$J7=1,($AG$3*H7)-$AH7,"--")) -> 238752.8265 | AN7: =+IF('Performance Table'!$J6+'Performance Table'!$J7=2,(AN6*I7)-$AH7,IF('Performance Table'!$J7=1,($AG$3*I7)-$AH7,"--")) -> 241805.8325 | AO7: =+IF('Performance Table'!$J6+'Performance Table'!$J7=2,(AO6*J7)-$AH7,IF('Performance Table'!$J7=1,($AG$3*J7)-$AH7,"--")) -> 232472.3929
A8: ='Performance Table'!I8 -> 2002 | B8: ='Performance Table'!J8 -> 1 | C8: =IF('Performance Table'!J8<0,0,IF('Performance Table'!J8=0,0,IF('Performance Table'!J8=1,1,IF('Performance Table'!J8>1,0)))) -> 1 | D8: =+IF('Performance Table'!$J8=1,'Performance Table'!K8/100+1,"") -> 0.9943785183 | E8: =+IF('Performance Table'!$J8=1,'Performance Table'!L8/100+1,"") -> 1.021798021 | F8: =+IF('Performance Table'!$J8=1,'Performance Table'!M8/100+1,"") -> 0.9936379731 | G8: =+IF('Performance Table'!$J8=1,'Performance Table'!N8/100+1,"") -> 0.9982108485 | H8: =+IF('Performance Table'!$J8=1,'Performance Table'!O8/100+1,"") -> 1.002783724 | I8: =+IF('Performance Table'!$J8=1,'Performance Table'!P8/100+1,"") -> 1.007356599 | J8: =+IF('Performance Table'!$J8=1,'Performance Table'!R8/100+1,"") -> 0.9351327493 | M8: 2002 | N8: =+IF(SUM($C6:$C8)=3,PRODUCT(Calculations!D6:D8)-1,"") ->  | O8: =+IF(SUM($C6:$C8)=3,PRODUCT(Calculations!E6:E8)-1,"") ->  | P8: =+IF(SUM($C6:$C8)=3,PRODUCT(Calculations!F6:F8)-1,"") ->  | Q8: =+IF(SUM($C6:$C8)=3,PRODUCT(Calculations!G6:G8)-1,"") ->  | R8: =+IF(SUM($C6:$C8)=3,PRODUCT(Calculations!H6:H8)-1,"") ->  | S8: =+IF(SUM($C6:$C8)=3,PRODUCT(Calculations!I6:I8)-1,"") ->  | T8: =+IF(SUM($C6:$C8)=3,PRODUCT(Calculations!J6:J8)-1,"") ->  | X8: =+IF('Performance Table'!$J7+'Performance Table'!$J8=2,X7*Calculations!D8,IF('Performance Table'!$J8=1,10000*D8,"--")) -> 9735.945076 | Y8: =+IF('Performance Table'!$J7+'Performance Table'!$J8=2,Y7*Calculations!E8,IF('Performance Table'!$J8=1,10000*E8,"--")) -> 10522.24002 | Z8: =+IF('Performance Table'!$J7+'Performance Table'!$J8=2,Z7*Calculations!F8,IF('Performance Table'!$J8=1,10000*F8,"--")) -> 9743.487357 | AA8: =+IF('Performance Table'!$J7+'Performance Table'!$J8=2,AA7*Calculations!G8,IF('Performance Table'!$J8=1,10000*G8,"--")) -> 9910.230138 | AB8: =+IF('Performance Table'!$J7+'Performance Table'!$J8=2,AB7*Calculations!H8,IF('Performance Table'!$J8=1,10000*H8,"--")) -> 10078.0898 | AC8: =+IF('Performance Table'!$J7+'Performance Table'!$J8=2,AC7*Calculations!I8,IF('Performance Table'!$J8=1,10000*I8,"--")) -> 10247.06634 | AD8: =+IF('Performance Table'!$J7+'Performance Table'!$J8=2,AD7*Calculations!J8,IF('Performance Table'!$J8=1,10000*J8,"--")) -> 9163.268291 | AH8: =+IF('Performance Table'!$J7+'Performance Table'!$J8=2,AH7*(1+AG$2),IF('Performance Table'!$J8=1,AG$3*AG$1,"--")) -> 12875 | AI8: =+IF('Performance Table'!$J7+'Performance Table'!$J8=2,(AI7*D8)-$AH8,IF('Performance Table'!$J8=1,($AG$3*D8)-$AH8,"--")) -> 218093.8954 | AJ8: =+IF('Performance Table'!$J7+'Performance Table'!$J8=2,(AJ7*E8)-$AH8,IF('Performance Table'!$J8=1,($AG$3*E8)-$AH8,"--")) -> 237408.5253 | AK8: =+IF('Performance Table'!$J7+'Performance Table'!$J8=2,(AK7*F8)-$AH8,IF('Performance Table'!$J8=1,($AG$3*F8)-$AH8,"--")) -> 218291.7093 | AL8: =+IF('Performance Table'!$J7+'Performance Table'!$J8=2,(AL7*G8)-$AH8,IF('Performance Table'!$J8=1,($AG$3*G8)-$AH8,"--")) -> 222403.1178 | AM8: =+IF('Performance Table'!$J7+'Performance Table'!$J8=2,(AM7*H8)-$AH8,IF('Performance Table'!$J8=1,($AG$3*H8)-$AH8,"--")) -> 226542.4484 | AN8: =+IF('Performance Table'!$J7+'Performance Table'!$J8=2,(AN7*I8)-$AH8,IF('Performance Table'!$J8=1,($AG$3*I8)-$AH8,"--")) -> 230709.7011 | AO8: =+IF('Performance Table'!$J7+'Performance Table'!$J8=2,(AO7*J8)-$AH8,IF('Performance Table'!$J8=1,($AG$3*J8)-$AH8,"--")) -> 204517.5479
A9: ='Performance Table'!I9 -> 2003 | B9: ='Performance Table'!J9 -> 1 | C9: =IF('Performance Table'!J9<0,0,IF('Performance Table'!J9=0,0,IF('Performance Table'!J9=1,1,IF('Performance Table'!J9>1,0)))) -> 1 | D9: =+IF('Performance Table'!$J9=1,'Performance Table'!K9/100+1,"") -> 1.270970893 | E9: =+IF('Performance Table'!$J9=1,'Performance Table'!L9/100+1,"") -> 1.28815671 | F9: =+IF('Performance Table'!$J9=1,'Performance Table'!M9/100+1,"") -> 1.26952705 | G9: =+IF('Performance Table'!$J9=1,'Performance Table'!N9/100+1,"") -> 1.217412934 | H9: =+IF('Performance Table'!$J9=1,'Performance Table'!O9/100+1,"") -> 1.165298819 | I9: =+IF('Performance Table'!$J9=1,'Performance Table'!P9/100+1,"") -> 1.113184704 | J9: =+IF('Performance Table'!$J9=1,'Performance Table'!R9/100+1,"") -> 1.200464716 | M9: 2003 | N9: =+IF(SUM($C7:$C9)=3,PRODUCT(Calculations!D7:D9)-1,"") -> 0.2374102803 | O9: =+IF(SUM($C7:$C9)=3,PRODUCT(Calculations!E7:E9)-1,"") -> 0.3554294093 | P9: =+IF(SUM($C7:$C9)=3,PRODUCT(Calculations!F7:F9)-1,"") -> 0.2369620758 | Q9: =+IF(SUM($C7:$C9)=3,PRODUCT(Calculations!G7:G9)-1,"") -> 0.2064842353 | R9: =+IF(SUM($C7:$C9)=3,PRODUCT(Calculations!H7:H9)-1,"") -> 0.1743986143 | S9: =+IF(SUM($C7:$C9)=3,PRODUCT(Calculations!I7:I9)-1,"") -> 0.1406877512 | T9: =+IF(SUM($C7:$C9)=3,PRODUCT(Calculations!J7:J9)-1,"") -> 0.1000180271 | X9: =+IF('Performance Table'!$J8+'Performance Table'!$J9=2,X8*Calculations!D9,IF('Performance Table'!$J9=1,10000*D9,"--")) -> 12374.1028 | Y9: =+IF('Performance Table'!$J8+'Performance Table'!$J9=2,Y8*Calculations!E9,IF('Performance Table'!$J9=1,10000*E9,"--")) -> 13554.29409 | Z9: =+IF('Performance Table'!$J8+'Performance Table'!$J9=2,Z8*Calculations!F9,IF('Performance Table'!$J9=1,10000*F9,"--")) -> 12369.62076 | AA9: =+IF('Performance Table'!$J8+'Performance Table'!$J9=2,AA8*Calculations!G9,IF('Performance Table'!$J9=1,10000*G9,"--")) -> 12064.84235 | AB9: =+IF('Performance Table'!$J8+'Performance Table'!$J9=2,AB8*Calculations!H9,IF('Performance Table'!$J9=1,10000*H9,"--")) -> 11743.98614 | AC9: =+IF('Performance Table'!$J8+'Performance Table'!$J9=2,AC8*Calculations!I9,IF('Performance Table'!$J9=1,10000*I9,"--")) -> 11406.87751 | AD9: =+IF('Performance Table'!$J8+'Performance Table'!$J9=2,AD8*Calculations!J9,IF('Performance Table'!$J9=1,10000*J9,"--")) -> 11000.18027 | AH9: =+IF('Performance Table'!$J8+'Performance Table'!$J9=2,AH8*(1+AG$2),IF('Performance Table'!$J9=1,AG$3*AG$1,"--")) -> 13261.25 | AI9: =+IF('Performance Table'!$J8+'Performance Table'!$J9=2,(AI8*D9)-$AH9,IF('Performance Table'!$J9=1,($AG$3*D9)-$AH9,"--")) -> 263929.7429 | AJ9: =+IF('Performance Table'!$J8+'Performance Table'!$J9=2,(AJ8*E9)-$AH9,IF('Performance Table'!$J9=1,($AG$3*E9)-$AH9,"--")) -> 292558.135 | AK9: =+IF('Performance Table'!$J8+'Performance Table'!$J9=2,(AK8*F9)-$AH9,IF('Performance Table'!$J9=1,($AG$3*F9)-$AH9,"--")) -> 263865.9796 | AL9: =+IF('Performance Table'!$J8+'Performance Table'!$J9=2,(AL8*G9)-$AH9,IF('Performance Table'!$J9=1,($AG$3*G9)-$AH9,"--")) -> 257495.1823 | AM9: =+IF('Performance Table'!$J8+'Performance Table'!$J9=2,(AM8*H9)-$AH9,IF('Performance Table'!$J9=1,($AG$3*H9)-$AH9,"--")) -> 250728.3977 | AN9: =+IF('Performance Table'!$J8+'Performance Table'!$J9=2,(AN8*I9)-$AH9,IF('Performance Table'!$J9=1,($AG$3*I9)-$AH9,"--")) -> 243561.2603 | AO9: =+IF('Performance Table'!$J8+'Performance Table'!$J9=2,(AO8*J9)-$AH9,IF('Performance Table'!$J9=1,($AG$3*J9)-$AH9,"--")) -> 232254.8502
A10: ='Performance Table'!I10 -> 2004 | B10: ='Performance Table'!J10 -> 1 | C10: =IF('Performance Table'!J10<0,0,IF('Performance Table'!J10=0,0,IF('Performance Table'!J10=1,1,IF('Performance Table'!J10>1,0)))) -> 1 | D10: =+IF('Performance Table'!$J10=1,'Performance Table'!K10/100+1,"") -> 1.179569849 | E10: =+IF('Performance Table'!$J10=1,'Performance Table'!L10/100+1,"") -> 1.197935197 | F10: =+IF('Performance Table'!$J10=1,'Performance Table'!M10/100+1,"") -> 1.178044664 | G10: =+IF('Performance Table'!$J10=1,'Performance Table'!N10/100+1,"") -> 1.144651573 | H10: =+IF('Performance Table'!$J10=1,'Performance Table'!O10/100+1,"") -> 1.111258482 | I10: =+IF('Performance Table'!$J10=1,'Performance Table'!P10/100+1,"") -> 1.077865391 | J10: =+IF('Performance Table'!$J10=1,'Performance Table'!R10/100+1,"") -> 1.095387482 | M10: 2004 | N10: =+IF(SUM($C8:$C10)=3,PRODUCT(Calculations!D8:D10)-1,"") -> 0.4907712237 | O10: =+IF(SUM($C8:$C10)=3,PRODUCT(Calculations!E8:E10)-1,"") -> 0.5767654038 | P10: =+IF(SUM($C8:$C10)=3,PRODUCT(Calculations!F8:F10)-1,"") -> 0.486044776 | Q10: =+IF(SUM($C8:$C10)=3,PRODUCT(Calculations!G8:G10)-1,"") -> 0.391020423 | R10: =+IF(SUM($C8:$C10)=3,PRODUCT(Calculations!H8:H10)-1,"") -> 0.2985529749 | S10: =+IF(SUM($C8:$C10)=3,PRODUCT(Calculations!I8:I10)-1,"") -> 0.2086901793 | T10: =+IF(SUM($C8:$C10)=3,PRODUCT(Calculations!J8:J10)-1,"") -> 0.2296752738 | X10: =+IF('Performance Table'!$J9+'Performance Table'!$J10=2,X9*Calculations!D10,IF('Performance Table'!$J10=1,10000*D10,"--")) -> 14596.11857 | Y10: =+IF('Performance Table'!$J9+'Performance Table'!$J10=2,Y9*Calculations!E10,IF('Performance Table'!$J10=1,10000*E10,"--")) -> 16237.16596 | Z10: =+IF('Performance Table'!$J9+'Performance Table'!$J10=2,Z9*Calculations!F10,IF('Performance Table'!$J10=1,10000*F10,"--")) -> 14571.96572 | AA10: =+IF('Performance Table'!$J9+'Performance Table'!$J10=2,AA9*Calculations!G10,IF('Performance Table'!$J10=1,10000*G10,"--")) -> 13810.04077 | AB10: =+IF('Performance Table'!$J9+'Performance Table'!$J10=2,AB9*Calculations!H10,IF('Performance Table'!$J10=1,10000*H10,"--")) -> 13050.60421 | AC10: =+IF('Performance Table'!$J9+'Performance Table'!$J10=2,AC9*Calculations!I10,IF('Performance Table'!$J10=1,10000*I10,"--")) -> 12295.07849 | AD10: =+IF('Performance Table'!$J9+'Performance Table'!$J10=2,AD9*Calculations!J10,IF('Performance Table'!$J10=1,10000*J10,"--")) -> 12049.45977 | AH10: =+IF('Performance Table'!$J9+'Performance Table'!$J10=2,AH9*(1+AG$2),IF('Performance Table'!$J10=1,AG$3*AG$1,"--")) -> 13659.0875 | AI10: =+IF('Performance Table'!$J9+'Performance Table'!$J10=2,(AI9*D10)-$AH10,IF('Performance Table'!$J10=1,($AG$3*D10)-$AH10,"--")) -> 297664.4794 | AJ10: =+IF('Performance Table'!$J9+'Performance Table'!$J10=2,(AJ9*E10)-$AH10,IF('Performance Table'!$J10=1,($AG$3*E10)-$AH10,"--")) -> 336806.5995 | AK10: =+IF('Performance Table'!$J9+'Performance Table'!$J10=2,(AK9*F10)-$AH10,IF('Performance Table'!$J10=1,($AG$3*F10)-$AH10,"--")) -> 297186.8217 | AL10: =+IF('Performance Table'!$J9+'Performance Table'!$J10=2,(AL9*G10)-$AH10,IF('Performance Table'!$J10=1,($AG$3*G10)-$AH10,"--")) -> 281083.1779 | AM10: =+IF('Performance Table'!$J9+'Performance Table'!$J10=2,(AM9*H10)-$AH10,IF('Performance Table'!$J10=1,($AG$3*H10)-$AH10,"--")) -> 264964.971 | AN10: =+IF('Performance Table'!$J9+'Performance Table'!$J10=2,(AN9*I10)-$AH10,IF('Performance Table'!$J10=1,($AG$3*I10)-$AH10,"--")) -> 248867.1655 | AO10: =+IF('Performance Table'!$J9+'Performance Table'!$J10=2,(AO9*J10)-$AH10,IF('Performance Table'!$J10=1,($AG$3*J10)-$AH10,"--")) -> 240749.9681
A11: ='Performance Table'!I11 -> 2005 | B11: ='Performance Table'!J11 -> 1 | C11: =IF('Performance Table'!J11<0,0,IF('Performance Table'!J11=0,0,IF('Performance Table'!J11=1,1,IF('Performance Table'!J11>1,0)))) -> 1 | D11: =+IF('Performance Table'!$J11=1,'Performance Table'!K11/100+1,"") -> 1.12485622 | E11: =+IF('Performance Table'!$J11=1,'Performance Table'!L11/100+1,"") -> 1.129069003 | F11: =+IF('Performance Table'!$J11=1,'Performance Table'!M11/100+1,"") -> 1.12343558 | G11: =+IF('Performance Table'!$J11=1,'Performance Table'!N11/100+1,"") -> 1.104765978 | H11: =+IF('Performance Table'!$J11=1,'Performance Table'!O11/100+1,"") -> 1.086096376 | I11: =+IF('Performance Table'!$J11=1,'Performance Table'!P11/100+1,"") -> 1.067426774 | J11: =+IF('Performance Table'!$J11=1,'Performance Table'!R11/100+1,"") -> 1.050533085 | M11: 2005 | N11: =+IF(SUM($C9:$C11)=3,PRODUCT(Calculations!D9:D11)-1,"") -> 0.6863832556 | O11: =+IF(SUM($C9:$C11)=3,PRODUCT(Calculations!E9:E11)-1,"") -> 0.7422982886 | P11: =+IF(SUM($C9:$C11)=3,PRODUCT(Calculations!F9:F11)-1,"") -> 0.6801648288 | Q11: =+IF(SUM($C9:$C11)=3,PRODUCT(Calculations!G9:G11)-1,"") -> 0.5395064484 | R11: =+IF(SUM($C9:$C11)=3,PRODUCT(Calculations!H9:H11)-1,"") -> 0.4064385435 | S11: =+IF(SUM($C9:$C11)=3,PRODUCT(Calculations!I9:I11)-1,"") -> 0.2807661753 | T11: =+IF(SUM($C9:$C11)=3,PRODUCT(Calculations!J9:J11)-1,"") -> 0.3814237179 | X11: =+IF('Performance Table'!$J10+'Performance Table'!$J11=2,X10*Calculations!D11,IF('Performance Table'!$J11=1,10000*D11,"--")) -> 16418.53475 | Y11: =+IF('Performance Table'!$J10+'Performance Table'!$J11=2,Y10*Calculations!E11,IF('Performance Table'!$J11=1,10000*E11,"--")) -> 18332.88079 | Z11: =+IF('Performance Table'!$J10+'Performance Table'!$J11=2,Z10*Calculations!F11,IF('Performance Table'!$J11=1,10000*F11,"--")) -> 16370.66477 | AA11: =+IF('Performance Table'!$J10+'Performance Table'!$J11=2,AA10*Calculations!G11,IF('Performance Table'!$J11=1,10000*G11,"--")) -> 15256.8632 | AB11: =+IF('Performance Table'!$J10+'Performance Table'!$J11=2,AB10*Calculations!H11,IF('Performance Table'!$J11=1,10000*H11,"--")) -> 14174.21394 | AC11: =+IF('Performance Table'!$J10+'Performance Table'!$J11=2,AC10*Calculations!I11,IF('Performance Table'!$J11=1,10000*I11,"--")) -> 13124.09597 | AD11: =+IF('Performance Table'!$J10+'Performance Table'!$J11=2,AD10*Calculations!J11,IF('Performance Table'!$J11=1,10000*J11,"--")) -> 12658.35615 | AH11: =+IF('Performance Table'!$J10+'Performance Table'!$J11=2,AH10*(1+AG$2),IF('Performance Table'!$J11=1,AG$3*AG$1,"--")) -> 14068.86012 | AI11: =+IF('Performance Table'!$J10+'Performance Table'!$J11=2,(AI10*D11)-$AH11,IF('Performance Table'!$J11=1,($AG$3*D11)-$AH11,"--")) -> 320760.8808 | AJ11: =+IF('Performance Table'!$J10+'Performance Table'!$J11=2,(AJ10*E11)-$AH11,IF('Performance Table'!$J11=1,($AG$3*E11)-$AH11,"--")) -> 366209.0314 | AK11: =+IF('Performance Table'!$J10+'Performance Table'!$J11=2,(AK10*F11)-$AH11,IF('Performance Table'!$J11=1,($AG$3*F11)-$AH11,"--")) -> 319801.3893 | AL11: =+IF('Performance Table'!$J10+'Performance Table'!$J11=2,(AL10*G11)-$AH11,IF('Performance Table'!$J11=1,($AG$3*G11)-$AH11,"--")) -> 296462.2718 | AM11: =+IF('Performance Table'!$J10+'Performance Table'!$J11=2,(AM10*H11)-$AH11,IF('Performance Table'!$J11=1,($AG$3*H11)-$AH11,"--")) -> 273708.6347 | AN11: =+IF('Performance Table'!$J10+'Performance Table'!$J11=2,(AN10*I11)-$AH11,IF('Performance Table'!$J11=1,($AG$3*I11)-$AH11,"--")) -> 251578.6155 | AO11: =+IF('Performance Table'!$J10+'Performance Table'!$J11=2,(AO10*J11)-$AH11,IF('Performance Table'!$J11=1,($AG$3*J11)-$AH11,"--")) -> 238846.9466
A12: ='Performance Table'!I12 -> 2006 | B12: ='Performance Table'!J12 -> 1 | C12: =IF('Performance Table'!J12<0,0,IF('Performance Table'!J12=0,0,IF('Performance Table'!J12=1,1,IF('Performance Table'!J12>1,0)))) -> 1 | D12: =+IF('Performance Table'!$J12=1,'Performance Table'!K12/100+1,"") -> 1.152614035 | E12: =+IF('Performance Table'!$J12=1,'Performance Table'!L12/100+1,"") -> 1.159767383 | F12: =+IF('Performance Table'!$J12=1,'Performance Table'!M12/100+1,"") -> 1.149648663 | G12: =+IF('Performance Table'!$J12=1,'Performance Table'!N12/100+1,"") -> 1.129484757 | H12: =+IF('Performance Table'!$J12=1,'Performance Table'!O12/100+1,"") -> 1.109320851 | I12: =+IF('Performance Table'!$J12=1,'Performance Table'!P12/100+1,"") -> 1.089156945 | J12: =+IF('Performance Table'!$J12=1,'Performance Table'!R12/100+1,"") -> 1.121105263 | M12: 2006 | N12: =+IF(SUM($C10:$C12)=3,PRODUCT(Calculations!D10:D12)-1,"") -> 0.5293418759 | O12: =+IF(SUM($C10:$C12)=3,PRODUCT(Calculations!E10:E12)-1,"") -> 0.5686451121 | P12: =+IF(SUM($C10:$C12)=3,PRODUCT(Calculations!F10:F12)-1,"") -> 0.5215109044 | Q12: =+IF(SUM($C10:$C12)=3,PRODUCT(Calculations!G10:G12)-1,"") -> 0.4283149274 | R12: =+IF(SUM($C10:$C12)=3,PRODUCT(Calculations!H10:H12)-1,"") -> 0.3388768413 | S12: =+IF(SUM($C10:$C12)=3,PRODUCT(Calculations!I10:I12)-1,"") -> 0.2531212205 | T12: =+IF(SUM($C10:$C12)=3,PRODUCT(Calculations!J10:J12)-1,"") -> 0.2901015575 | X12: =+IF('Performance Table'!$J11+'Performance Table'!$J12=2,X11*Calculations!D12,IF('Performance Table'!$J12=1,10000*D12,"--")) -> 18924.23359 | Y12: =+IF('Performance Table'!$J11+'Performance Table'!$J12=2,Y11*Calculations!E12,IF('Performance Table'!$J12=1,10000*E12,"--")) -> 21261.87718 | Z12: =+IF('Performance Table'!$J11+'Performance Table'!$J12=2,Z11*Calculations!F12,IF('Performance Table'!$J12=1,10000*F12,"--")) -> 18820.51287 | AA12: =+IF('Performance Table'!$J11+'Performance Table'!$J12=2,AA11*Calculations!G12,IF('Performance Table'!$J12=1,10000*G12,"--")) -> 17232.39443 | AB12: =+IF('Performance Table'!$J11+'Performance Table'!$J12=2,AB11*Calculations!H12,IF('Performance Table'!$J12=1,10000*H12,"--")) -> 15723.75107 | AC12: =+IF('Performance Table'!$J11+'Performance Table'!$J12=2,AC11*Calculations!I12,IF('Performance Table'!$J12=1,10000*I12,"--")) -> 14294.20027 | AD12: =+IF('Performance Table'!$J11+'Performance Table'!$J12=2,AD11*Calculations!J12,IF('Performance Table'!$J12=1,10000*J12,"--")) -> 14191.3497 | AH12: =+IF('Performance Table'!$J11+'Performance Table'!$J12=2,AH11*(1+AG$2),IF('Performance Table'!$J12=1,AG$3*AG$1,"--")) -> 14490.92593 | AI12: =+IF('Performance Table'!$J11+'Performance Table'!$J12=2,(AI11*D12)-$AH12,IF('Performance Table'!$J12=1,($AG$3*D12)-$AH12,"--")) -> 355222.5672 | AJ12: =+IF('Performance Table'!$J11+'Performance Table'!$J12=2,(AJ11*E12)-$AH12,IF('Performance Table'!$J12=1,($AG$3*E12)-$AH12,"--")) -> 410226.3642 | AK12: =+IF('Performance Table'!$J11+'Performance Table'!$J12=2,(AK11*F12)-$AH12,IF('Performance Table'!$J12=1,($AG$3*F12)-$AH12,"--")) -> 353168.3138 | AL12: =+IF('Performance Table'!$J11+'Performance Table'!$J12=2,(AL11*G12)-$AH12,IF('Performance Table'!$J12=1,($AG$3*G12)-$AH12,"--")) -> 320358.6912 | AM12: =+IF('Performance Table'!$J11+'Performance Table'!$J12=2,(AM11*H12)-$AH12,IF('Performance Table'!$J12=1,($AG$3*H12)-$AH12,"--")) -> 289139.7697 | AN12: =+IF('Performance Table'!$J11+'Performance Table'!$J12=2,(AN11*I12)-$AH12,IF('Performance Table'!$J12=1,($AG$3*I12)-$AH12,"--")) -> 259517.6704 | AO12: =+IF('Performance Table'!$J11+'Performance Table'!$J12=2,(AO11*J12)-$AH12,IF('Performance Table'!$J12=1,($AG$3*J12)-$AH12,"--")) -> 253281.643
A13: ='Performance Table'!I13 -> 2007 | B13: ='Performance Table'!J13 -> 1 | C13: =IF('Performance Table'!J13<0,0,IF('Performance Table'!J13=0,0,IF('Performance Table'!J13=1,1,IF('Performance Table'!J13>1,0)))) -> 1 | D13: =+IF('Performance Table'!$J13=1,'Performance Table'!K13/100+1,"") -> 1.123190753 | E13: =+IF('Performance Table'!$J13=1,'Performance Table'!L13/100+1,"") -> 1.137785322 | F13: =+IF('Performance Table'!$J13=1,'Performance Table'!M13/100+1,"") -> 1.115849587 | G13: =+IF('Performance Table'!$J13=1,'Performance Table'!N13/100+1,"") -> 1.102964572 | H13: =+IF('Performance Table'!$J13=1,'Performance Table'!O13/100+1,"") -> 1.090079556 | I13: =+IF('Performance Table'!$J13=1,'Performance Table'!P13/100+1,"") -> 1.07719454 | J13: =+IF('Performance Table'!$J13=1,'Performance Table'!R13/100+1,"") -> 1.054995504 | M13: 2007 | N13: =+IF(SUM($C11:$C13)=3,PRODUCT(Calculations!D11:D13)-1,"") -> 0.4562449657 | O13: =+IF(SUM($C11:$C13)=3,PRODUCT(Calculations!E11:E13)-1,"") -> 0.4898814128 | P13: =+IF(SUM($C11:$C13)=3,PRODUCT(Calculations!F11:F13)-1,"") -> 0.4411824674 | Q13: =+IF(SUM($C11:$C13)=3,PRODUCT(Calculations!G11:G13)-1,"") -> 0.3762972068 | R13: =+IF(SUM($C11:$C13)=3,PRODUCT(Calculations!H11:H13)-1,"") -> 0.3133598497 | S13: =+IF(SUM($C11:$C13)=3,PRODUCT(Calculations!I11:I13)-1,"") -> 0.2523412926 | T13: =+IF(SUM($C11:$C13)=3,PRODUCT(Calculations!J11:J13)-1,"") -> 0.2425295743 | X13: =+IF('Performance Table'!$J12+'Performance Table'!$J13=2,X12*Calculations!D13,IF('Performance Table'!$J13=1,10000*D13,"--")) -> 21255.52419 | Y13: =+IF('Performance Table'!$J12+'Performance Table'!$J13=2,Y12*Calculations!E13,IF('Performance Table'!$J13=1,10000*E13,"--")) -> 24191.45176 | Z13: =+IF('Performance Table'!$J12+'Performance Table'!$J13=2,Z12*Calculations!F13,IF('Performance Table'!$J13=1,10000*F13,"--")) -> 21000.86152 | AA13: =+IF('Performance Table'!$J12+'Performance Table'!$J13=2,AA12*Calculations!G13,IF('Performance Table'!$J13=1,10000*G13,"--")) -> 19006.72054 | AB13: =+IF('Performance Table'!$J12+'Performance Table'!$J13=2,AB12*Calculations!H13,IF('Performance Table'!$J13=1,10000*H13,"--")) -> 17140.13959 | AC13: =+IF('Performance Table'!$J12+'Performance Table'!$J13=2,AC12*Calculations!I13,IF('Performance Table'!$J13=1,10000*I13,"--")) -> 15397.63449 | AD13: =+IF('Performance Table'!$J12+'Performance Table'!$J13=2,AD12*Calculations!J13,IF('Performance Table'!$J13=1,10000*J13,"--")) -> 14971.81012 | AH13: =+IF('Performance Table'!$J12+'Performance Table'!$J13=2,AH12*(1+AG$2),IF('Performance Table'!$J13=1,AG$3*AG$1,"--")) -> 14925.65371 | AI13: =+IF('Performance Table'!$J12+'Performance Table'!$J13=2,(AI12*D13)-$AH13,IF('Performance Table'!$J13=1,($AG$3*D13)-$AH13,"--")) -> 384057.0492 | AJ13: =+IF('Performance Table'!$J12+'Performance Table'!$J13=2,(AJ12*E13)-$AH13,IF('Performance Table'!$J13=1,($AG$3*E13)-$AH13,"--")) -> 451823.882 | AK13: =+IF('Performance Table'!$J12+'Performance Table'!$J13=2,(AK12*F13)-$AH13,IF('Performance Table'!$J13=1,($AG$3*F13)-$AH13,"--")) -> 379157.0636 | AL13: =+IF('Performance Table'!$J12+'Performance Table'!$J13=2,(AL12*G13)-$AH13,IF('Performance Table'!$J13=1,($AG$3*G13)-$AH13,"--")) -> 338418.6329 | AM13: =+IF('Performance Table'!$J12+'Performance Table'!$J13=2,(AM12*H13)-$AH13,IF('Performance Table'!$J13=1,($AG$3*H13)-$AH13,"--")) -> 300259.698 | AN13: =+IF('Performance Table'!$J12+'Performance Table'!$J13=2,(AN12*I13)-$AH13,IF('Performance Table'!$J13=1,($AG$3*I13)-$AH13,"--")) -> 264625.3639 | AO13: =+IF('Performance Table'!$J12+'Performance Table'!$J13=2,(AO12*J13)-$AH13,IF('Performance Table'!$J13=1,($AG$3*J13)-$AH13,"--")) -> 252285.3408
A14: ='Performance Table'!I14 -> 2008 | B14: ='Performance Table'!J14 -> 1 | C14: =IF('Performance Table'!J14<0,0,IF('Performance Table'!J14=0,0,IF('Performance Table'!J14=1,1,IF('Performance Table'!J14>1,0)))) -> 1 | D14: =+IF('Performance Table'!$J14=1,'Performance Table'!K14/100+1,"") -> 0.7451121327 | E14: =+IF('Performance Table'!$J14=1,'Performance Table'!L14/100+1,"") -> 0.7185710566 | F14: =+IF('Performance Table'!$J14=1,'Performance Table'!M14/100+1,"") -> 0.7483595362 | G14: =+IF('Performance Table'!$J14=1,'Performance Table'!N14/100+1,"") -> 0.8042338879 | H14: =+IF('Performance Table'!$J14=1,'Performance Table'!O14/100+1,"") -> 0.8601082397 | I14: =+IF('Performance Table'!$J14=1,'Performance Table'!P14/100+1,"") -> 0.9159825914 | J14: =+IF('Performance Table'!$J14=1,'Performance Table'!R14/100+1,"") -> 0.8287013526 | M14: 2008 | N14: =+IF(SUM($C12:$C14)=3,PRODUCT(Calculations!D12:D14)-1,"") -> -0.03537378976 | O14: =+IF(SUM($C12:$C14)=3,PRODUCT(Calculations!E12:E14)-1,"") -> -0.0517978458 | P14: =+IF(SUM($C12:$C14)=3,PRODUCT(Calculations!F12:F14)-1,"") -> -0.03997820437 | Q14: =+IF(SUM($C12:$C14)=3,PRODUCT(Calculations!G12:G14)-1,"") -> 0.001899837194 | R14: =+IF(SUM($C12:$C14)=3,PRODUCT(Calculations!H12:H14)-1,"") -> 0.04008415214 | S14: =+IF(SUM($C12:$C14)=3,PRODUCT(Calculations!I12:I14)-1,"") -> 0.0746618415 | T14: =+IF(SUM($C12:$C14)=3,PRODUCT(Calculations!J12:J14)-1,"") -> -0.01984435008 | X14: =+IF('Performance Table'!$J13+'Performance Table'!$J14=2,X13*Calculations!D14,IF('Performance Table'!$J14=1,10000*D14,"--")) -> 15837.74896 | Y14: =+IF('Performance Table'!$J13+'Performance Table'!$J14=2,Y13*Calculations!E14,IF('Performance Table'!$J14=1,10000*E14,"--")) -> 17383.27705 | Z14: =+IF('Performance Table'!$J13+'Performance Table'!$J14=2,Z13*Calculations!F14,IF('Performance Table'!$J14=1,10000*F14,"--")) -> 15716.19499 | AA14: =+IF('Performance Table'!$J13+'Performance Table'!$J14=2,AA13*Calculations!G14,IF('Performance Table'!$J14=1,10000*G14,"--")) -> 15285.84876 | AB14: =+IF('Performance Table'!$J13+'Performance Table'!$J14=2,AB13*Calculations!H14,IF('Performance Table'!$J14=1,10000*H14,"--")) -> 14742.37529 | AC14: =+IF('Performance Table'!$J13+'Performance Table'!$J14=2,AC13*Calculations!I14,IF('Performance Table'!$J14=1,10000*I14,"--")) -> 14103.96514 | AD14: =+IF('Performance Table'!$J13+'Performance Table'!$J14=2,AD13*Calculations!J14,IF('Performance Table'!$J14=1,10000*J14,"--")) -> 12407.1593 | AH14: =+IF('Performance Table'!$J13+'Performance Table'!$J14=2,AH13*(1+AG$2),IF('Performance Table'!$J14=1,AG$3*AG$1,"--")) -> 15373.42332 | AI14: =+IF('Performance Table'!$J13+'Performance Table'!$J14=2,(AI13*D14)-$AH14,IF('Performance Table'!$J14=1,($AG$3*D14)-$AH14,"--")) -> 270792.1437 | AJ14: =+IF('Performance Table'!$J13+'Performance Table'!$J14=2,(AJ13*E14)-$AH14,IF('Performance Table'!$J14=1,($AG$3*E14)-$AH14,"--")) -> 309294.1409 | AK14: =+IF('Performance Table'!$J13+'Performance Table'!$J14=2,(AK13*F14)-$AH14,IF('Performance Table'!$J14=1,($AG$3*F14)-$AH14,"--")) -> 268372.3809 | AL14: =+IF('Performance Table'!$J13+'Performance Table'!$J14=2,(AL13*G14)-$AH14,IF('Performance Table'!$J14=1,($AG$3*G14)-$AH14,"--")) -> 256794.3096 | AM14: =+IF('Performance Table'!$J13+'Performance Table'!$J14=2,(AM13*H14)-$AH14,IF('Performance Table'!$J14=1,($AG$3*H14)-$AH14,"--")) -> 242882.417 | AN14: =+IF('Performance Table'!$J13+'Performance Table'!$J14=2,(AN13*I14)-$AH14,IF('Performance Table'!$J14=1,($AG$3*I14)-$AH14,"--")) -> 227018.8033 | AO14: =+IF('Performance Table'!$J13+'Performance Table'!$J14=2,(AO13*J14)-$AH14,IF('Performance Table'!$J14=1,($AG$3*J14)-$AH14,"--")) -> 193695.7798
A15: ='Performance Table'!I15 -> 2009 | B15: ='Performance Table'!J15 -> 1 | C15: =IF('Performance Table'!J15<0,0,IF('Performance Table'!J15=0,0,IF('Performance Table'!J15=1,1,IF('Performance Table'!J15>1,0)))) -> 1 | D15: =+IF('Performance Table'!$J15=1,'Performance Table'!K15/100+1,"") -> 1.256437383 | E15: =+IF('Performance Table'!$J15=1,'Performance Table'!L15/100+1,"") -> 1.323553042 | F15: =+IF('Performance Table'!$J15=1,'Performance Table'!M15/100+1,"") -> 1.256440599 | G15: =+IF('Performance Table'!$J15=1,'Performance Table'!N15/100+1,"") -> 1.20621503 | H15: =+IF('Performance Table'!$J15=1,'Performance Table'!O15/100+1,"") -> 1.155989462 | I15: =+IF('Performance Table'!$J15=1,'Performance Table'!P15/100+1,"") -> 1.105763894 | J15: =+IF('Performance Table'!$J15=1,'Performance Table'!R15/100+1,"") -> 1.159442852 | M15: 2009 | N15: =+IF(SUM($C13:$C15)=3,PRODUCT(Calculations!D13:D15)-1,"") -> 0.05151628783 | O15: =+IF(SUM($C13:$C15)=3,PRODUCT(Calculations!E13:E15)-1,"") -> 0.08210996758 | P15: =+IF(SUM($C13:$C15)=3,PRODUCT(Calculations!F13:F15)-1,"") -> 0.04919911448 | Q15: =+IF(SUM($C13:$C15)=3,PRODUCT(Calculations!G13:G15)-1,"") -> 0.06996277256 | R15: =+IF(SUM($C13:$C15)=3,PRODUCT(Calculations!H13:H15)-1,"") -> 0.08384000729 | S15: =+IF(SUM($C13:$C15)=3,PRODUCT(Calculations!I13:I15)-1,"") -> 0.09104777561 | T15: =+IF(SUM($C13:$C15)=3,PRODUCT(Calculations!J13:J15)-1,"") -> 0.01367329149 | X15: =+IF('Performance Table'!$J14+'Performance Table'!$J15=2,X14*Calculations!D15,IF('Performance Table'!$J15=1,10000*D15,"--")) -> 19899.13986 | Y15: =+IF('Performance Table'!$J14+'Performance Table'!$J15=2,Y14*Calculations!E15,IF('Performance Table'!$J15=1,10000*E15,"--")) -> 23007.68922 | Z15: =+IF('Performance Table'!$J14+'Performance Table'!$J15=2,Z14*Calculations!F15,IF('Performance Table'!$J15=1,10000*F15,"--")) -> 19746.46543 | AA15: =+IF('Performance Table'!$J14+'Performance Table'!$J15=2,AA14*Calculations!G15,IF('Performance Table'!$J15=1,10000*G15,"--")) -> 18438.02052 | AB15: =+IF('Performance Table'!$J14+'Performance Table'!$J15=2,AB14*Calculations!H15,IF('Performance Table'!$J15=1,10000*H15,"--")) -> 17042.03048 | AC15: =+IF('Performance Table'!$J14+'Performance Table'!$J15=2,AC14*Calculations!I15,IF('Performance Table'!$J15=1,10000*I15,"--")) -> 15595.65541 | AD15: =+IF('Performance Table'!$J14+'Performance Table'!$J15=2,AD14*Calculations!J15,IF('Performance Table'!$J15=1,10000*J15,"--")) -> 14385.39216 | AH15: =+IF('Performance Table'!$J14+'Performance Table'!$J15=2,AH14*(1+AG$2),IF('Performance Table'!$J15=1,AG$3*AG$1,"--")) -> 15834.62602 | AI15: =+IF('Performance Table'!$J14+'Performance Table'!$J15=2,(AI14*D15)-$AH15,IF('Performance Table'!$J15=1,($AG$3*D15)-$AH15,"--")) -> 324398.7464 | AJ15: =+IF('Performance Table'!$J14+'Performance Table'!$J15=2,(AJ14*E15)-$AH15,IF('Performance Table'!$J15=1,($AG$3*E15)-$AH15,"--")) -> 393532.5751 | AK15: =+IF('Performance Table'!$J14+'Performance Table'!$J15=2,(AK14*F15)-$AH15,IF('Performance Table'!$J15=1,($AG$3*F15)-$AH15,"--")) -> 321359.3289 | AL15: =+IF('Performance Table'!$J14+'Performance Table'!$J15=2,(AL14*G15)-$AH15,IF('Performance Table'!$J15=1,($AG$3*G15)-$AH15,"--")) -> 293914.5299 | AM15: =+IF('Performance Table'!$J14+'Performance Table'!$J15=2,(AM14*H15)-$AH15,IF('Performance Table'!$J15=1,($AG$3*H15)-$AH15,"--")) -> 264934.8885 | AN15: =+IF('Performance Table'!$J14+'Performance Table'!$J15=2,(AN14*I15)-$AH15,IF('Performance Table'!$J15=1,($AG$3*I15)-$AH15,"--")) -> 235194.5698 | AO15: =+IF('Performance Table'!$J14+'Performance Table'!$J15=2,(AO14*J15)-$AH15,IF('Performance Table'!$J15=1,($AG$3*J15)-$AH15,"--")) -> 208744.5613
A16: ='Performance Table'!I16 -> 2010 | B16: ='Performance Table'!J16 -> 1 | C16: =IF('Performance Table'!J16<0,0,IF('Performance Table'!J16=0,0,IF('Performance Table'!J16=1,1,IF('Performance Table'!J16>1,0)))) -> 1 | D16: =+IF('Performance Table'!$J16=1,'Performance Table'!K16/100+1,"") -> 1.144124727 | E16: =+IF('Performance Table'!$J16=1,'Performance Table'!L16/100+1,"") -> 1.145176406 | F16: =+IF('Performance Table'!$J16=1,'Performance Table'!M16/100+1,"") -> 1.144094272 | G16: =+IF('Performance Table'!$J16=1,'Performance Table'!N16/100+1,"") -> 1.11539745 | H16: =+IF('Performance Table'!$J16=1,'Performance Table'!O16/100+1,"") -> 1.086700629 | I16: =+IF('Performance Table'!$J16=1,'Performance Table'!P16/100+1,"") -> 1.058003808 | J16: =+IF('Performance Table'!$J16=1,'Performance Table'!R16/100+1,"") -> 1.101932792 | M16: 2010 | N16: =+IF(SUM($C14:$C16)=3,PRODUCT(Calculations!D14:D16)-1,"") -> 0.07111439635 | O16: =+IF(SUM($C14:$C16)=3,PRODUCT(Calculations!E14:E16)-1,"") -> 0.08913938293 | P16: =+IF(SUM($C14:$C16)=3,PRODUCT(Calculations!F14:F16)-1,"") -> 0.07575672431 | Q16: =+IF(SUM($C14:$C16)=3,PRODUCT(Calculations!G14:G16)-1,"") -> 0.08202364719 | R16: =+IF(SUM($C14:$C16)=3,PRODUCT(Calculations!H14:H16)-1,"") -> 0.08048042105 | S16: =+IF(SUM($C14:$C16)=3,PRODUCT(Calculations!I14:I16)-1,"") -> 0.07161024086 | T16: =+IF(SUM($C14:$C16)=3,PRODUCT(Calculations!J14:J16)-1,"") -> 0.05877213382 | X16: =+IF('Performance Table'!$J15+'Performance Table'!$J16=2,X15*Calculations!D16,IF('Performance Table'!$J16=1,10000*D16,"--")) -> 22767.09796 | Y16: =+IF('Performance Table'!$J15+'Performance Table'!$J16=2,Y15*Calculations!E16,IF('Performance Table'!$J16=1,10000*E16,"--")) -> 26347.86285 | Z16: =+IF('Performance Table'!$J15+'Performance Table'!$J16=2,Z15*Calculations!F16,IF('Performance Table'!$J16=1,10000*F16,"--")) -> 22591.81799 | AA16: =+IF('Performance Table'!$J15+'Performance Table'!$J16=2,AA15*Calculations!G16,IF('Performance Table'!$J16=1,10000*G16,"--")) -> 20565.72108 | AB16: =+IF('Performance Table'!$J15+'Performance Table'!$J16=2,AB15*Calculations!H16,IF('Performance Table'!$J16=1,10000*H16,"--")) -> 18519.58524 | AC16: =+IF('Performance Table'!$J15+'Performance Table'!$J16=2,AC15*Calculations!I16,IF('Performance Table'!$J16=1,10000*I16,"--")) -> 16500.2628 | AD16: =+IF('Performance Table'!$J15+'Performance Table'!$J16=2,AD15*Calculations!J16,IF('Performance Table'!$J16=1,10000*J16,"--")) -> 15851.73535 | AH16: =+IF('Performance Table'!$J15+'Performance Table'!$J16=2,AH15*(1+AG$2),IF('Performance Table'!$J16=1,AG$3*AG$1,"--")) -> 16309.6648 | AI16: =+IF('Performance Table'!$J15+'Performance Table'!$J16=2,(AI15*D16)-$AH16,IF('Performance Table'!$J16=1,($AG$3*D16)-$AH16,"--")) -> 354842.9624 | AJ16: =+IF('Performance Table'!$J15+'Performance Table'!$J16=2,(AJ15*E16)-$AH16,IF('Performance Table'!$J16=1,($AG$3*E16)-$AH16,"--")) -> 434354.555 | AK16: =+IF('Performance Table'!$J15+'Performance Table'!$J16=2,(AK15*F16)-$AH16,IF('Performance Table'!$J16=1,($AG$3*F16)-$AH16,"--")) -> 351355.7026 | AL16: =+IF('Performance Table'!$J15+'Performance Table'!$J16=2,(AL15*G16)-$AH16,IF('Performance Table'!$J16=1,($AG$3*G16)-$AH16,"--")) -> 311521.8525 | AM16: =+IF('Performance Table'!$J15+'Performance Table'!$J16=2,(AM15*H16)-$AH16,IF('Performance Table'!$J16=1,($AG$3*H16)-$AH16,"--")) -> 271595.2452 | AN16: =+IF('Performance Table'!$J15+'Performance Table'!$J16=2,(AN15*I16)-$AH16,IF('Performance Table'!$J16=1,($AG$3*I16)-$AH16,"--")) -> 232527.0856 | AO16: =+IF('Performance Table'!$J15+'Performance Table'!$J16=2,(AO15*J16)-$AH16,IF('Performance Table'!$J16=1,($AG$3*J16)-$AH16,"--")) -> 213712.8125
A17: ='Performance Table'!I17 -> 2011 | B17: ='Performance Table'!J17 -> 1 | C17: =IF('Performance Table'!J17<0,0,IF('Performance Table'!J17=0,0,IF('Performance Table'!J17=1,1,IF('Performance Table'!J17>1,0)))) -> 1 | D17: =+IF('Performance Table'!$J17=1,'Performance Table'!K17/100+1,"") -> 0.9923117702 | E17: =+IF('Performance Table'!$J17=1,'Performance Table'!L17/100+1,"") -> 0.9368815488 | F17: =+IF('Performance Table'!$J17=1,'Performance Table'!M17/100+1,"") -> 0.9900252865 | G17: =+IF('Performance Table'!$J17=1,'Performance Table'!N17/100+1,"") -> 0.9921096472 | H17: =+IF('Performance Table'!$J17=1,'Performance Table'!O17/100+1,"") -> 0.9941940078 | I17: =+IF('Performance Table'!$J17=1,'Performance Table'!P17/100+1,"") -> 0.9962783685 | J17: =+IF('Performance Table'!$J17=1,'Performance Table'!R17/100+1,"") -> 1.003379023 | M17: 2011 | N17: =+IF(SUM($C15:$C17)=3,PRODUCT(Calculations!D15:D17)-1,"") -> 0.4264690858 | O17: =+IF(SUM($C15:$C17)=3,PRODUCT(Calculations!E15:E17)-1,"") -> 0.4200329704 | P17: =+IF(SUM($C15:$C17)=3,PRODUCT(Calculations!F15:F17)-1,"") -> 0.4231479759 | Q17: =+IF(SUM($C15:$C17)=3,PRODUCT(Calculations!G15:G17)-1,"") -> 0.3347934164 | R17: =+IF(SUM($C15:$C17)=3,PRODUCT(Calculations!H15:H17)-1,"") -> 0.2489209039 | S17: =+IF(SUM($C15:$C17)=3,PRODUCT(Calculations!I15:I17)-1,"") -> 0.1655484639 | T17: =+IF(SUM($C15:$C17)=3,PRODUCT(Calculations!J15:J17)-1,"") -> 0.2819452338 | X17: =+IF('Performance Table'!$J16+'Performance Table'!$J17=2,X16*Calculations!D17,IF('Performance Table'!$J17=1,10000*D17,"--")) -> 22592.05928 | Y17: =+IF('Performance Table'!$J16+'Performance Table'!$J17=2,Y16*Calculations!E17,IF('Performance Table'!$J17=1,10000*E17,"--")) -> 24684.82655 | Z17: =+IF('Performance Table'!$J16+'Performance Table'!$J17=2,Z16*Calculations!F17,IF('Performance Table'!$J17=1,10000*F17,"--")) -> 22366.47108 | AA17: =+IF('Performance Table'!$J16+'Performance Table'!$J17=2,AA16*Calculations!G17,IF('Performance Table'!$J17=1,10000*G17,"--")) -> 20403.45029 | AB17: =+IF('Performance Table'!$J16+'Performance Table'!$J17=2,AB16*Calculations!H17,IF('Performance Table'!$J17=1,10000*H17,"--")) -> 18412.06067 | AC17: =+IF('Performance Table'!$J16+'Performance Table'!$J17=2,AC16*Calculations!I17,IF('Performance Table'!$J17=1,10000*I17,"--")) -> 16438.85491 | AD17: =+IF('Performance Table'!$J16+'Performance Table'!$J17=2,AD16*Calculations!J17,IF('Performance Table'!$J17=1,10000*J17,"--")) -> 15905.29873 | AH17: =+IF('Performance Table'!$J16+'Performance Table'!$J17=2,AH16*(1+AG$2),IF('Performance Table'!$J17=1,AG$3*AG$1,"--")) -> 16798.95474 | AI17: =+IF('Performance Table'!$J16+'Performance Table'!$J17=2,(AI16*D17)-$AH17,IF('Performance Table'!$J17=1,($AG$3*D17)-$AH17,"--")) -> 335315.8934 | AJ17: =+IF('Performance Table'!$J16+'Performance Table'!$J17=2,(AJ16*E17)-$AH17,IF('Performance Table'!$J17=1,($AG$3*E17)-$AH17,"--")) -> 390139.8135 | AK17: =+IF('Performance Table'!$J16+'Performance Table'!$J17=2,(AK16*F17)-$AH17,IF('Performance Table'!$J17=1,($AG$3*F17)-$AH17,"--")) -> 331052.0754 | AL17: =+IF('Performance Table'!$J16+'Performance Table'!$J17=2,(AL16*G17)-$AH17,IF('Performance Table'!$J17=1,($AG$3*G17)-$AH17,"--")) -> 292264.8804 | AM17: =+IF('Performance Table'!$J16+'Performance Table'!$J17=2,(AM16*H17)-$AH17,IF('Performance Table'!$J17=1,($AG$3*H17)-$AH17,"--")) -> 253219.4106 | AN17: =+IF('Performance Table'!$J16+'Performance Table'!$J17=2,(AN16*I17)-$AH17,IF('Performance Table'!$J17=1,($AG$3*I17)-$AH17,"--")) -> 214862.7507 | AO17: =+IF('Performance Table'!$J16+'Performance Table'!$J17=2,(AO16*J17)-$AH17,IF('Performance Table'!$J17=1,($AG$3*J17)-$AH17,"--")) -> 197635.9983
A18: ='Performance Table'!I18 -> 2012 | B18: ='Performance Table'!J18 -> 1 | C18: =IF('Performance Table'!J18<0,0,IF('Performance Table'!J18=0,0,IF('Performance Table'!J18=1,1,IF('Performance Table'!J18>1,0)))) -> 1 | D18: =+IF('Performance Table'!$J18=1,'Performance Table'!K18/100+1,"") -> 1.107709913 | E18: =+IF('Performance Table'!$J18=1,'Performance Table'!L18/100+1,"") -> 1.124195705 | F18: =+IF('Performance Table'!$J18=1,'Performance Table'!M18/100+1,"") -> 1.106390398 | G18: =+IF('Performance Table'!$J18=1,'Performance Table'!N18/100+1,"") -> 1.085188932 | H18: =+IF('Performance Table'!$J18=1,'Performance Table'!O18/100+1,"") -> 1.063987466 | I18: =+IF('Performance Table'!$J18=1,'Performance Table'!P18/100+1,"") -> 1.042785999 | J18: =+IF('Performance Table'!$J18=1,'Performance Table'!R18/100+1,"") -> 1.095323105 | M18: 2012 | N18: =+IF(SUM($C16:$C18)=3,PRODUCT(Calculations!D16:D18)-1,"") -> 0.2576145596 | O18: =+IF(SUM($C16:$C18)=3,PRODUCT(Calculations!E16:E18)-1,"") -> 0.2061435516 | P18: =+IF(SUM($C16:$C18)=3,PRODUCT(Calculations!F16:F18)-1,"") -> 0.2531887758 | Q18: =+IF(SUM($C16:$C18)=3,PRODUCT(Calculations!G16:G18)-1,"") -> 0.2008663509 | R18: =+IF(SUM($C16:$C18)=3,PRODUCT(Calculations!H16:H18)-1,"") -> 0.1495227519 | S18: =+IF(SUM($C16:$C18)=3,PRODUCT(Calculations!I16:I18)-1,"") -> 0.09916558768 | T18: =+IF(SUM($C16:$C18)=3,PRODUCT(Calculations!J16:J18)-1,"") -> 0.2110508347 | X18: =+IF('Performance Table'!$J17+'Performance Table'!$J18=2,X17*Calculations!D18,IF('Performance Table'!$J18=1,10000*D18,"--")) -> 25025.44801 | Y18: =+IF('Performance Table'!$J17+'Performance Table'!$J18=2,Y17*Calculations!E18,IF('Performance Table'!$J18=1,10000*E18,"--")) -> 27750.57599 | Z18: =+IF('Performance Table'!$J17+'Performance Table'!$J18=2,Z17*Calculations!F18,IF('Performance Table'!$J18=1,10000*F18,"--")) -> 24746.04884 | AA18: =+IF('Performance Table'!$J17+'Performance Table'!$J18=2,AA17*Calculations!G18,IF('Performance Table'!$J18=1,10000*G18,"--")) -> 22141.59842 | AB18: =+IF('Performance Table'!$J17+'Performance Table'!$J18=2,AB17*Calculations!H18,IF('Performance Table'!$J18=1,10000*H18,"--")) -> 19590.20177 | AC18: =+IF('Performance Table'!$J17+'Performance Table'!$J18=2,AC17*Calculations!I18,IF('Performance Table'!$J18=1,10000*I18,"--")) -> 17142.20774 | AD18: =+IF('Performance Table'!$J17+'Performance Table'!$J18=2,AD17*Calculations!J18,IF('Performance Table'!$J18=1,10000*J18,"--")) -> 17421.44118 | AH18: =+IF('Performance Table'!$J17+'Performance Table'!$J18=2,AH17*(1+AG$2),IF('Performance Table'!$J18=1,AG$3*AG$1,"--")) -> 17302.92338 | AI18: =+IF('Performance Table'!$J17+'Performance Table'!$J18=2,(AI17*D18)-$AH18,IF('Performance Table'!$J18=1,($AG$3*D18)-$AH18,"--")) -> 354129.8156 | AJ18: =+IF('Performance Table'!$J17+'Performance Table'!$J18=2,(AJ17*E18)-$AH18,IF('Performance Table'!$J18=1,($AG$3*E18)-$AH18,"--")) -> 421290.5794 | AK18: =+IF('Performance Table'!$J17+'Performance Table'!$J18=2,(AK17*F18)-$AH18,IF('Performance Table'!$J18=1,($AG$3*F18)-$AH18,"--")) -> 348969.9141 | AL18: =+IF('Performance Table'!$J17+'Performance Table'!$J18=2,(AL17*G18)-$AH18,IF('Performance Table'!$J18=1,($AG$3*G18)-$AH18,"--")) -> 299859.69 | AM18: =+IF('Performance Table'!$J17+'Performance Table'!$J18=2,(AM17*H18)-$AH18,IF('Performance Table'!$J18=1,($AG$3*H18)-$AH18,"--")) -> 252119.3555 | AN18: =+IF('Performance Table'!$J17+'Performance Table'!$J18=2,(AN17*I18)-$AH18,IF('Performance Table'!$J18=1,($AG$3*I18)-$AH18,"--")) -> 206752.9449 | AO18: =+IF('Performance Table'!$J17+'Performance Table'!$J18=2,(AO17*J18)-$AH18,IF('Performance Table'!$J18=1,($AG$3*J18)-$AH18,"--")) -> 199172.3518
A19: ='Performance Table'!I19 -> 2013 | B19: ='Performance Table'!J19 -> 1 | C19: =IF('Performance Table'!J19<0,0,IF('Performance Table'!J19=0,0,IF('Performance Table'!J19=1,1,IF('Performance Table'!J19>1,0)))) -> 1 | D19: =+IF('Performance Table'!$J19=1,'Performance Table'!K19/100+1,"") -> 1.1046319 | E19: =+IF('Performance Table'!$J19=1,'Performance Table'!L19/100+1,"") -> 1.113297506 | F19: =+IF('Performance Table'!$J19=1,'Performance Table'!M19/100+1,"") -> 1.096492016 | G19: =+IF('Performance Table'!$J19=1,'Performance Table'!N19/100+1,"") -> 1.077232216 | H19: =+IF('Performance Table'!$J19=1,'Performance Table'!O19/100+1,"") -> 1.057972415 | I19: =+IF('Performance Table'!$J19=1,'Performance Table'!P19/100+1,"") -> 1.038712615 | J19: =+IF('Performance Table'!$J19=1,'Performance Table'!R19/100+1,"") -> 1.151222477 | M19: 2013 | N19: =+IF(SUM($C17:$C19)=3,PRODUCT(Calculations!D17:D19)-1,"") -> 0.2142042971 | O19: =+IF(SUM($C17:$C19)=3,PRODUCT(Calculations!E17:E19)-1,"") -> 0.172567476 | P19: =+IF(SUM($C17:$C19)=3,PRODUCT(Calculations!F17:F19)-1,"") -> 0.2010474319 | Q19: =+IF(SUM($C17:$C19)=3,PRODUCT(Calculations!G17:G19)-1,"") -> 0.1597766511 | R19: =+IF(SUM($C17:$C19)=3,PRODUCT(Calculations!H17:H19)-1,"") -> 0.119133761 | S19: =+IF(SUM($C17:$C19)=3,PRODUCT(Calculations!I17:I19)-1,"") -> 0.07912386835 | T19: =+IF(SUM($C17:$C19)=3,PRODUCT(Calculations!J17:J19)-1,"") -> 0.2652213923 | X19: =+IF('Performance Table'!$J18+'Performance Table'!$J19=2,X18*Calculations!D19,IF('Performance Table'!$J19=1,10000*D19,"--")) -> 27643.90817 | Y19: =+IF('Performance Table'!$J18+'Performance Table'!$J19=2,Y18*Calculations!E19,IF('Performance Table'!$J19=1,10000*E19,"--")) -> 30894.64704 | Z19: =+IF('Performance Table'!$J18+'Performance Table'!$J19=2,Z18*Calculations!F19,IF('Performance Table'!$J19=1,10000*F19,"--")) -> 27133.84498 | AA19: =+IF('Performance Table'!$J18+'Performance Table'!$J19=2,AA18*Calculations!G19,IF('Performance Table'!$J19=1,10000*G19,"--")) -> 23851.64312 | AB19: =+IF('Performance Table'!$J18+'Performance Table'!$J19=2,AB18*Calculations!H19,IF('Performance Table'!$J19=1,10000*H19,"--")) -> 20725.89308 | AC19: =+IF('Performance Table'!$J18+'Performance Table'!$J19=2,AC18*Calculations!I19,IF('Performance Table'!$J19=1,10000*I19,"--")) -> 17805.82743 | AD19: =+IF('Performance Table'!$J18+'Performance Table'!$J19=2,AD18*Calculations!J19,IF('Performance Table'!$J19=1,10000*J19,"--")) -> 20055.95467 | AH19: =+IF('Performance Table'!$J18+'Performance Table'!$J19=2,AH18*(1+AG$2),IF('Performance Table'!$J19=1,AG$3*AG$1,"--")) -> 17822.01109 | AI19: =+IF('Performance Table'!$J18+'Performance Table'!$J19=2,(AI18*D19)-$AH19,IF('Performance Table'!$J19=1,($AG$3*D19)-$AH19,"--")) -> 373361.0798 | AJ19: =+IF('Performance Table'!$J18+'Performance Table'!$J19=2,(AJ18*E19)-$AH19,IF('Performance Table'!$J19=1,($AG$3*E19)-$AH19,"--")) -> 451199.7402 | AK19: =+IF('Performance Table'!$J18+'Performance Table'!$J19=2,(AK18*F19)-$AH19,IF('Performance Table'!$J19=1,($AG$3*F19)-$AH19,"--")) -> 364820.7136 | AL19: =+IF('Performance Table'!$J18+'Performance Table'!$J19=2,(AL18*G19)-$AH19,IF('Performance Table'!$J19=1,($AG$3*G19)-$AH19,"--")) -> 305196.5071 | AM19: =+IF('Performance Table'!$J18+'Performance Table'!$J19=2,(AM18*H19)-$AH19,IF('Performance Table'!$J19=1,($AG$3*H19)-$AH19,"--")) -> 248913.3124 | AN19: =+IF('Performance Table'!$J18+'Performance Table'!$J19=2,(AN18*I19)-$AH19,IF('Performance Table'!$J19=1,($AG$3*I19)-$AH19,"--")) -> 196934.8809 | AO19: =+IF('Performance Table'!$J18+'Performance Table'!$J19=2,(AO18*J19)-$AH19,IF('Performance Table'!$J19=1,($AG$3*J19)-$AH19,"--")) -> 211469.6771
A20: ='Performance Table'!I20 -> 2014 | B20: ='Performance Table'!J20 -> 1 | C20: =IF('Performance Table'!J20<0,0,IF('Performance Table'!J20=0,0,IF('Performance Table'!J20=1,1,IF('Performance Table'!J20>1,0)))) -> 1 | D20: =+IF('Performance Table'!$J20=1,'Performance Table'!K20/100+1,"") -> 1.014946053 | E20: =+IF('Performance Table'!$J20=1,'Performance Table'!L20/100+1,"") -> 1.000532088 | F20: =+IF('Performance Table'!$J20=1,'Performance Table'!M20/100+1,"") -> 1.024955705 | G20: =+IF('Performance Table'!$J20=1,'Performance Table'!N20/100+1,"") -> 1.019983764 | H20: =+IF('Performance Table'!$J20=1,'Performance Table'!O20/100+1,"") -> 1.015011824 | I20: =+IF('Performance Table'!$J20=1,'Performance Table'!P20/100+1,"") -> 1.010039884 | J20: =+IF('Performance Table'!$J20=1,'Performance Table'!R20/100+1,"") -> 1.045328447 | M20: 2014 | N20: =+IF(SUM($C18:$C20)=3,PRODUCT(Calculations!D18:D20)-1,"") -> 0.2418998707 | O20: =+IF(SUM($C18:$C20)=3,PRODUCT(Calculations!E18:E20)-1,"") -> 0.252230217 | P20: =+IF(SUM($C18:$C20)=3,PRODUCT(Calculations!F18:F20)-1,"") -> 0.243423207 | Q20: =+IF(SUM($C18:$C20)=3,PRODUCT(Calculations!G18:G20)-1,"") -> 0.1923615075 | R20: =+IF(SUM($C18:$C20)=3,PRODUCT(Calculations!H18:H20)-1,"") -> 0.1425677399 | S20: =+IF(SUM($C18:$C20)=3,PRODUCT(Calculations!I18:I20)-1,"") -> 0.09402972267 | T20: =+IF(SUM($C18:$C20)=3,PRODUCT(Calculations!J18:J20)-1,"") -> 0.3181179625 | X20: =+IF('Performance Table'!$J19+'Performance Table'!$J20=2,X19*Calculations!D20,IF('Performance Table'!$J20=1,10000*D20,"--")) -> 28057.07549 | Y20: =+IF('Performance Table'!$J19+'Performance Table'!$J20=2,Y19*Calculations!E20,IF('Performance Table'!$J20=1,10000*E20,"--")) -> 30911.08571 | Z20: =+IF('Performance Table'!$J19+'Performance Table'!$J20=2,Z19*Calculations!F20,IF('Performance Table'!$J20=1,10000*F20,"--")) -> 27810.9892 | AA20: =+IF('Performance Table'!$J19+'Performance Table'!$J20=2,AA19*Calculations!G20,IF('Performance Table'!$J20=1,10000*G20,"--")) -> 24328.28874 | AB20: =+IF('Performance Table'!$J19+'Performance Table'!$J20=2,AB19*Calculations!H20,IF('Performance Table'!$J20=1,10000*H20,"--")) -> 21037.02655 | AC20: =+IF('Performance Table'!$J19+'Performance Table'!$J20=2,AC19*Calculations!I20,IF('Performance Table'!$J20=1,10000*I20,"--")) -> 17984.59587 | AD20: =+IF('Performance Table'!$J19+'Performance Table'!$J20=2,AD19*Calculations!J20,IF('Performance Table'!$J20=1,10000*J20,"--")) -> 20965.05995 | AH20: =+IF('Performance Table'!$J19+'Performance Table'!$J20=2,AH19*(1+AG$2),IF('Performance Table'!$J20=1,AG$3*AG$1,"--")) -> 18356.67142 | AI20: =+IF('Performance Table'!$J19+'Performance Table'!$J20=2,(AI19*D20)-$AH20,IF('Performance Table'!$J20=1,($AG$3*D20)-$AH20,"--")) -> 360584.683 | AJ20: =+IF('Performance Table'!$J19+'Performance Table'!$J20=2,(AJ19*E20)-$AH20,IF('Performance Table'!$J20=1,($AG$3*E20)-$AH20,"--")) -> 433083.1467 | AK20: =+IF('Performance Table'!$J19+'Performance Table'!$J20=2,(AK19*F20)-$AH20,IF('Performance Table'!$J20=1,($AG$3*F20)-$AH20,"--")) -> 355568.4001 | AL20: =+IF('Performance Table'!$J19+'Performance Table'!$J20=2,(AL19*G20)-$AH20,IF('Performance Table'!$J20=1,($AG$3*G20)-$AH20,"--")) -> 292938.8108 | AM20: =+IF('Performance Table'!$J19+'Performance Table'!$J20=2,(AM19*H20)-$AH20,IF('Performance Table'!$J20=1,($AG$3*H20)-$AH20,"--")) -> 234293.2839 | AN20: =+IF('Performance Table'!$J19+'Performance Table'!$J20=2,(AN19*I20)-$AH20,IF('Performance Table'!$J20=1,($AG$3*I20)-$AH20,"--")) -> 180555.4129 | AO20: =+IF('Performance Table'!$J19+'Performance Table'!$J20=2,(AO19*J20)-$AH20,IF('Performance Table'!$J20=1,($AG$3*J20)-$AH20,"--")) -> 202698.5978
A21: ='Performance Table'!I21 -> 2015 | B21: ='Performance Table'!J21 -> 1 | C21: =IF('Performance Table'!J21<0,0,IF('Performance Table'!J21=0,0,IF('Performance Table'!J21=1,1,IF('Performance Table'!J21>1,0)))) -> 1 | D21: =+IF('Performance Table'!$J21=1,'Performance Table'!K21/100+1,"") -> 0.9394217473 | E21: =+IF('Performance Table'!$J21=1,'Performance Table'!L21/100+1,"") -> 0.9304418274 | F21: =+IF('Performance Table'!$J21=1,'Performance Table'!M21/100+1,"") -> 0.9492762931 | G21: =+IF('Performance Table'!$J21=1,'Performance Table'!N21/100+1,"") -> 0.959518854 | H21: =+IF('Performance Table'!$J21=1,'Performance Table'!O21/100+1,"") -> 0.9697614149 | I21: =+IF('Performance Table'!$J21=1,'Performance Table'!P21/100+1,"") -> 0.9800039758 | J21: =+IF('Performance Table'!$J21=1,'Performance Table'!R21/100+1,"") -> 0.996679811 | M21: 2015 | N21: =+IF(SUM($C19:$C21)=3,PRODUCT(Calculations!D19:D21)-1,"") -> 0.05322497624 | O21: =+IF(SUM($C19:$C21)=3,PRODUCT(Calculations!E19:E21)-1,"") -> 0.03640973355 | P21: =+IF(SUM($C19:$C21)=3,PRODUCT(Calculations!F19:F21)-1,"") -> 0.06684961727 | Q21: =+IF(SUM($C19:$C21)=3,PRODUCT(Calculations!G19:G21)-1,"") -> 0.05428033194 | R21: =+IF(SUM($C19:$C21)=3,PRODUCT(Calculations!H19:H21)-1,"") -> 0.04138267022 | S21: =+IF(SUM($C19:$C21)=3,PRODUCT(Calculations!I19:I21)-1,"") -> 0.02816251699 | T21: =+IF(SUM($C19:$C21)=3,PRODUCT(Calculations!J19:J21)-1,"") -> 0.1994100701 | X21: =+IF('Performance Table'!$J20+'Performance Table'!$J21=2,X20*Calculations!D21,IF('Performance Table'!$J21=1,10000*D21,"--")) -> 26357.42688 | Y21: =+IF('Performance Table'!$J20+'Performance Table'!$J21=2,Y20*Calculations!E21,IF('Performance Table'!$J21=1,10000*E21,"--")) -> 28760.96707 | Z21: =+IF('Performance Table'!$J20+'Performance Table'!$J21=2,Z20*Calculations!F21,IF('Performance Table'!$J21=1,10000*F21,"--")) -> 26400.31274 | AA21: =+IF('Performance Table'!$J20+'Performance Table'!$J21=2,AA20*Calculations!G21,IF('Performance Table'!$J21=1,10000*G21,"--")) -> 23343.45173 | AB21: =+IF('Performance Table'!$J20+'Performance Table'!$J21=2,AB20*Calculations!H21,IF('Performance Table'!$J21=1,10000*H21,"--")) -> 20400.89663 | AC21: =+IF('Performance Table'!$J20+'Performance Table'!$J21=2,AC20*Calculations!I21,IF('Performance Table'!$J21=1,10000*I21,"--")) -> 17624.97546 | AD21: =+IF('Performance Table'!$J20+'Performance Table'!$J21=2,AD20*Calculations!J21,IF('Performance Table'!$J21=1,10000*J21,"--")) -> 20895.45199 | AH21: =+IF('Performance Table'!$J20+'Performance Table'!$J21=2,AH20*(1+AG$2),IF('Performance Table'!$J21=1,AG$3*AG$1,"--")) -> 18907.37156 | AI21: =+IF('Performance Table'!$J20+'Performance Table'!$J21=2,(AI20*D21)-$AH21,IF('Performance Table'!$J21=1,($AG$3*D21)-$AH21,"--")) -> 319833.7214 | AJ21: =+IF('Performance Table'!$J20+'Performance Table'!$J21=2,(AJ20*E21)-$AH21,IF('Performance Table'!$J21=1,($AG$3*E21)-$AH21,"--")) -> 384051.3029 | AK21: =+IF('Performance Table'!$J20+'Performance Table'!$J21=2,(AK20*F21)-$AH21,IF('Performance Table'!$J21=1,($AG$3*F21)-$AH21,"--")) -> 318625.2812 | AL21: =+IF('Performance Table'!$J20+'Performance Table'!$J21=2,(AL20*G21)-$AH21,IF('Performance Table'!$J21=1,($AG$3*G21)-$AH21,"--")) -> 262172.9405 | AM21: =+IF('Performance Table'!$J20+'Performance Table'!$J21=2,(AM20*H21)-$AH21,IF('Performance Table'!$J21=1,($AG$3*H21)-$AH21,"--")) -> 208301.2149 | AN21: =+IF('Performance Table'!$J20+'Performance Table'!$J21=2,(AN20*I21)-$AH21,IF('Performance Table'!$J21=1,($AG$3*I21)-$AH21,"--")) -> 158037.6509 | AO21: =+IF('Performance Table'!$J20+'Performance Table'!$J21=2,(AO20*J21)-$AH21,IF('Performance Table'!$J21=1,($AG$3*J21)-$AH21,"--")) -> 183118.2286
A22: ='Performance Table'!I22 -> 2016 | B22: ='Performance Table'!J22 -> 1 | C22: =IF('Performance Table'!J22<0,0,IF('Performance Table'!J22=0,0,IF('Performance Table'!J22=1,1,IF('Performance Table'!J22>1,0)))) -> 1 | D22: =+IF('Performance Table'!$J22=1,'Performance Table'!K22/100+1,"") -> 1.115067598 | E22: =+IF('Performance Table'!$J22=1,'Performance Table'!L22/100+1,"") -> 1.091867956 | F22: =+IF('Performance Table'!$J22=1,'Performance Table'!M22/100+1,"") -> 1.101427442 | G22: =+IF('Performance Table'!$J22=1,'Performance Table'!N22/100+1,"") -> 1.08180753 | H22: =+IF('Performance Table'!$J22=1,'Performance Table'!O22/100+1,"") -> 1.062187619 | I22: =+IF('Performance Table'!$J22=1,'Performance Table'!P22/100+1,"") -> 1.042567708 | J22: =+IF('Performance Table'!$J22=1,'Performance Table'!R22/100+1,"") -> 1.065959216 | M22: 2016 | N22: =+IF(SUM($C20:$C22)=3,PRODUCT(Calculations!D20:D22)-1,"") -> 0.06317502237 | O22: =+IF(SUM($C20:$C22)=3,PRODUCT(Calculations!E20:E22)-1,"") -> 0.01646017463 | P22: =+IF(SUM($C20:$C22)=3,PRODUCT(Calculations!F20:F22)-1,"") -> 0.07165161962 | Q22: =+IF(SUM($C20:$C22)=3,PRODUCT(Calculations!G20:G22)-1,"") -> 0.05875816359 | R22: =+IF(SUM($C20:$C22)=3,PRODUCT(Calculations!H20:H22)-1,"") -> 0.04553177678 | S22: =+IF(SUM($C20:$C22)=3,PRODUCT(Calculations!I20:I22)-1,"") -> 0.03197845409 | T22: =+IF(SUM($C20:$C22)=3,PRODUCT(Calculations!J20:J22)-1,"") -> 0.1105778798 | X22: =+IF('Performance Table'!$J21+'Performance Table'!$J22=2,X21*Calculations!D22,IF('Performance Table'!$J22=1,10000*D22,"--")) -> 29390.31269 | Y22: =+IF('Performance Table'!$J21+'Performance Table'!$J22=2,Y21*Calculations!E22,IF('Performance Table'!$J22=1,10000*E22,"--")) -> 31403.17832 | Z22: =+IF('Performance Table'!$J21+'Performance Table'!$J22=2,Z21*Calculations!F22,IF('Performance Table'!$J22=1,10000*F22,"--")) -> 29078.02892 | AA22: =+IF('Performance Table'!$J21+'Performance Table'!$J22=2,AA21*Calculations!G22,IF('Performance Table'!$J22=1,10000*G22,"--")) -> 25253.12187 | AB22: =+IF('Performance Table'!$J21+'Performance Table'!$J22=2,AB21*Calculations!H22,IF('Performance Table'!$J22=1,10000*H22,"--")) -> 21669.57982 | AC22: =+IF('Performance Table'!$J21+'Performance Table'!$J22=2,AC21*Calculations!I22,IF('Performance Table'!$J22=1,10000*I22,"--")) -> 18375.23026 | AD22: =+IF('Performance Table'!$J21+'Performance Table'!$J22=2,AD21*Calculations!J22,IF('Performance Table'!$J22=1,10000*J22,"--")) -> 22273.69962 | AH22: =+IF('Performance Table'!$J21+'Performance Table'!$J22=2,AH21*(1+AG$2),IF('Performance Table'!$J22=1,AG$3*AG$1,"--")) -> 19474.59271 | AI22: =+IF('Performance Table'!$J21+'Performance Table'!$J22=2,(AI21*D22)-$AH22,IF('Performance Table'!$J22=1,($AG$3*D22)-$AH22,"--")) -> 337161.6268 | AJ22: =+IF('Performance Table'!$J21+'Performance Table'!$J22=2,(AJ21*E22)-$AH22,IF('Performance Table'!$J22=1,($AG$3*E22)-$AH22,"--")) -> 399858.7183 | AK22: =+IF('Performance Table'!$J21+'Performance Table'!$J22=2,(AK21*F22)-$AH22,IF('Performance Table'!$J22=1,($AG$3*F22)-$AH22,"--")) -> 331468.0357 | AL22: =+IF('Performance Table'!$J21+'Performance Table'!$J22=2,(AL21*G22)-$AH22,IF('Performance Table'!$J22=1,($AG$3*G22)-$AH22,"--")) -> 264146.0686 | AM22: =+IF('Performance Table'!$J21+'Performance Table'!$J22=2,(AM21*H22)-$AH22,IF('Performance Table'!$J22=1,($AG$3*H22)-$AH22,"--")) -> 201780.3788 | AN22: =+IF('Performance Table'!$J21+'Performance Table'!$J22=2,(AN21*I22)-$AH22,IF('Performance Table'!$J22=1,($AG$3*I22)-$AH22,"--")) -> 145290.3587 | AO22: =+IF('Performance Table'!$J21+'Performance Table'!$J22=2,(AO21*J22)-$AH22,IF('Performance Table'!$J22=1,($AG$3*J22)-$AH22,"--")) -> 175721.9706
A23: ='Performance Table'!I23 -> 2017 | B23: ='Performance Table'!J23 -> 1 | C23: =IF('Performance Table'!J23<0,0,IF('Performance Table'!J23=0,0,IF('Performance Table'!J23=1,1,IF('Performance Table'!J23>1,0)))) -> 1 | D23: =+IF('Performance Table'!$J23=1,'Performance Table'!K23/100+1,"") -> 1.119917853 | E23: =+IF('Performance Table'!$J23=1,'Performance Table'!L23/100+1,"") -> 1.1366546 | F23: =+IF('Performance Table'!$J23=1,'Performance Table'!M23/100+1,"") -> 1.119685671 | G23: =+IF('Performance Table'!$J23=1,'Performance Table'!N23/100+1,"") -> 1.097369686 | H23: =+IF('Performance Table'!$J23=1,'Performance Table'!O23/100+1,"") -> 1.0750537 | I23: =+IF('Performance Table'!$J23=1,'Performance Table'!P23/100+1,"") -> 1.052737715 | J23: =+IF('Performance Table'!$J23=1,'Performance Table'!R23/100+1,"") -> 1.115672086 | M23: 2017 | N23: =+IF(SUM($C21:$C23)=3,PRODUCT(Calculations!D21:D23)-1,"") -> 0.1731349508 | O23: =+IF(SUM($C21:$C23)=3,PRODUCT(Calculations!E21:E23)-1,"") -> 0.1547497049 | P23: =+IF(SUM($C21:$C23)=3,PRODUCT(Calculations!F21:F23)-1,"") -> 0.170697385 | Q23: =+IF(SUM($C21:$C23)=3,PRODUCT(Calculations!G21:G23)-1,"") -> 0.1390858891 | R23: =+IF(SUM($C21:$C23)=3,PRODUCT(Calculations!H21:H23)-1,"") -> 0.1073790258 | S23: =+IF(SUM($C21:$C23)=3,PRODUCT(Calculations!I21:I23)-1,"") -> 0.07560370255 | T23: =+IF(SUM($C21:$C23)=3,PRODUCT(Calculations!J21:J23)-1,"") -> 0.1853123704 | X23: =+IF('Performance Table'!$J22+'Performance Table'!$J23=2,X22*Calculations!D23,IF('Performance Table'!$J23=1,10000*D23,"--")) -> 32914.73588 | Y23: =+IF('Performance Table'!$J22+'Performance Table'!$J23=2,Y22*Calculations!E23,IF('Performance Table'!$J23=1,10000*E23,"--")) -> 35694.5671 | Z23: =+IF('Performance Table'!$J22+'Performance Table'!$J23=2,Z22*Calculations!F23,IF('Performance Table'!$J23=1,10000*F23,"--")) -> 32558.25233 | AA23: =+IF('Performance Table'!$J22+'Performance Table'!$J23=2,AA22*Calculations!G23,IF('Performance Table'!$J23=1,10000*G23,"--")) -> 27712.01041 | AB23: =+IF('Performance Table'!$J22+'Performance Table'!$J23=2,AB22*Calculations!H23,IF('Performance Table'!$J23=1,10000*H23,"--")) -> 23295.96196 | AC23: =+IF('Performance Table'!$J22+'Performance Table'!$J23=2,AC22*Calculations!I23,IF('Performance Table'!$J23=1,10000*I23,"--")) -> 19344.29791 | AD23: =+IF('Performance Table'!$J22+'Performance Table'!$J23=2,AD22*Calculations!J23,IF('Performance Table'!$J23=1,10000*J23,"--")) -> 24850.14491 | AH23: =+IF('Performance Table'!$J22+'Performance Table'!$J23=2,AH22*(1+AG$2),IF('Performance Table'!$J23=1,AG$3*AG$1,"--")) -> 20058.83049 | AI23: =+IF('Performance Table'!$J22+'Performance Table'!$J23=2,(AI22*D23)-$AH23,IF('Performance Table'!$J23=1,($AG$3*D23)-$AH23,"--")) -> 357534.4946 | AJ23: =+IF('Performance Table'!$J22+'Performance Table'!$J23=2,(AJ22*E23)-$AH23,IF('Performance Table'!$J23=1,($AG$3*E23)-$AH23,"--")) -> 434442.421 | AK23: =+IF('Performance Table'!$J22+'Performance Table'!$J23=2,(AK22*F23)-$AH23,IF('Performance Table'!$J23=1,($AG$3*F23)-$AH23,"--")) -> 351081.1795 | AL23: =+IF('Performance Table'!$J22+'Performance Table'!$J23=2,(AL22*G23)-$AH23,IF('Performance Table'!$J23=1,($AG$3*G23)-$AH23,"--")) -> 269807.0578 | AM23: =+IF('Performance Table'!$J22+'Performance Table'!$J23=2,(AM22*H23)-$AH23,IF('Performance Table'!$J23=1,($AG$3*H23)-$AH23,"--")) -> 196865.9124 | AN23: =+IF('Performance Table'!$J22+'Performance Table'!$J23=2,(AN22*I23)-$AH23,IF('Performance Table'!$J23=1,($AG$3*I23)-$AH23,"--")) -> 132893.8097 | AO23: =+IF('Performance Table'!$J22+'Performance Table'!$J23=2,(AO22*J23)-$AH23,IF('Performance Table'!$J23=1,($AG$3*J23)-$AH23,"--")) -> 175989.267
A24: ='Performance Table'!I24 -> 2018 | B24: ='Performance Table'!J24 -> 1 | C24: =IF('Performance Table'!J24<0,0,IF('Performance Table'!J24=0,0,IF('Performance Table'!J24=1,1,IF('Performance Table'!J24>1,0)))) -> 1 | D24: =+IF('Performance Table'!$J24=1,'Performance Table'!K24/100+1,"") -> 0.9246496457 | E24: =+IF('Performance Table'!$J24=1,'Performance Table'!L24/100+1,"") -> 0.9236492967 | F24: =+IF('Performance Table'!$J24=1,'Performance Table'!M24/100+1,"") -> 0.9411433176 | G24: =+IF('Performance Table'!$J24=1,'Performance Table'!N24/100+1,"") -> 0.9564744809 | H24: =+IF('Performance Table'!$J24=1,'Performance Table'!O24/100+1,"") -> 0.9718056443 | I24: =+IF('Performance Table'!$J24=1,'Performance Table'!P24/100+1,"") -> 0.9871368076 | J24: =+IF('Performance Table'!$J24=1,'Performance Table'!R24/100+1,"") -> 0.9579369703 | M24: 2018 | N24: =+IF(SUM($C22:$C24)=3,PRODUCT(Calculations!D22:D24)-1,"") -> 0.1546877851 | O24: =+IF(SUM($C22:$C24)=3,PRODUCT(Calculations!E22:E24)-1,"") -> 0.1463196531 | P24: =+IF(SUM($C22:$C24)=3,PRODUCT(Calculations!F22:F24)-1,"") -> 0.1606673724 | Q24: =+IF(SUM($C22:$C24)=3,PRODUCT(Calculations!G22:G24)-1,"") -> 0.1354717835 | R24: =+IF(SUM($C22:$C24)=3,PRODUCT(Calculations!H22:H24)-1,"") -> 0.1097133491 | S24: =+IF(SUM($C22:$C24)=3,PRODUCT(Calculations!I22:I24)-1,"") -> 0.08343234451 | T24: =+IF(SUM($C22:$C24)=3,PRODUCT(Calculations!J22:J24)-1,"") -> 0.1392370233 | X24: =+IF('Performance Table'!$J23+'Performance Table'!$J24=2,X23*Calculations!D24,IF('Performance Table'!$J24=1,10000*D24,"--")) -> 30434.59887 | Y24: =+IF('Performance Table'!$J23+'Performance Table'!$J24=2,Y23*Calculations!E24,IF('Performance Table'!$J24=1,10000*E24,"--")) -> 32969.2618 | Z24: =+IF('Performance Table'!$J23+'Performance Table'!$J24=2,Z23*Calculations!F24,IF('Performance Table'!$J24=1,10000*F24,"--")) -> 30641.98161 | AA24: =+IF('Performance Table'!$J23+'Performance Table'!$J24=2,AA23*Calculations!G24,IF('Performance Table'!$J24=1,10000*G24,"--")) -> 26505.83077 | AB24: =+IF('Performance Table'!$J23+'Performance Table'!$J24=2,AB23*Calculations!H24,IF('Performance Table'!$J24=1,10000*H24,"--")) -> 22639.14732 | AC24: =+IF('Performance Table'!$J23+'Performance Table'!$J24=2,AC23*Calculations!I24,IF('Performance Table'!$J24=1,10000*I24,"--")) -> 19095.46848 | AD24: =+IF('Performance Table'!$J23+'Performance Table'!$J24=2,AD23*Calculations!J24,IF('Performance Table'!$J24=1,10000*J24,"--")) -> 23804.87253 | AH24: =+IF('Performance Table'!$J23+'Performance Table'!$J24=2,AH23*(1+AG$2),IF('Performance Table'!$J24=1,AG$3*AG$1,"--")) -> 20660.5954 | AI24: =+IF('Performance Table'!$J23+'Performance Table'!$J24=2,(AI23*D24)-$AH24,IF('Performance Table'!$J24=1,($AG$3*D24)-$AH24,"--")) -> 309933.5484 | AJ24: =+IF('Performance Table'!$J23+'Performance Table'!$J24=2,(AJ23*E24)-$AH24,IF('Performance Table'!$J24=1,($AG$3*E24)-$AH24,"--")) -> 380611.8412 | AK24: =+IF('Performance Table'!$J23+'Performance Table'!$J24=2,(AK23*F24)-$AH24,IF('Performance Table'!$J24=1,($AG$3*F24)-$AH24,"--")) -> 309757.1106 | AL24: =+IF('Performance Table'!$J23+'Performance Table'!$J24=2,(AL23*G24)-$AH24,IF('Performance Table'!$J24=1,($AG$3*G24)-$AH24,"--")) -> 237402.9701 | AM24: =+IF('Performance Table'!$J23+'Performance Table'!$J24=2,(AM23*H24)-$AH24,IF('Performance Table'!$J24=1,($AG$3*H24)-$AH24,"--")) -> 170654.8094 | AN24: =+IF('Performance Table'!$J23+'Performance Table'!$J24=2,(AN23*I24)-$AH24,IF('Performance Table'!$J24=1,($AG$3*I24)-$AH24,"--")) -> 110523.7757 | AO24: =+IF('Performance Table'!$J23+'Performance Table'!$J24=2,(AO23*J24)-$AH24,IF('Performance Table'!$J24=1,($AG$3*J24)-$AH24,"--")) -> 147926.0298
A25: ='Performance Table'!I25 -> 2019 | B25: ='Performance Table'!J25 -> 1 | C25: =IF('Performance Table'!J25<0,0,IF('Performance Table'!J25=0,0,IF('Performance Table'!J25=1,1,IF('Performance Table'!J25>1,0)))) -> 1 | D25: =+IF('Performance Table'!$J25=1,'Performance Table'!K25/100+1,"") -> 1.165735647 | E25: =+IF('Performance Table'!$J25=1,'Performance Table'!L25/100+1,"") -> 1.161642355 | F25: =+IF('Performance Table'!$J25=1,'Performance Table'!M25/100+1,"") -> 1.158855454 | G25: =+IF('Performance Table'!$J25=1,'Performance Table'!N25/100+1,"") -> 1.131361254 | H25: =+IF('Performance Table'!$J25=1,'Performance Table'!O25/100+1,"") -> 1.103867055 | I25: =+IF('Performance Table'!$J25=1,'Performance Table'!P25/100+1,"") -> 1.076372856 | J25: =+IF('Performance Table'!$J25=1,'Performance Table'!R25/100+1,"") -> 1.164551386 | M25: 2019 | N25: =+IF(SUM($C23:$C25)=3,PRODUCT(Calculations!D23:D25)-1,"") -> 0.207156153 | O25: =+IF(SUM($C23:$C25)=3,PRODUCT(Calculations!E23:E25)-1,"") -> 0.219573717 | P25: =+IF(SUM($C23:$C25)=3,PRODUCT(Calculations!F23:F25)-1,"") -> 0.2211841318 | Q25: =+IF(SUM($C23:$C25)=3,PRODUCT(Calculations!G23:G25)-1,"") -> 0.1874836745 | R25: =+IF(SUM($C23:$C25)=3,PRODUCT(Calculations!H23:H25)-1,"") -> 0.1532576588 | S25: =+IF(SUM($C23:$C25)=3,PRODUCT(Calculations!I23:I25)-1,"") -> 0.1185625244 | T25: =+IF(SUM($C23:$C25)=3,PRODUCT(Calculations!J23:J25)-1,"") -> 0.2446067687 | X25: =+IF('Performance Table'!$J24+'Performance Table'!$J25=2,X24*Calculations!D25,IF('Performance Table'!$J25=1,10000*D25,"--")) -> 35478.6968 | Y25: =+IF('Performance Table'!$J24+'Performance Table'!$J25=2,Y24*Calculations!E25,IF('Performance Table'!$J25=1,10000*E25,"--")) -> 38298.49091 | Z25: =+IF('Performance Table'!$J24+'Performance Table'!$J25=2,Z24*Calculations!F25,IF('Performance Table'!$J25=1,10000*F25,"--")) -> 35509.62751 | AA25: =+IF('Performance Table'!$J24+'Performance Table'!$J25=2,AA24*Calculations!G25,IF('Performance Table'!$J25=1,10000*G25,"--")) -> 29987.66995 | AB25: =+IF('Performance Table'!$J24+'Performance Table'!$J25=2,AB24*Calculations!H25,IF('Performance Table'!$J25=1,10000*H25,"--")) -> 24990.60889 | AC25: =+IF('Performance Table'!$J24+'Performance Table'!$J25=2,AC24*Calculations!I25,IF('Performance Table'!$J25=1,10000*I25,"--")) -> 20553.84395 | AD25: =+IF('Performance Table'!$J24+'Performance Table'!$J25=2,AD24*Calculations!J25,IF('Performance Table'!$J25=1,10000*J25,"--")) -> 27721.99731 | AH25: =+IF('Performance Table'!$J24+'Performance Table'!$J25=2,AH24*(1+AG$2),IF('Performance Table'!$J25=1,AG$3*AG$1,"--")) -> 21280.41327 | AI25: =+IF('Performance Table'!$J24+'Performance Table'!$J25=2,(AI24*D25)-$AH25,IF('Performance Table'!$J25=1,($AG$3*D25)-$AH25,"--")) -> 340020.1722 | AJ25: =+IF('Performance Table'!$J24+'Performance Table'!$J25=2,(AJ24*E25)-$AH25,IF('Performance Table'!$J25=1,($AG$3*E25)-$AH25,"--")) -> 420854.4223 | AK25: =+IF('Performance Table'!$J24+'Performance Table'!$J25=2,(AK24*F25)-$AH25,IF('Performance Table'!$J25=1,($AG$3*F25)-$AH25,"--")) -> 337683.3037 | AL25: =+IF('Performance Table'!$J24+'Performance Table'!$J25=2,(AL24*G25)-$AH25,IF('Performance Table'!$J25=1,($AG$3*G25)-$AH25,"--")) -> 247308.1088 | AM25: =+IF('Performance Table'!$J24+'Performance Table'!$J25=2,(AM24*H25)-$AH25,IF('Performance Table'!$J25=1,($AG$3*H25)-$AH25,"--")) -> 167099.8086 | AN25: =+IF('Performance Table'!$J24+'Performance Table'!$J25=2,(AN24*I25)-$AH25,IF('Performance Table'!$J25=1,($AG$3*I25)-$AH25,"--")) -> 97684.37879 | AO25: =+IF('Performance Table'!$J24+'Performance Table'!$J25=2,(AO24*J25)-$AH25,IF('Performance Table'!$J25=1,($AG$3*J25)-$AH25,"--")) -> 150987.0498
A26: ='Performance Table'!I26 -> 2020 | B26: ='Performance Table'!J26 -> 1 | C26: =IF('Performance Table'!J26<0,0,IF('Performance Table'!J26=0,0,IF('Performance Table'!J26=1,1,IF('Performance Table'!J26>1,0)))) -> 1 | D26: =+IF('Performance Table'!$J26=1,'Performance Table'!K26/100+1,"") -> 1.052685348 | E26: =+IF('Performance Table'!$J26=1,'Performance Table'!L26/100+1,"") -> 1.138175962 | F26: =+IF('Performance Table'!$J26=1,'Performance Table'!M26/100+1,"") -> 1.057793258 | G26: =+IF('Performance Table'!$J26=1,'Performance Table'!N26/100+1,"") -> 1.047898457 | H26: =+IF('Performance Table'!$J26=1,'Performance Table'!O26/100+1,"") -> 1.038003655 | I26: =+IF('Performance Table'!$J26=1,'Performance Table'!P26/100+1,"") -> 1.028108854 | J26: =+IF('Performance Table'!$J26=1,'Performance Table'!R26/100+1,"") -> 1.10171725 | M26: 2020 | N26: =+IF(SUM($C24:$C26)=3,PRODUCT(Calculations!D24:D26)-1,"") -> 0.1346864343 | O26: =+IF(SUM($C24:$C26)=3,PRODUCT(Calculations!E24:E26)-1,"") -> 0.2212060629 | P26: =+IF(SUM($C24:$C26)=3,PRODUCT(Calculations!F24:F26)-1,"") -> 0.1536812296 | Q26: =+IF(SUM($C24:$C26)=3,PRODUCT(Calculations!G24:G26)-1,"") -> 0.133949959 | R26: =+IF(SUM($C24:$C26)=3,PRODUCT(Calculations!H24:H26)-1,"") -> 0.1135124369 | S26: =+IF(SUM($C24:$C26)=3,PRODUCT(Calculations!I24:I26)-1,"") -> 0.0923936884 | T26: =+IF(SUM($C24:$C26)=3,PRODUCT(Calculations!J24:J26)-1,"") -> 0.2290392162 | X26: =+IF('Performance Table'!$J25+'Performance Table'!$J26=2,X25*Calculations!D26,IF('Performance Table'!$J26=1,10000*D26,"--")) -> 37347.90429 | Y26: =+IF('Performance Table'!$J25+'Performance Table'!$J26=2,Y25*Calculations!E26,IF('Performance Table'!$J26=1,10000*E26,"--")) -> 43590.42175 | Z26: =+IF('Performance Table'!$J25+'Performance Table'!$J26=2,Z25*Calculations!F26,IF('Performance Table'!$J26=1,10000*F26,"--")) -> 37561.84458 | AA26: =+IF('Performance Table'!$J25+'Performance Table'!$J26=2,AA25*Calculations!G26,IF('Performance Table'!$J26=1,10000*G26,"--")) -> 31424.03307 | AB26: =+IF('Performance Table'!$J25+'Performance Table'!$J26=2,AB25*Calculations!H26,IF('Performance Table'!$J26=1,10000*H26,"--")) -> 25940.34337 | AC26: =+IF('Performance Table'!$J25+'Performance Table'!$J26=2,AC25*Calculations!I26,IF('Performance Table'!$J26=1,10000*I26,"--")) -> 21131.58894 | AD26: =+IF('Performance Table'!$J25+'Performance Table'!$J26=2,AD25*Calculations!J26,IF('Performance Table'!$J26=1,10000*J26,"--")) -> 30541.80262 | AH26: =+IF('Performance Table'!$J25+'Performance Table'!$J26=2,AH25*(1+AG$2),IF('Performance Table'!$J26=1,AG$3*AG$1,"--")) -> 21918.82566 | AI26: =+IF('Performance Table'!$J25+'Performance Table'!$J26=2,(AI25*D26)-$AH26,IF('Performance Table'!$J26=1,($AG$3*D26)-$AH26,"--")) -> 336015.4277 | AJ26: =+IF('Performance Table'!$J25+'Performance Table'!$J26=2,(AJ25*E26)-$AH26,IF('Performance Table'!$J26=1,($AG$3*E26)-$AH26,"--")) -> 457087.5615 | AK26: =+IF('Performance Table'!$J25+'Performance Table'!$J26=2,(AK25*F26)-$AH26,IF('Performance Table'!$J26=1,($AG$3*F26)-$AH26,"--")) -> 335280.2965 | AL26: =+IF('Performance Table'!$J25+'Performance Table'!$J26=2,(AL25*G26)-$AH26,IF('Performance Table'!$J26=1,($AG$3*G26)-$AH26,"--")) -> 237234.9599 | AM26: =+IF('Performance Table'!$J25+'Performance Table'!$J26=2,(AM25*H26)-$AH26,IF('Performance Table'!$J26=1,($AG$3*H26)-$AH26,"--")) -> 151531.3865 | AN26: =+IF('Performance Table'!$J25+'Performance Table'!$J26=2,(AN25*I26)-$AH26,IF('Performance Table'!$J26=1,($AG$3*I26)-$AH26,"--")) -> 78511.34906 | AO26: =+IF('Performance Table'!$J25+'Performance Table'!$J26=2,(AO25*J26)-$AH26,IF('Performance Table'!$J26=1,($AG$3*J26)-$AH26,"--")) -> 144426.2116
A27: ='Performance Table'!I27 -> 2021 | B27: ='Performance Table'!J27 -> 1 | C27: =IF('Performance Table'!J27<0,0,IF('Performance Table'!J27=0,0,IF('Performance Table'!J27=1,1,IF('Performance Table'!J27>1,0)))) -> 1 | D27: =+IF('Performance Table'!$J27=1,'Performance Table'!K27/100+1,"") -> 1.168470115 | E27: =+IF('Performance Table'!$J27=1,'Performance Table'!L27/100+1,"") -> 1.052780717 | F27: =+IF('Performance Table'!$J27=1,'Performance Table'!M27/100+1,"") -> 1.064757055 | G27: =+IF('Performance Table'!$J27=1,'Performance Table'!N27/100+1,"") -> 1.051582546 | H27: =+IF('Performance Table'!$J27=1,'Performance Table'!O27/100+1,"") -> 1.038408036 | I27: =+IF('Performance Table'!$J27=1,'Performance Table'!P27/100+1,"") -> 1.025233527 | J27: =+IF('Performance Table'!$J27=1,'Performance Table'!R27/100+1,"") -> 1.09200209 | M27: =+IF(B27=1,A27,IF(B27<>1,"--","--")) -> 2021 | N27: =+IF(SUM($C25:$C27)=3,PRODUCT(Calculations!D25:D27)-1,"") -> 0.4338914145 | O27: =+IF(SUM($C25:$C27)=3,PRODUCT(Calculations!E25:E27)-1,"") -> 0.3919376095 | P27: =+IF(SUM($C25:$C27)=3,PRODUCT(Calculations!F25:F27)-1,"") -> 0.3052105941 | Q27: =+IF(SUM($C25:$C27)=3,PRODUCT(Calculations!G25:G27)-1,"") -> 0.2467054881 | R27: =+IF(SUM($C25:$C27)=3,PRODUCT(Calculations!H25:H27)-1,"") -> 0.1898266591 | S27: =+IF(SUM($C25:$C27)=3,PRODUCT(Calculations!I25:I27)-1,"") -> 0.1345526022 | T27: =+IF(SUM($C25:$C27)=3,PRODUCT(Calculations!J25:J27)-1,"") -> 0.4010456162 | X27: =+IF('Performance Table'!$J26+'Performance Table'!$J27=2,X26*Calculations!D27,IF('Performance Table'!$J27=1,10000*D27,"--")) -> 43639.91002 | Y27: =+IF('Performance Table'!$J26+'Performance Table'!$J27=2,Y26*Calculations!E27,IF('Performance Table'!$J27=1,10000*E27,"--")) -> 45891.15545 | Z27: =+IF('Performance Table'!$J26+'Performance Table'!$J27=2,Z26*Calculations!F27,IF('Performance Table'!$J27=1,10000*F27,"--")) -> 39994.23903 | AA27: =+IF('Performance Table'!$J26+'Performance Table'!$J27=2,AA26*Calculations!G27,IF('Performance Table'!$J27=1,10000*G27,"--")) -> 33044.96469 | AB27: =+IF('Performance Table'!$J26+'Performance Table'!$J27=2,AB26*Calculations!H27,IF('Performance Table'!$J27=1,10000*H27,"--")) -> 26936.66102 | AC27: =+IF('Performance Table'!$J26+'Performance Table'!$J27=2,AC26*Calculations!I27,IF('Performance Table'!$J27=1,10000*I27,"--")) -> 21664.81346 | AD27: =+IF('Performance Table'!$J26+'Performance Table'!$J27=2,AD26*Calculations!J27,IF('Performance Table'!$J27=1,10000*J27,"--")) -> 33351.7123 | AH27: =+IF('Performance Table'!$J26+'Performance Table'!$J27=2,AH26*(1+AG$2),IF('Performance Table'!$J27=1,AG$3*AG$1,"--")) -> 22576.39043 | AI27: =+IF('Performance Table'!$J26+'Performance Table'!$J27=2,(AI26*D27)-$AH27,IF('Performance Table'!$J27=1,($AG$3*D27)-$AH27,"--")) -> 370047.595 | AJ27: =+IF('Performance Table'!$J26+'Performance Table'!$J27=2,(AJ26*E27)-$AH27,IF('Performance Table'!$J27=1,($AG$3*E27)-$AH27,"--")) -> 458636.5801 | AK27: =+IF('Performance Table'!$J26+'Performance Table'!$J27=2,(AK26*F27)-$AH27,IF('Performance Table'!$J27=1,($AG$3*F27)-$AH27,"--")) -> 334415.6707 | AL27: =+IF('Performance Table'!$J26+'Performance Table'!$J27=2,(AL26*G27)-$AH27,IF('Performance Table'!$J27=1,($AG$3*G27)-$AH27,"--")) -> 226895.7527 | AM27: =+IF('Performance Table'!$J26+'Performance Table'!$J27=2,(AM26*H27)-$AH27,IF('Performance Table'!$J27=1,($AG$3*H27)-$AH27,"--")) -> 134775.0191 | AN27: =+IF('Performance Table'!$J26+'Performance Table'!$J27=2,(AN26*I27)-$AH27,IF('Performance Table'!$J27=1,($AG$3*I27)-$AH27,"--")) -> 57916.07686 | AO27: =+IF('Performance Table'!$J26+'Performance Table'!$J27=2,(AO26*J27)-$AH27,IF('Performance Table'!$J27=1,($AG$3*J27)-$AH27,"--")) -> 135137.3345
A28: ='Performance Table'!I28 -> 2022 | B28: ='Performance Table'!J28 -> 1 | C28: =IF('Performance Table'!J28<0,0,IF('Performance Table'!J28=0,0,IF('Performance Table'!J28=1,1,IF('Performance Table'!J28>1,0)))) -> 1 | D28: =+IF('Performance Table'!$J28=1,'Performance Table'!K28/100+1,"") -> 0.9229187283 | E28: =+IF('Performance Table'!$J28=1,'Performance Table'!L28/100+1,"") -> 0.8139677046 | F28: =+IF('Performance Table'!$J28=1,'Performance Table'!M28/100+1,"") -> 0.8597627277 | G28: =+IF('Performance Table'!$J28=1,'Performance Table'!N28/100+1,"") -> 0.8896957664 | H28: =+IF('Performance Table'!$J28=1,'Performance Table'!O28/100+1,"") -> 0.9196288051 | I28: =+IF('Performance Table'!$J28=1,'Performance Table'!P28/100+1,"") -> 0.9495618438 | J28: =+IF('Performance Table'!$J28=1,'Performance Table'!R28/100+1,"") -> 0.8764375022 | M28: 2022 | N28: =+IF(SUM($C26:$C28)=3,PRODUCT(Calculations!D26:D28)-1,"") -> 0.1352189875 | O28: =+IF(SUM($C26:$C28)=3,PRODUCT(Calculations!E26:E28)-1,"") -> -0.0246634377 | P28: =+IF(SUM($C26:$C28)=3,PRODUCT(Calculations!F26:F28)-1,"") -> -0.03165540013 | Q28: =+IF(SUM($C26:$C28)=3,PRODUCT(Calculations!G26:G28)-1,"") -> -0.01959821375 | R28: =+IF(SUM($C26:$C28)=3,PRODUCT(Calculations!H26:H28)-1,"") -> -0.008758469948 | S28: =+IF(SUM($C26:$C28)=3,PRODUCT(Calculations!I26:I28)-1,"") -> 0.0008872435524 | T28: =+IF(SUM($C26:$C28)=3,PRODUCT(Calculations!J26:J28)-1,"") -> 0.0544222733 | X28: =+IF('Performance Table'!$J27+'Performance Table'!$J28=2,X27*Calculations!D28,IF('Performance Table'!$J28=1,10000*D28,"--")) -> 40276.09026 | Y28: =+IF('Performance Table'!$J27+'Performance Table'!$J28=2,Y27*Calculations!E28,IF('Performance Table'!$J28=1,10000*E28,"--")) -> 37353.91847 | Z28: =+IF('Performance Table'!$J27+'Performance Table'!$J28=2,Z27*Calculations!F28,IF('Performance Table'!$J28=1,10000*F28,"--")) -> 34385.55604 | AA28: =+IF('Performance Table'!$J27+'Performance Table'!$J28=2,AA27*Calculations!G28,IF('Performance Table'!$J28=1,10000*G28,"--")) -> 29399.96519 | AB28: =+IF('Performance Table'!$J27+'Performance Table'!$J28=2,AB27*Calculations!H28,IF('Performance Table'!$J28=1,10000*H28,"--")) -> 24771.72939 | AC28: =+IF('Performance Table'!$J27+'Performance Table'!$J28=2,AC27*Calculations!I28,IF('Performance Table'!$J28=1,10000*I28,"--")) -> 20572.08021 | AD28: =+IF('Performance Table'!$J27+'Performance Table'!$J28=2,AD27*Calculations!J28,IF('Performance Table'!$J28=1,10000*J28,"--")) -> 29230.69142 | AH28: =+IF('Performance Table'!$J27+'Performance Table'!$J28=2,AH27*(1+AG$2),IF('Performance Table'!$J28=1,AG$3*AG$1,"--")) -> 23253.68215 | AI28: =+IF('Performance Table'!$J27+'Performance Table'!$J28=2,(AI27*D28)-$AH28,IF('Performance Table'!$J28=1,($AG$3*D28)-$AH28,"--")) -> 318270.1737 | AJ28: =+IF('Performance Table'!$J27+'Performance Table'!$J28=2,(AJ27*E28)-$AH28,IF('Performance Table'!$J28=1,($AG$3*E28)-$AH28,"--")) -> 350061.6822 | AK28: =+IF('Performance Table'!$J27+'Performance Table'!$J28=2,(AK27*F28)-$AH28,IF('Performance Table'!$J28=1,($AG$3*F28)-$AH28,"--")) -> 264264.4471 | AL28: =+IF('Performance Table'!$J27+'Performance Table'!$J28=2,(AL27*G28)-$AH28,IF('Performance Table'!$J28=1,($AG$3*G28)-$AH28,"--")) -> 178614.5084 | AM28: =+IF('Performance Table'!$J27+'Performance Table'!$J28=2,(AM27*H28)-$AH28,IF('Performance Table'!$J28=1,($AG$3*H28)-$AH28,"--")) -> 100689.3076 | AN28: =+IF('Performance Table'!$J27+'Performance Table'!$J28=2,(AN27*I28)-$AH28,IF('Performance Table'!$J28=1,($AG$3*I28)-$AH28,"--")) -> 31741.21458 | AO28: =+IF('Performance Table'!$J27+'Performance Table'!$J28=2,(AO27*J28)-$AH28,IF('Performance Table'!$J28=1,($AG$3*J28)-$AH28,"--")) -> 95185.74573
A29: ='Performance Table'!I29 -> 2023 | B29: ='Performance Table'!J29 -> 1 | C29: =IF('Performance Table'!J29<0,0,IF('Performance Table'!J29=0,0,IF('Performance Table'!J29=1,1,IF('Performance Table'!J29>1,0)))) -> 1 | D29: =+IF('Performance Table'!$J29=1,'Performance Table'!K29/100+1,"") -> 1.092564643 | E29: =+IF('Performance Table'!$J29=1,'Performance Table'!L29/100+1,"") -> 1.118550149 | F29: =+IF('Performance Table'!$J29=1,'Performance Table'!M29/100+1,"") -> 1.081048223 | G29: =+IF('Performance Table'!$J29=1,'Performance Table'!N29/100+1,"") -> 1.074909447 | H29: =+IF('Performance Table'!$J29=1,'Performance Table'!O29/100+1,"") -> 1.068770671 | I29: =+IF('Performance Table'!$J29=1,'Performance Table'!P29/100+1,"") -> 1.062631895 | J29: =+IF('Performance Table'!$J29=1,'Performance Table'!R29/100+1,"") -> 1.132056142 | M29: =+IF(B29=1,A29,IF(B29<>1,"--","--")) -> 2023 | N29: =+IF(SUM($C27:$C29)=3,PRODUCT(Calculations!D27:D29)-1,"") -> 0.1782249369 | O29: =+IF(SUM($C27:$C29)=3,PRODUCT(Calculations!E27:E29)-1,"") -> -0.04148137655 | P29: =+IF(SUM($C27:$C29)=3,PRODUCT(Calculations!F27:F29)-1,"") -> -0.01036691185 | Q29: =+IF(SUM($C27:$C29)=3,PRODUCT(Calculations!G27:G29)-1,"") -> 0.005672958949 | R29: =+IF(SUM($C27:$C29)=3,PRODUCT(Calculations!H27:H29)-1,"") -> 0.02062248968 | S29: =+IF(SUM($C27:$C29)=3,PRODUCT(Calculations!I27:I29)-1,"") -> 0.03449620541 | T29: =+IF(SUM($C27:$C29)=3,PRODUCT(Calculations!J27:J29)-1,"") -> 0.08345876484 | X29: =+IF('Performance Table'!$J28+'Performance Table'!$J29=2,X28*Calculations!D29,IF('Performance Table'!$J29=1,10000*D29,"--")) -> 44004.23218 | Y29: =+IF('Performance Table'!$J28+'Performance Table'!$J29=2,Y28*Calculations!E29,IF('Performance Table'!$J29=1,10000*E29,"--")) -> 41782.23105 | Z29: =+IF('Performance Table'!$J28+'Performance Table'!$J29=2,Z28*Calculations!F29,IF('Performance Table'!$J29=1,10000*F29,"--")) -> 37172.44425 | AA29: =+IF('Performance Table'!$J28+'Performance Table'!$J29=2,AA28*Calculations!G29,IF('Performance Table'!$J29=1,10000*G29,"--")) -> 31602.30032 | AB29: =+IF('Performance Table'!$J28+'Performance Table'!$J29=2,AB28*Calculations!H29,IF('Performance Table'!$J29=1,10000*H29,"--")) -> 26475.29784 | AC29: =+IF('Performance Table'!$J28+'Performance Table'!$J29=2,AC28*Calculations!I29,IF('Performance Table'!$J29=1,10000*I29,"--")) -> 21860.54858 | AD29: =+IF('Performance Table'!$J28+'Performance Table'!$J29=2,AD28*Calculations!J29,IF('Performance Table'!$J29=1,10000*J29,"--")) -> 33090.78375 | AH29: =+IF('Performance Table'!$J28+'Performance Table'!$J29=2,AH28*(1+AG$2),IF('Performance Table'!$J29=1,AG$3*AG$1,"--")) -> 23951.29261 | AI29: =+IF('Performance Table'!$J28+'Performance Table'!$J29=2,(AI28*D29)-$AH29,IF('Performance Table'!$J29=1,($AG$3*D29)-$AH29,"--")) -> 323779.4461 | AJ29: =+IF('Performance Table'!$J28+'Performance Table'!$J29=2,(AJ28*E29)-$AH29,IF('Performance Table'!$J29=1,($AG$3*E29)-$AH29,"--")) -> 367610.2541 | AK29: =+IF('Performance Table'!$J28+'Performance Table'!$J29=2,(AK28*F29)-$AH29,IF('Performance Table'!$J29=1,($AG$3*F29)-$AH29,"--")) -> 261731.3183 | AL29: =+IF('Performance Table'!$J28+'Performance Table'!$J29=2,(AL28*G29)-$AH29,IF('Performance Table'!$J29=1,($AG$3*G29)-$AH29,"--")) -> 168043.1299 | AM29: =+IF('Performance Table'!$J28+'Performance Table'!$J29=2,(AM28*H29)-$AH29,IF('Performance Table'!$J29=1,($AG$3*H29)-$AH29,"--")) -> 83662.48623 | AN29: =+IF('Performance Table'!$J28+'Performance Table'!$J29=2,(AN28*I29)-$AH29,IF('Performance Table'!$J29=1,($AG$3*I29)-$AH29,"--")) -> 9777.934379 | AO29: =+IF('Performance Table'!$J28+'Performance Table'!$J29=2,(AO28*J29)-$AH29,IF('Performance Table'!$J29=1,($AG$3*J29)-$AH29,"--")) -> 83804.31544
C31: =+SUM(C5:C29) -> 23 | W31: Ending Balance | X31: =+INDEX(X5:X29,MATCH(9.99999E+307,X5:X29)) -> 44004.23218 | Y31: 41782.23105 | Z31: =+INDEX(Z5:Z29,MATCH(9.99999E+307,Z5:Z29)) -> 37172.44425 | AA31: 31602.30032 | AB31: =+INDEX(AB5:AB29,MATCH(9.99999E+307,AB5:AB29)) -> 26475.29784 | AC31: 21860.54858 | AD31: =+INDEX(AD5:AD29,MATCH(9.99999E+307,AD5:AD29)) -> 33090.78375 | AH31: Ending Balance | AI31: =+INDEX(AI5:AI29,MATCH(9.99999E+307,AI5:AI29)) -> 323779.4461 | AJ31: =+INDEX(AJ5:AJ29,MATCH(9.99999E+307,AJ5:AJ29)) -> 367610.2541 | AK31: 261731.3183 | AL31: 168043.1299 | AM31: =+INDEX(AM5:AM29,MATCH(9.99999E+307,AM5:AM29)) -> 83662.48623 | AN31: 9777.934379 | AO31: =+INDEX(AO5:AO29,MATCH(9.99999E+307,AO5:AO29)) -> 83804.31544
A32: Average Annual Return | D32: =+GEOMEAN(D5:D29)-1 -> 0.06654213995 | E32: =+GEOMEAN(E5:E29)-1 -> 0.06414212615 | F32: =+GEOMEAN(F5:F29)-1 -> 0.05874707266 | G32: 0.05130056985 | H32: 0.04324037116 | I32: 0.03458903676 | J32: =+GEOMEAN(J5:J29)-1 -> 0.05340641515 | L32: MIN | M32: =+MIN(M5:M29) -> 2001
A33: Standard Deviation | D33: =+STDEV(D5:D29) -> 0.1206514966 | E33: =+STDEV(E5:E29) -> 0.1400656388 | F33: 0.1201078504 | G33: 0.0960019584 | H33: 0.07211087606 | I33: 0.04875144112 | J33: =+STDEV(J5:J29) -> 0.09414540227 | L33: MAX | M33: =+MAX(M5:M29) -> 2023 | AH33: Zero checker | AI33: =+IF(AI31<0,0,AI31) -> 323779.4461 | AJ33: =+IF(AJ31<0,0,AJ31) -> 367610.2541 | AK33: =+IF(AK31<0,0,AK31) -> 261731.3183 | AL33: =+IF(AL31<0,0,AL31) -> 168043.1299 | AM33: =+IF(AM31<0,0,AM31) -> 83662.48623 | AN33: 9777.934379 | AO33: =+IF(AO31<0,0,AO31) -> 83804.31544
A35: Growth of $10,000 | D35: =+FV(D32,D41,,-10000) -> 44004.23218 | E35: =+FV(E32,E41,,-10000) -> 41782.23105 | F35: =+FV(F32,F41,,-10000) -> 37172.44425 | G35: 31602.30032 | H35: 26475.29784 | I35: 21860.54858 | J35: =+FV(J32,J41,,-10000) -> 33090.78375 | AH35: =A5 -> 1999 | AI35: =+IF(AI5>0,AI5,0) -> -- | AJ35: =+IF(AJ5>0,AJ5,0) -> -- | AK35: -- | AL35: -- | AM35: -- | AN35: -- | AO35: --
AH36: =+AH35+1 -> 2000 | AI36: =+IF(AI6>0,AI6,0) -> -- | AJ36: =+IF(AJ6>0,AJ6,0) -> -- | AK36: -- | AL36: -- | AM36: -- | AN36: -- | AO36: --
A37: Worst 3-Year Return (%) | D37: =+N37 -> -0.03537378976 | E37: =+O37 -> -0.0517978458 | F37: =+P37 -> -0.03997820437 | G37: -0.01959821375 | H37: -0.008758469948 | I37: 0.0008872435524 | J37: =+T37 -> -0.01984435008 | N37: =+MIN(N5:N29) -> -0.03537378976 | O37: =+MIN(O5:O29) -> -0.0517978458 | P37: -0.03997820437 | Q37: -0.01959821375 | R37: -0.008758469948 | S37: 0.0008872435524 | T37: -0.01984435008 | AH37: 2001 | AI37: =+IF(AI7>0,AI7,0) -> 232274.623 | AJ37: 244944.2261 | AK37: 232646.8145 | AL37: 235699.8205 | AM37: 238752.8265 | AN37: 241805.8325 | AO37: 232472.3929
AH38: 2002 | AI38: =+IF(AI8>0,AI8,0) -> 218093.8954 | AJ38: 237408.5253 | AK38: 218291.7093 | AL38: 222403.1178 | AM38: 226542.4484 | AN38: 230709.7011 | AO38: 204517.5479
AH39: 2003 | AI39: =+IF(AI9>0,AI9,0) -> 263929.7429 | AJ39: 292558.135 | AK39: 263865.9796 | AL39: 257495.1823 | AM39: 250728.3977 | AN39: 243561.2603 | AO39: 232254.8502
AH40: 2004 | AI40: =+IF(AI10>0,AI10,0) -> 297664.4794 | AJ40: 336806.5995 | AK40: 297186.8217 | AL40: 281083.1779 | AM40: 264964.971 | AN40: 248867.1655 | AO40: 240749.9681
A41: Count | D41: =+COUNT(D5:D29) -> 23 | E41: 23 | F41: 23 | G41: 23 | H41: 23 | I41: 23 | J41: =+COUNT(J5:J29) -> 23 | AH41: 2005 | AI41: =+IF(AI11>0,AI11,0) -> 320760.8808 | AJ41: 366209.0314 | AK41: 319801.3893 | AL41: 296462.2718 | AM41: 273708.6347 | AN41: 251578.6155 | AO41: 238846.9466
AH42: 2006 | AI42: =+IF(AI12>0,AI12,0) -> 355222.5672 | AJ42: 410226.3642 | AK42: 353168.3138 | AL42: 320358.6912 | AM42: 289139.7697 | AN42: 259517.6704 | AO42: 253281.643
D43: Active 7Twelve | E43: Active 7Twelve | F43: Passive 7Twelve | J43: =+J3 -> Your Custom Portfolio | AH43: 2007 | AI43: =+IF(AI13>0,AI13,0) -> 384057.0492 | AJ43: 451823.882 | AK43: 379157.0636 | AL43: 338418.6329 | AM43: 300259.698 | AN43: 264625.3639 | AO43: 252285.3408
A44: Risk | D44: =+D37 -> -0.03537378976 | E44: =+E37 -> -0.0517978458 | F44: -0.03997820437 | G44: -0.01959821375 | H44: =+H37 -> -0.008758469948 | I44: 0.0008872435524 | J44: =+J37 -> -0.01984435008 | AH44: 2008 | AI44: =+IF(AI14>0,AI14,0) -> 270792.1437 | AJ44: 309294.1409 | AK44: 268372.3809 | AL44: 256794.3096 | AM44: 242882.417 | AN44: 227018.8033 | AO44: 193695.7798
A45: Return | D45: =+D32 -> 0.06654213995 | E45: =+E32 -> 0.06414212615 | F45: 0.05874707266 | G45: 0.05130056985 | H45: =+H32 -> 0.04324037116 | I45: 0.03458903676 | J45: =+J32 -> 0.05340641515 | AH45: 2009 | AI45: =+IF(AI15>0,AI15,0) -> 324398.7464 | AJ45: =+IF(AJ15>0,AJ15,0) -> 393532.5751 | AK45: 321359.3289 | AL45: 293914.5299 | AM45: 264934.8885 | AN45: 235194.5698 | AO45: 208744.5613
AH46: 2010 | AI46: =+IF(AI16>0,AI16,0) -> 354842.9624 | AJ46: 434354.555 | AK46: 351355.7026 | AL46: 311521.8525 | AM46: 271595.2452 | AN46: 232527.0856 | AO46: 213712.8125
AH47: 2011 | AI47: =+IF(AI17>0,AI17,0) -> 335315.8934 | AJ47: 390139.8135 | AK47: 331052.0754 | AL47: 292264.8804 | AM47: 253219.4106 | AN47: 214862.7507 | AO47: 197635.9983
AH48: 2012 | AI48: =+IF(AI18>0,AI18,0) -> 354129.8156 | AJ48: 421290.5794 | AK48: 348969.9141 | AL48: 299859.69 | AM48: 252119.3555 | AN48: 206752.9449 | AO48: 199172.3518
AH49: 2013 | AI49: =+IF(AI19>0,AI19,0) -> 373361.0798 | AJ49: 451199.7402 | AK49: 364820.7136 | AL49: 305196.5071 | AM49: 248913.3124 | AN49: 196934.8809 | AO49: 211469.6771
AH50: 2014 | AI50: =+IF(AI20>0,AI20,0) -> 360584.683 | AJ50: 433083.1467 | AK50: 355568.4001 | AL50: 292938.8108 | AM50: 234293.2839 | AN50: 180555.4129 | AO50: 202698.5978
AH51: 2015 | AI51: =+IF(AI21>0,AI21,0) -> 319833.7214 | AJ51: 384051.3029 | AK51: 318625.2812 | AL51: 262172.9405 | AM51: 208301.2149 | AN51: 158037.6509 | AO51: 183118.2286
AH52: 2016 | AI52: =+IF(AI22>0,AI22,0) -> 337161.6268 | AJ52: 399858.7183 | AK52: 331468.0357 | AL52: 264146.0686 | AM52: 201780.3788 | AN52: 145290.3587 | AO52: 175721.9706
AH53: 2017 | AI53: =+IF(AI23>0,AI23,0) -> 357534.4946 | AJ53: 434442.421 | AK53: 351081.1795 | AL53: 269807.0578 | AM53: 196865.9124 | AN53: 132893.8097 | AO53: 175989.267
AH54: 2018 | AI54: =+IF(AI24>0,AI24,0) -> 309933.5484 | AJ54: 380611.8412 | AK54: =+IF(AK24>0,AK24,0) -> 309757.1106 | AL54: 237402.9701 | AM54: 170654.8094 | AN54: 110523.7757 | AO54: 147926.0298
AH55: 2019 | AI55: 340020.1722 | AJ55: 420854.4223 | AK55: 337683.3037 | AL55: 247308.1088 | AM55: 167099.8086 | AN55: 97684.37879 | AO55: 150987.0498
AH56: 2020 | AI56: 336015.4277 | AJ56: 457087.5615 | AK56: =+IF(AK26>0,AK26,0) -> 335280.2965 | AL56: 237234.9599 | AM56: 151531.3865 | AN56: 78511.34906 | AO56: 144426.2116
AH57: 2021 | AI57: 370047.595 | AJ57: 458636.5801 | AK57: =+IF(AK27>0,AK27,0) -> 334415.6707 | AL57: 226895.7527 | AM57: 134775.0191 | AN57: 57916.07686 | AO57: 135137.3345
AH58: 2022 | AI58: =+IF(AI28>0,AI28,0) -> 318270.1737 | AJ58: =+IF(AJ28>0,AJ28,0) -> 350061.6822 | AK58: =+IF(AK28>0,AK28,0) -> 264264.4471 | AL58: 178614.5084 | AM58: 100689.3076 | AN58: 31741.21458 | AO58: 95185.74573
AH59: 2023 | AI59: =+IF(AI29>0,AI29,0) -> 323779.4461 | AJ59: =+IF(AJ29>0,AJ29,0) -> 367610.2541 | AK59: =+IF(AK29>0,AK29,0) -> 261731.3183 | AL59: 168043.1299 | AM59: 83662.48623 | AN59: =+IF(AN29>0,AN29,0) -> 9777.934379 | AO59: 83804.31544

Sheet Raw data (hidden)
D2: Annual % Returns (with Annual Rebalancing)
C3: ='Performance Table'!K4 -> Index-based 7Twelve Portfolio | D3: ='Performance Table'!L4 -> Active 7Twelve Portfolio | E3: ='Performance Table'!M4 -> Passive 7Twelve Portfolio | F3: ='Performance Table'!N4 -> Passive 7Twelve 20% Extra Cash | G3: ='Performance Table'!O4 -> Passive 7Twelve 40% Extra Cash | H3: ='Performance Table'!P4 -> Passive 7Twelve 60% Extra Cash | I3: ='Performance Table'!R4 -> Your Custom Portfolio | L3: ='Performance Table'!C4 -> Large US Stock | M3: ='Performance Table'!D4 -> Small US Stock | N3: ='Performance Table'!E4 -> Non-US Stock | O3: ='Performance Table'!F4 -> Bonds | P3: ='Performance Table'!G4 -> Cash
A4: =+A33 -> 1999 | C4: 16.84127213 | D4: =+D33-D$30 -> 16.63015194 | E4: 16.82016145 | F4: 14.45797159 | G4: 12.09578174 | H4: 9.733591881 | I4: =SUMPRODUCT('Performance Table'!C$3:G$3,'Performance Table'!C5:G5)-H$30 -> 12.12258138
A5: 2000 | C5: 5.419849973 | D5: =+D34-D$30 -> 11.21000064 | E5: 5.419195062 | F5: 5.592956417 | G5: 5.766717771 | H5: 5.940479126 | I5: =SUMPRODUCT('Performance Table'!C$3:G$3,'Performance Table'!C6:G6)-H$30 -> 0.2518548161
A6: 2001 | C6: -2.090150812 | D6: =+D35-D$30 -> 2.977690421 | E6: -1.941274182 | F6: -0.7200717913 | G6: 0.5011305995 | H6: 1.72233299 | I6: =SUMPRODUCT('Performance Table'!C$3:G$3,'Performance Table'!C7:G7)-H$30 -> -2.011042838
A7: 2002 | C7: -0.5621481727 | D7: =+D36-D$30 -> 2.179802055 | E7: -0.6362026854 | F7: -0.1789151491 | G7: 0.2783723872 | H7: 0.7356599234 | I7: =SUMPRODUCT('Performance Table'!C$3:G$3,'Performance Table'!C8:G8)-H$30 -> -6.486725072
A8: =+A37 -> 2003 | C8: 27.09708925 | D8: =+D37-D$30 -> 28.81567103 | E8: 26.95270497 | F8: 21.74129344 | G8: 16.52988191 | H8: 11.31847039 | I8: =SUMPRODUCT('Performance Table'!C$3:G$3,'Performance Table'!C9:G9)-H$30 -> 20.04647165
A9: =+A8+1 -> 2004 | C9: 17.95698485 | D9: =+D38-D$30 -> 19.79351968 | E9: 17.80446636 | F9: 14.46515727 | G9: 11.12584819 | H9: 7.786539103 | I9: =SUMPRODUCT('Performance Table'!C$3:G$3,'Performance Table'!C10:G10)-H$30 -> 9.538748243
A10: 2005 | C10: 12.48562195 | D10: =+D39-D$30 -> 12.9069003 | E10: 12.34355801 | F10: 10.47659781 | G10: 8.609637601 | H10: 6.742677397 | I10: =SUMPRODUCT('Performance Table'!C$3:G$3,'Performance Table'!C11:G11)-H$30 -> 5.053308524
A11: 2006 | C11: 15.26140351 | D11: =+D40-D$30 -> 15.97673833 | E11: 14.96486633 | F11: 12.94847572 | G11: 10.93208511 | H11: 8.915694497 | I11: =SUMPRODUCT('Performance Table'!C$3:G$3,'Performance Table'!C12:G12)-H$30 -> 12.11052628
A12: 2007 | C12: 12.31907533 | D12: =+D41-D$30 -> 13.77853217 | E12: 11.58495875 | F12: 10.29645717 | G12: 9.007955602 | H12: 7.71945403 | I12: =SUMPRODUCT('Performance Table'!C$3:G$3,'Performance Table'!C13:G13)-H$30 -> 5.499550358
A13: 2008 | C13: -25.48878673 | D13: =+D42-D$30 -> -28.14289434 | E13: -25.16404638 | F13: -19.57661121 | G13: -13.98917603 | H13: -8.401740857 | I13: =SUMPRODUCT('Performance Table'!C$3:G$3,'Performance Table'!C14:G14)-H$30 -> -17.12986474
A14: 2009 | C14: 25.64373834 | D14: =+D43-D$30 -> 32.3553042 | E14: 25.64405985 | F14: 20.62150302 | G14: 15.59894619 | H14: 10.57638935 | I14: =SUMPRODUCT('Performance Table'!C$3:G$3,'Performance Table'!C15:G15)-H$30 -> 15.94428517
A15: 2010 | C15: 14.4124727 | D15: =+D44-D$30 -> 14.51764056 | E15: 14.4094272 | F15: 11.53974505 | G15: 8.670062901 | H15: 5.800380753 | I15: =SUMPRODUCT('Performance Table'!C$3:G$3,'Performance Table'!C16:G16)-H$30 -> 10.19327922
A16: 2011 | C16: -0.7688229827 | D16: =+D45-D$30 -> -6.311845124 | E16: -0.9974713498 | F16: -0.7890352837 | G16: -0.5805992177 | H16: -0.3721631516 | I16: =SUMPRODUCT('Performance Table'!C$3:G$3,'Performance Table'!C17:G17)-H$30 -> 0.3379023006
A17: 2012 | C17: 10.77099127 | D17: =+D46-D$30 -> 12.41957054 | E17: 10.6390398 | F17: 8.518893183 | G17: 6.398746565 | H17: 4.278599947 | I17: =SUMPRODUCT('Performance Table'!C$3:G$3,'Performance Table'!C18:G18)-H$30 -> 9.532310459
A18: 2013 | C18: 10.46318996 | D18: =+D47-D$30 -> 11.32975057 | E18: 9.649201602 | F18: 7.723221557 | G18: 5.797241511 | H18: 3.871261466 | I18: =SUMPRODUCT('Performance Table'!C$3:G$3,'Performance Table'!C19:G19)-H$30 -> 15.12224769
A19: 2014 | C19: 1.494605319 | D19: =+D48-D$30 -> 0.05320879818 | E19: 2.495570451 | F19: 1.998376445 | G19: 1.501182439 | H19: 1.003988434 | I19: =SUMPRODUCT('Performance Table'!C$3:G$3,'Performance Table'!C20:G20)-H$30 -> 4.532844719
A20: 2015 | C20: -6.05782527 | D20: =+D49-D$30 -> -6.955817256 | E20: -5.07237069 | F20: -4.048114599 | G20: -3.023858508 | H20: -1.999602417 | I20: =SUMPRODUCT('Performance Table'!C$3:G$3,'Performance Table'!C21:G21)-H$30 -> -0.3320189049
A21: 2016 | C21: 11.50675981 | D21: =+D50-D$30 -> 9.186795568 | E21: 10.14274419 | F21: 8.180753047 | G21: 6.218761901 | H21: 4.256770755 | I21: =SUMPRODUCT('Performance Table'!C$3:G$3,'Performance Table'!C22:G22)-H$30 -> 6.595921572
A22: 2017 | C22: 11.99178528 | D22: =+D51-D$30 -> 13.66546002 | E22: 11.96856712 | F22: 9.736968566 | G22: 7.505370014 | H22: 5.273771463 | I22: =SUMPRODUCT('Performance Table'!C$3:G$3,'Performance Table'!C23:G23)-H$30 -> 11.56720858
A23: 2018 | C23: -7.535035426 | D23: =+D52-D$30 -> -7.635070329 | E23: -5.885668241 | F23: -4.352551908 | G23: -2.819435575 | H23: -1.286319242 | I23: =SUMPRODUCT('Performance Table'!C$3:G$3,'Performance Table'!C24:G24)-H$30 -> -4.206302967
A24: 2019 | C24: 16.57356468 | D24: =+D53-D$30 -> 16.16423548 | E24: 15.88554537 | F24: 13.13612544 | G24: 10.38670552 | H24: 7.63728559 | I24: =SUMPRODUCT('Performance Table'!C$3:G$3,'Performance Table'!C25:G25)-H$30 -> 16.45513865
A25: 2020 | C25: 5.268534807 | D25: =+D54-D$30 -> 13.81759624 | E25: 5.779325839 | F25: 4.78984569 | G25: 3.80036554 | H25: 2.810885391 | I25: =SUMPRODUCT('Performance Table'!C$3:G$3,'Performance Table'!C26:G26)-H$30 -> 10.17172495
A26: 2021 | C26: 16.84701151 | D26: =+D55-D$30 -> 5.278071669 | E26: 6.475705518 | F26: 5.15825457 | G26: 3.840803621 | H26: 2.523352673 | I26: =SUMPRODUCT('Performance Table'!C$3:G$3,'Performance Table'!C27:G27)-H$30 -> 9.200209001
A27: 2022 | C27: -7.708127173 | D27: =+D56-D$30 -> -18.60322954 | E27: -14.02372723 | F27: -11.03042336 | G27: -8.037119491 | H27: -5.043815623 | I27: =SUMPRODUCT('Performance Table'!C$3:G$3,'Performance Table'!C28:G28)-H$30 -> -12.35624978
A28: 2023 | C28: 9.256464301 | D28: =+D57-D$30 -> 11.85501487 | E28: 8.104822298 | F28: 7.490944693 | G28: 6.877067087 | H28: 6.263189482 | I28: =SUMPRODUCT('Performance Table'!C$3:G$3,'Performance Table'!C29:G29)-H$30 -> 13.20561417
A30: Overlay Cost | C30: ='Performance Table'!E31/100 -> 0 | D30: =$C30 -> 0 | E30: =$C30 -> 0 | F30: 0 | G30: 0 | H30: 0 | I30: 0
F32: Raw Returns here
A33: 1999 | C33: 16.83566285 | D33: 16.63015194 | E33: 16.82016145 | F33: 14.45797159 | G33: 12.09578174 | H33: 9.733591881 | L33: =+ISBLANK('Performance Table'!#REF!) -> FALSE | M33: =+ISBLANK('Performance Table'!#REF!) -> FALSE | N33: =+ISBLANK('Performance Table'!#REF!) -> FALSE | O33: =+ISBLANK('Performance Table'!#REF!) -> FALSE | P33: =+ISBLANK('Performance Table'!#REF!) -> FALSE
A34: =A33+1 -> 2000 | C34: 5.415874031 | D34: 11.21000064 | E34: 5.419195062 | F34: 5.592956417 | G34: 5.766717771 | H34: 5.940479126 | L34: =+ISBLANK('Performance Table'!C5) -> FALSE | M34: =+ISBLANK('Performance Table'!D5) -> FALSE | N34: =+ISBLANK('Performance Table'!E5) -> FALSE | O34: =+ISBLANK('Performance Table'!F5) -> FALSE | P34: =+ISBLANK('Performance Table'!G5) -> FALSE
A35: =A34+1 -> 2001 | C35: -2.061863474 | D35: 2.977690421 | E35: -1.941274182 | F35: -0.7200717913 | G35: 0.5011305995 | H35: 1.72233299 | L35: =+ISBLANK('Performance Table'!C6) -> FALSE | M35: =+ISBLANK('Performance Table'!D6) -> FALSE | N35: =+ISBLANK('Performance Table'!E6) -> FALSE | O35: =+ISBLANK('Performance Table'!F6) -> FALSE | P35: =+ISBLANK('Performance Table'!G6) -> FALSE
A36: 2002 | C36: -0.5586632654 | D36: 2.179802055 | E36: -0.6362026854 | F36: -0.1789151491 | G36: 0.2783723872 | H36: 0.7356599234 | L36: =+ISBLANK('Performance Table'!C7) -> FALSE | M36: =+ISBLANK('Performance Table'!D7) -> FALSE | N36: =+ISBLANK('Performance Table'!E7) -> FALSE | O36: =+ISBLANK('Performance Table'!F7) -> FALSE | P36: =+ISBLANK('Performance Table'!G7) -> FALSE
A37: 2003 | C37: 27.09909955 | D37: 28.81567103 | E37: 26.95270497 | F37: 21.74129344 | G37: 16.52988191 | H37: 11.31847039 | L37: =+ISBLANK('Performance Table'!C8) -> FALSE | M37: =+ISBLANK('Performance Table'!D8) -> FALSE | N37: =+ISBLANK('Performance Table'!E8) -> FALSE | O37: =+ISBLANK('Performance Table'!F8) -> FALSE | P37: =+ISBLANK('Performance Table'!G8) -> FALSE
A38: =+A37+1 -> 2004 | C38: 17.94804659 | D38: 19.79351968 | E38: 17.80446636 | F38: 14.46515727 | G38: 11.12584819 | H38: 7.786539103 | L38: =+ISBLANK('Performance Table'!C9) -> FALSE | M38: =+ISBLANK('Performance Table'!D9) -> FALSE | N38: =+ISBLANK('Performance Table'!E9) -> FALSE | O38: =+ISBLANK('Performance Table'!F9) -> FALSE | P38: =+ISBLANK('Performance Table'!G9) -> FALSE
A39: 2005 | C39: 12.47381504 | D39: 12.9069003 | E39: 12.34355801 | F39: 10.47659781 | G39: 8.609637601 | H39: 6.742677397 | L39: =+ISBLANK('Performance Table'!C10) -> FALSE | M39: =+ISBLANK('Performance Table'!D10) -> FALSE | N39: =+ISBLANK('Performance Table'!E10) -> FALSE | O39: =+ISBLANK('Performance Table'!F10) -> FALSE | P39: =+ISBLANK('Performance Table'!G10) -> FALSE
A40: 2006 | C40: 15.25471003 | D40: 15.97673833 | E40: 14.96486633 | F40: 12.94847572 | G40: 10.93208511 | H40: 8.915694497 | L40: =+ISBLANK('Performance Table'!C11) -> FALSE | M40: =+ISBLANK('Performance Table'!D11) -> FALSE | N40: =+ISBLANK('Performance Table'!E11) -> FALSE | O40: =+ISBLANK('Performance Table'!F11) -> FALSE | P40: =+ISBLANK('Performance Table'!G11) -> FALSE
A41: 2007 | C41: 12.33199172 | D41: 13.77853217 | E41: 11.58495875 | F41: 10.29645717 | G41: 9.007955602 | H41: 7.71945403 | L41: =+ISBLANK('Performance Table'!C12) -> FALSE | M41: =+ISBLANK('Performance Table'!D12) -> FALSE | N41: =+ISBLANK('Performance Table'!E12) -> FALSE | O41: =+ISBLANK('Performance Table'!F12) -> FALSE | P41: =+ISBLANK('Performance Table'!G12) -> FALSE
A42: 2008 | C42: -25.46816849 | D42: -28.14289434 | E42: -25.16404638 | F42: -19.57661121 | G42: -13.98917603 | H42: -8.401740857 | L42: =+ISBLANK('Performance Table'!C13) -> FALSE | M42: =+ISBLANK('Performance Table'!D13) -> FALSE | N42: =+ISBLANK('Performance Table'!E13) -> FALSE | O42: =+ISBLANK('Performance Table'!F13) -> FALSE | P42: =+ISBLANK('Performance Table'!G13) -> FALSE
A43: 2009 | C43: 25.64359646 | D43: 32.3553042 | E43: 25.64405985 | F43: 20.62150302 | G43: 15.59894619 | H43: 10.57638935 | L43: =+ISBLANK('Performance Table'!C14) -> FALSE | M43: =+ISBLANK('Performance Table'!D14) -> FALSE | N43: =+ISBLANK('Performance Table'!E14) -> FALSE | O43: =+ISBLANK('Performance Table'!F14) -> FALSE | P43: =+ISBLANK('Performance Table'!G14) -> FALSE
A44: 2010 | C44: 14.41184692 | D44: 14.51764056 | E44: 14.4094272 | F44: 11.53974505 | G44: 8.670062901 | H44: 5.800380753 | L44: =+ISBLANK('Performance Table'!C15) -> FALSE | M44: =+ISBLANK('Performance Table'!D15) -> FALSE | N44: =+ISBLANK('Performance Table'!E15) -> FALSE | O44: =+ISBLANK('Performance Table'!F15) -> FALSE | P44: =+ISBLANK('Performance Table'!G15) -> FALSE
A45: 2011 | C45: -0.7679141815 | D45: -6.311845124 | E45: -0.9974713498 | F45: -0.7890352837 | G45: -0.5805992177 | H45: -0.3721631516 | L45: =+ISBLANK('Performance Table'!C16) -> FALSE | M45: =+ISBLANK('Performance Table'!D16) -> FALSE | N45: =+ISBLANK('Performance Table'!E16) -> FALSE | O45: =+ISBLANK('Performance Table'!F16) -> FALSE | P45: =+ISBLANK('Performance Table'!G16) -> FALSE
A46: 2012 | C46: 10.77057427 | D46: 12.41957054 | E46: 10.6390398 | F46: 8.518893183 | G46: 6.398746565 | H46: 4.278599947 | L46: =+ISBLANK('Performance Table'!C17) -> FALSE | M46: =+ISBLANK('Performance Table'!D17) -> FALSE | N46: =+ISBLANK('Performance Table'!E17) -> FALSE | O46: =+ISBLANK('Performance Table'!F17) -> FALSE | P46: =+ISBLANK('Performance Table'!G17) -> FALSE
A47: 2013 | C47: 10.46318996 | D47: 11.32975057 | E47: 9.649201602 | F47: 7.723221557 | G47: 5.797241511 | H47: 3.871261466 | L47: =+ISBLANK('Performance Table'!C18) -> FALSE | M47: =+ISBLANK('Performance Table'!D18) -> FALSE | N47: =+ISBLANK('Performance Table'!E18) -> FALSE | O47: =+ISBLANK('Performance Table'!F18) -> FALSE | P47: =+ISBLANK('Performance Table'!G18) -> FALSE
A48: 2014 | C48: 1.494880402 | D48: 0.05320879818 | E48: 2.495570451 | F48: 1.998376445 | G48: 1.501182439 | H48: 1.003988434 | L48: =+ISBLANK('Performance Table'!C19) -> FALSE | M48: =+ISBLANK('Performance Table'!D19) -> FALSE | N48: =+ISBLANK('Performance Table'!E19) -> FALSE | O48: =+ISBLANK('Performance Table'!F19) -> FALSE | P48: =+ISBLANK('Performance Table'!G19) -> FALSE
A49: 2015 | C49: -6.059217403 | D49: -6.955817256 | E49: -5.07237069 | F49: -4.048114599 | G49: -3.023858508 | H49: -1.999602417 | L49: =+ISBLANK('Performance Table'!C20) -> FALSE | M49: =+ISBLANK('Performance Table'!D20) -> FALSE | N49: =+ISBLANK('Performance Table'!E20) -> FALSE | O49: =+ISBLANK('Performance Table'!F20) -> FALSE | P49: =+ISBLANK('Performance Table'!G20) -> FALSE
A50: 2016 | C50: 11.50482116 | D50: 9.186795568 | E50: 10.14274419 | F50: 8.180753047 | G50: 6.218761901 | H50: 4.256770755 | L50: =+ISBLANK('Performance Table'!C21) -> FALSE | M50: =+ISBLANK('Performance Table'!D21) -> FALSE | N50: =+ISBLANK('Performance Table'!E21) -> FALSE | O50: =+ISBLANK('Performance Table'!F21) -> FALSE | P50: =+ISBLANK('Performance Table'!G21) -> FALSE
A51: 2017 | C51: 11.98616455 | D51: 13.66546002 | E51: 11.96856712 | F51: 9.736968566 | G51: 7.505370014 | H51: 5.273771463 | L51: =+ISBLANK('Performance Table'!C22) -> FALSE | M51: =+ISBLANK('Performance Table'!D22) -> FALSE | N51: =+ISBLANK('Performance Table'!E22) -> FALSE | O51: =+ISBLANK('Performance Table'!F22) -> FALSE | P51: =+ISBLANK('Performance Table'!G22) -> FALSE
A52: 2018 | C52: -7.542335277 | D52: -7.635070329 | E52: -5.885668241 | F52: -4.352551908 | G52: -2.819435575 | H52: -1.286319242 | L52: =+ISBLANK('Performance Table'!C23) -> FALSE | M52: =+ISBLANK('Performance Table'!D23) -> FALSE | N52: =+ISBLANK('Performance Table'!E23) -> FALSE | O52: =+ISBLANK('Performance Table'!F23) -> FALSE | P52: =+ISBLANK('Performance Table'!G23) -> FALSE
A53: 2019 | C53: 16.57934074 | D53: 16.16423548 | E53: 15.88554537 | F53: 13.13612544 | G53: 10.38670552 | H53: 7.63728559 | L53: =+ISBLANK('Performance Table'!C24) -> FALSE | M53: =+ISBLANK('Performance Table'!D24) -> FALSE | N53: =+ISBLANK('Performance Table'!E24) -> FALSE | O53: =+ISBLANK('Performance Table'!F24) -> FALSE | P53: =+ISBLANK('Performance Table'!G24) -> FALSE
A54: 2020 | C54: 5.278562051 | D54: 13.81759624 | E54: 5.779325839 | F54: 4.78984569 | G54: 3.80036554 | H54: 2.810885391 | L54: =+ISBLANK('Performance Table'!C25) -> FALSE | M54: =+ISBLANK('Performance Table'!D25) -> FALSE | N54: =+ISBLANK('Performance Table'!E25) -> FALSE | O54: =+ISBLANK('Performance Table'!F25) -> FALSE | P54: =+ISBLANK('Performance Table'!G25) -> FALSE
A55: 2021 | C55: 16.84721992 | D55: 5.278071669 | E55: 6.475705518 | F55: 5.15825457 | G55: 3.840803621 | H55: 2.523352673 | L55: =+ISBLANK('Performance Table'!C26) -> FALSE | M55: =+ISBLANK('Performance Table'!D26) -> FALSE | N55: =+ISBLANK('Performance Table'!E26) -> FALSE | O55: =+ISBLANK('Performance Table'!F26) -> FALSE | P55: =+ISBLANK('Performance Table'!G26) -> FALSE
A56: 2022 | C56: -7.737142056 | D56: -18.60322954 | E56: -14.02372723 | F56: -11.03042336 | G56: -8.037119491 | H56: -5.043815623 | L56: =+ISBLANK('Performance Table'!C27) -> FALSE | M56: =+ISBLANK('Performance Table'!D27) -> FALSE | N56: =+ISBLANK('Performance Table'!E27) -> FALSE | O56: =+ISBLANK('Performance Table'!F27) -> FALSE | P56: =+ISBLANK('Performance Table'!G27) -> FALSE
A57: 2023 | C57: 9.249576692 | D57: 11.85501487 | E57: 8.104822298 | F57: 7.490944693 | G57: 6.877067087 | H57: 6.263189482 | L57: =+ISBLANK('Performance Table'!C28) -> FALSE | M57: =+ISBLANK('Performance Table'!D28) -> FALSE | N57: =+ISBLANK('Performance Table'!E28) -> FALSE | O57: =+ISBLANK('Performance Table'!F28) -> FALSE | P57: =+ISBLANK('Performance Table'!G28) -> FALSE
